{"text_format":"3","workbook":"xlsx","n_sheets":29,"sheets":["BILL NO. 1","BILL NO.2","BILL NO.3","BILL NO. 4","BILL NO.5","BILL NO. 6","BILL NO.7","BILL NO. 8","BILL NO. 9","BILL NO.10","BILL NO. 11","BILL NO. 12","BILL NO.13","BILL NO. 14","BILL NO. 15","BILL NO. 16","BILL NO. 17","BILL NO. 18","BILL NO. 19","BILL NO. 20","BILL NO. 21","BILL NO. 22","BILL NO. 23","BILL NO. 24","BILL NO. 25","BILL NO. 26","BILL NO. 27","BILL NO. 28","BILL NO. 29"],"not_rendered":{"defined_names":30},"read":"whole","date_system":"1900"}

{"sheet":"BILL NO. 1","index":0,"n_rows":182,"n_cols":6,"rows_kept":182}
[]
[null,"DESCRIPTION","UNIT","QUANTITY","RATE","AMOUNT"]
[]
[null,"SECTION NO. 1"]
[]
[null,"BILL NO. 1"]
[]
[null,"PRELIMINARIES"]
[]
[null,"Scheduled fixed-charge and value related items"]
[]
[1,"Fixed Preliminary and General charges","SUM",1,"Work Package Stage"]
[]
[2,"Value-related Preliminary and General charges","SUM",1,"Work Package Stage"]
[]
[null,"Scheduled time related items"]
[]
[3,"Time-related Preliminary and General charges","SUM",1,"Work Package Stage"]
[]
[null,"SMME Construction Manager"]
[]
[4,"Provision of SMME Construction Manager","Month",1,null,{"$f":"+D22*E22","v":0}]
[]
[null,"Compliance with environmental legislation and Specifications"]
[]
[null,"Pricing of these items to include for the:"]
[]
[5,"Contractor","SUM",1,"Work Package Stage"]
[]
[6,"Own Subcontractors","SUM",1,"Work Package Stage"]
[]
[7,"SMME Subcontractors","SUM",1,"Work Package Stage"]
[]
[8,"Nominated Subcontractors","SUM",1,"Work Package Stage"]
[]
[null,"Compliance with Occupational Health and Safety Act (Act 85 of 1993) and all relevant and applicable regulations, especially the Construction Regulations, 2003 as promulgated on 18 July 2003 under section 43 of the Occupational Health and Safety Act (Act 85 of 1993), as amended from time to time,for the duration of the contract"]
[]
[null,"Pricing of these items to include for the:"]
[]
[9,"Contractor","SUM",1,"Work Package Stage"]
[]
[10,"Own Subcontractors","SUM",1,"Work Package Stage"]
[]
[11,"SMME Subcontractors","SUM",1,"Work Package Stage"]
[]
[12,"Nominated Subcontractors","SUM",1,"Work Package Stage"]
[]
[null,"Compliance with Labour Management Regulations and Industrial Relations Policy (Coega IDZ, et al) for the Duration of the Contract"]
[]
[13,"Allow for the appointment of an Industrial Relations Co ordinator for the full duration of the Contract","SUM",1,"Work Package Stage"]
[]
[14,"Provisional sum for contractor contribution to IR-Coordinator","SUM",1,"Work Package Stage"]
[]
[15,"Allow for administration of payment to all employees for full duration of contract","SUM",1,"Work Package Stage"]
[]
[16,"Allow for administration of payment to seconded personnel for full duration of contract","SUM",1,"Work Package Stage"]
[]
[17,"Allow for tool allowance to shutter hands grades 1 , 2 and 3 every 6 months for the full duration of contract","SUM",1,"Work Package Stage"]
[]
[18,"Allow for the daily transport of hourly paid labour from collection pointsand return for the duration of the contract","SUM",1,"Work Package Stage"]
[]
[19,"Allow for the provision of bus transport for long weekends for all seconded personnel","SUM",1,"Work Package Stage"]
[]
[20,"Allow for bus transport at start and end of project for seconded personnel","SUM",1,"Work Package Stage"]
[]
[]
[21,"Allow for the provision of a Zone Bonus upon demobilization for hourly paid employees employed on site","SUM",1,"Work Package Stage"]
[]
[22,"Allow for provision of a limited duration employee completion benefit upon operational requirement demobilisation for all hourly paid employees","SUM",1,"Work Package Stage"]
[]
[23,"Pre-employment and Exit medical assessments a per H & S requirements","SUM",1,"Work Package Stage"]
[]
[24,"Compliance with cidb B.U.I.L.D Programme  (Skills development and Targetted enterprises)"]
["24.1","Contract Skills development goal (CSDG)",null,null,"Work Package Stage"]
["24.2","Minimum skills development for CSDG = 0.25% of sub total value. Refer to implementation for developing skills through infrastructure contracts gazette No. 48491 of 28 April 2023."]
[null,"Methods 1 to 4 to be applied.",null,null,"Work Package Stage"]
["24.3","Enterprise development:"]
["24.3.1","Enterprise Development of Targeted Enterprise or JV partners as Published in Gazette Notice No.36190 of 25 February 2013:\n"]
[]
["24.3.1.1","Needs Analysis and Enterprise Development Plan per targetted Enterprise","No",1,"Work Package Stage"]
[]
["24.3.1.2","Monitoring and Interim reporting per targated enterprise","Per Quarter",1,"Work Package Stage"]
[]
["24.3.1.3","Project Completion report per Targeted Enterprise","No",1,"Work Package Stage"]
[]
["24.3.1.4","Enterprise Development Cordinator to ensure full implementation of CPG","No",1,"Work Package Stage"]
[]
["24.3.1.5","Supervise responsible for implementation of CSDG obligations","No",1,"Work Package Stage"]
[]
[null,"Sub total (Bill No. 2)"]
{"$rows_empty":91}
[null,"REMOVING METAL ROOF SHEETING AND ACCESSORIES"]

{"sheet":"BILL NO.2","index":1,"n_rows":554,"n_cols":6,"rows_kept":554}
[null,"DESCRIPTION","UNIT","QUANTITY","RATE","AMOUNT"]
[]
[null,"BILL NO.2 : ALTERATIONS (PROVISIONAL)"]
[]
[null,"WORK GROUPS: Unless otherwise stated the work group for this Bill shall be WG102"]
[]
[null,"Trade Preambles:"]
[]
[null,"SUPPLEMENTARY PREAMBLES"]
[]
[null,"NOTE: Tenderers are advised to study the Model Preambles for Trades before pricing this bill."]
[]
[null,"Supplementary Preambles:"]
[]
[null,"Prices are to include for carting away from site all materials not specifically mentioned as being stored on site for re-use or handed over to the Employer and all rubbish, debris, etc., arising from the alterations, etc., and for making good all work damaged or disturbed to the approval of the Project Manager."]
[]
[null,"If angle grinders are used, a method of containing the dust must be utilised. Should the dust produced by the use of angle grinders, be deemed to be a nuisance by the Employer, their use will be prohibited."]
[]
[null,"For purpose of this contract, and to avoid misunderstanding in terms of carrying out the works and pricing thereof, phrases stated hereunder have been defined and the Contractor is advised to study them carefully as no claim will be entertained as a result of him not doing so:"]
[]
[null,"a) \"Making Good\" shall include making good of the brick, concrete and timber surfaces onto which the finishes are applied, where necessary."]
[]
[null,"b) \"Forming New Openings\" shall include all labour and materials forming opening, cut toothings and bonding for and plumbing and flushing up reveals, cutting for and forming precast concrete, or reinforced brick lintel over including necessary turning pieces, reinforcement, etc."]
[]
[null,"c) All existing material described as \"carefully take out, set aside for re-use and later refix in new position\" are to be carefully removed, stored and protected from injury, made good as required and if broken or damaged through taking out, removing, storage,  etc, are to be replaced by the Contractor at his own expense. Tenderers are advised to inspect these materials to ascertain their condition and allow accordingly for this in their pricing."]
[]
[null,"d) The term \"take out\" includes all work taken out, taken up, taken down, taken off, etc ; the term \"break up\" includes all work broken up, broken down, broken off, etc and the term \"hack off\" includes all work hacked off, hacked up, hacked down, etc."]
[]
[null,"e) The terms \"take out and remove door\", \"take out and remove window\", \"carefully  take out, set aside for re-use and later refix window in new position\", atc are to include all materials connected with such door or window such as doors, windows, fanlights, frames, ironmongery, glass, architraves, beads, fillets, cramps, dowels, door stops, cabin hooks, etc."]
[]
[null,"f) Doors, windows,  fanlights, fittings, frames, linnings, etc which are to be re-used shall be thoroughly overhauled before refixing including taking off, easing and rehanging, cramping up, re-wedging as required and making good cramps, dowels, etc, and easing, oiling, adjusting and repairing ironmongery as necessary, replacing any glass damaged in removal or subsequently and stopping up all nail and screw holes with tinted plastic wood to match timber, unless otherwise described. Re-painting or re-varnishing is given seperately. Making good floor and wall finishes to match existing."]
[]
[null,"g) Where door and window openings, etc, are specified to be filled in, or where jambs, sills, etc are specified to be built up, brickwork shall be of hard burnt clay stock bricks in 5.1 cement motar unless otherwise specified, cut, toothed and bonded into existing brickwork and pinned up as required with slates or other hard materials. Brickwork built to fair face or in facings is to be of bricks and pointed to match existing. Plaster is to be 5.1 cement plaster unless otherwise specified."]
[]
[null,"h) where lintels are specified as precast concrete the prices are to include for breaking out brickwork over for inserting precast prestressed cement concrete (30MPA) lintel with 230mm bearing on each end size 108 x 75mm deep for each half brick thickness of wall."]
[]
[null,"i) Water supply pipes and other piping that may be encountered and found necessary to disconnect or cut, shall be effectively stopped off or grubbed up and removed, and any new connections that may be necessary shall be made with proper fittings, to the satisfaction of the Principal Agent / Project Manager."]
[]
[null,"j) The terms propping, strutting, shoring, etc, is not specifically mentioned in each item, however these shall be deemed to be included in the descriptions."]
[]
[null,"k) No explosive whatsoever may be used for demolition purposes unless otherwise stated or prior approval by the Principal Agent or Project Manager."]
[]
[null,"REMOVAL OF EXISTING WORK"]
[]
["36","Allow for protecting all existing work liable to suffer damage (i.e. Walls, finishes, floors,  windows, joinery fittings, etc.) from damage during the building operations, alterations, etc., and make good all work damaged with new material to match existing to the approval of the Principal Agent / Project Manager.","No",{"v":7,"d":"7.00"},null,{"$f":"+D45*E45","v":0}]
[]
["38","Allow for watering the works by spraying to prevent any nuisance from dust, etc., and supply, erect and remove on completion all temporary dust screens, etc. required.","No",{"v":7,"d":"7.00"},null,{"$f":"+D47*E47","v":0}]
[]
["40","Breaking up and removing reinforced concrete, including cutting off and removing reinforcement:"]
[]
["40.1","110mm Thick surface beds","m²",{"v":29,"d":"29.00"},null,0]
[]
["40.2","150mm Thick surface beds","m²",{"v":20,"d":"20.00"},null,0]
[]
["40.3","Steps","m³",{"v":5,"d":"5.00"},null,0]
[]
["40.4","Ramps","m³",{"v":11,"d":"11.00"},null,0]
[]
["40.5","Stairs and landings","m3",{"v":2,"d":"2.00"},null,{"$f":"+D59*E59","v":0}]
[]
["40.6","Beams","m3",{"v":2,"d":"2.00"},null,0]
[]
["40.7","Columns (exceeding 3m, not exceeding 6m high)","m3",{"v":2,"d":"2.00"},null,0]
[]
["40.8","Columns (exceeding 6m high)","m3",{"v":5,"d":"5.00"},null,{"$f":"+D65*E65","v":0}]
[]
["40.9","Strip footings, bases, etc","m3",{"v":3,"d":"3.00"},null,0]
[]
["40.10","Precast concrere paving slabs","m2",{"v":3,"d":"3.00"},null,0]
[]
["40.11","Brick paving","m2",{"v":3,"d":"3.00"},null,0]
[]
["40.12","Brick kerbs with mortar joints","m",{"v":15,"d":"15.00"},null,0]
[]
["40.13","Cobble paving","m",{"v":20,"d":"20.00"},null,0]
[]
["40.14","Precast contrete storm water channel","m",{"v":10,"d":"10.00"},null,0]
[]
["40.15","Cantilever Beams","m3",{"v":5,"d":"5.00"},null,{"$f":"+D79*E79","v":0}]
[]
["40.16","Suspended slabs","m3",{"v":3,"d":"3.00"},null,{"$f":"+D81*E81","v":0}]
[]
["41","Breaking down and removing brickwork etc."]
[]
["41.1","110mm Brick walls","m²",{"v":121,"d":"121.00"},null,0]
[]
["41.2","220mm  Parapet Brick walls","m²",{"v":84,"d":"84.00"},null,0]
[]
["41.3","220mm Brick walls","m²",{"v":250,"d":"250.00"},null,0]
[]
["41.4","270mm Brick walls","m²",{"v":200,"d":"200.00"},null,0]
[]
["41.5","270mm Brick walls","m²",{"v":200,"d":"200.00"},null,{"$f":"+D93*E93","v":0}]
[]
["42","Taking out and removing doors, windows, etc., including thresholds, sills, etc. (building up openings and making good finishes measured elsewhere)"]
[]
["42.1","900 x 2125mm High Timber single door, frame and ironmongery","No",{"v":36,"d":"36.00"},null,0]
[]
["42.2","900 x 2125mm High  glazed Timber single door, frame and ironmongery","No",{"v":6,"d":"6.00"},null,0]
[]
["42.3","1600 x 2125mm High glazed Timber double door, frame and ironmongery.","No",{"v":6,"d":"6.00"},null,0]
[]
[null,"Undercut existing doors:"]
[]
["42.4","Take off door size 813 x 2032mm high, undercut by 20mm and re-hang","No",5,null,{"$f":"+D105*E105","v":0}]
[]
["42.5","Timber single door and frame not exceeding 2.5m2","No",{"v":15,"d":"15.00"},null,{"$f":"+D107*E107","v":0}]
[]
["42.6","Timber double door and frame exceeding 2.5m2 not exceeding 5m2","No",{"v":15,"d":"15.00"},null,0]
[]
["42.7","Timber single door and steel frame exceeding 2.5m2 not exceeding 5m2","No",{"v":15,"d":"15.00"},null,0]
[]
["43","Take out and remove steel window complete and prepare to receive new aluminium casement system windows (new aluminium windows elsewhere measured):"]
[]
["43.1","Window size not exceeding 0.5m2","No",{"v":6,"d":"6.00"},null,0]
[]
["43.2","Window size exceeding 0.5m2 not exceeding 1m2","No",{"v":6,"d":"6.00"},null,0]
[]
["43.3","Window size exceeding 1 m2 not exceeding 1.5m2","No",{"v":6,"d":"6.00"},null,0]
[]
["43.4","Window size exceeding 1.5 m2 not exceeding 2m2","No",{"v":6,"d":"6.00"},null,0]
[]
["43.5","Window size exceeding 2m2 not exceeding 3m2","No",{"v":6,"d":"6.00"},null,{"$f":"+D123*E123","v":0}]
[]
["43.6","Window size exceeding 3m2 not exceeding 4m2","No",{"v":6,"d":"6.00"},null,0]
[]
["43.7","Window size exceeding 4m2 not exceeding 5m2","No",{"v":6,"d":"6.00"},null,0]
[]
["43.8","Window size exceeding 5m2 not exceeding 6m2","No",{"v":6,"d":"6.00"},null,0]
[]
["43.9","Window size exceeding 6m2 not exceeding 7m2","No",{"v":6,"d":"6.00"},null,0]
[]
["44","Take off and carefully remove burglar screens and set aside for re-use (refixing measured elsewhere):"]
[]
["44.1","Burglar mesh screen sizes exceeding 0.5m2 ","No",{"v":6,"d":"6.00"},null,0]
[]
["44.2","Burglar mesh screen sizes exceeding 0.5m2  not exceeding 1m2","No",{"v":2,"d":"2.00"},null,0]
[]
["44.3","Burglar mesh screen sizes exceeding 1m2  not exceeding 1.5m2","No",{"v":2,"d":"2.00"},null,0]
[]
["44.4","Burglar mesh screen sizes exceeding 1.5m2  not exceeding 2m2","No",{"v":1,"d":"1.00"},null,0]
[]
["44.5","Burglar mesh screen sizes exceeding 2m2  not exceeding 3m2","No",{"v":1,"d":"1.00"},null,0]
[]
["44.6","Burglar mesh screen sizes exceeding 3m2  not exceeding 4m2","No",{"v":1,"d":"1.00"},null,0]
[]
["45","Take out and remove existing composite steel window/door complete and prepare to receive new aluminium composite window/door (new aluminium composite window/door elsewhere measured):"]
[]
["45.1","Steel shopfront size 5040 x 2120mm high overall","No",{"v":2,"d":"2.00"},null,{"$f":"+D149*E149","v":0}]
[]
["45.2","Take out and carefully remove sliding door approximate size 2300mm x 2100mm high overall including track, screws and any bolts used","No",{"v":6,"d":"6.00"},null,{"$f":"+D151*E151","v":0}]
[]
["45.3","Glazed timber window frames 1150 x 1520mm high from brick wall, not exceeding 2,5m2","No",{"v":12,"d":"12.00"},null,{"$f":"+D153*E153","v":0}]
[]
["45.4","Glazed timber window frames 1500 x 1520mm high from brick wall, not exceeding 2,5m2","No",{"v":13,"d":"13.00"},null,{"$f":"+D155*E155","v":0}]
[]
["45.5","Glazed timber window frames 1150 x 900mm high from brick wall, not exceeding 2,5m2","No",{"v":5,"d":"5.00"},null,{"$f":"+D157*E157","v":0}]
[]
["45.6","Glazed timber window frames 580 x 930mm high from brick wall, not exceeding 2,5m2","No",{"v":8,"d":"8.00"},null,{"$f":"+D159*E159","v":0}]
[]
["45.7","Glazed timber window frames 900 x 850mm high from brick wall, not exceeding 2,5m2","No",{"v":7,"d":"7.00"},null,{"$f":"+D161*E161","v":0}]
[]
["45.6","Glazed timber window frames 900 x 930mm high from brick wall, not exceeding 2,5m2","No",{"v":1,"d":"1.00"},null,{"$f":"+D163*E163","v":0}]
[]
["46","ROOFS, CEILINGS, CLADDING AND RELATED ITEMS"]
[null,"Taking down and removing roofs, floors, panelling, ceilings, partitions, etc."]
[]
["46.1","Corrugated iron roof covering, all existing pitched roof timber, existing steel rainwater goods, existing fascia and barge boards, existing painted knock up ceiling, etc. on unit size 8.94m x 15.09m on plan and on height approximately 3m above natural ground level.","No",{"v":5,"d":"5.00"},null,{"$f":"+D168*E168","v":0}]
[]
["46.2","Ditto, but on unit size 9.02m x 15.09m on plan.","No",{"v":1,"d":"1.00"},null,0]
[]
["46.3","Ditto, but on unit size 3.34m x 7.30m on plan.","No",{"v":6,"d":"6.00"},null,0]
[]
["46.4","Ditto, but on unit size 3.46m x 6.08m on plan.","No",{"v":1,"d":"1.00"},null,0]
[]
["46.5","Remove profiled sheeting"]
[]
["46.5.1","Take down IBR profile heavy industrial 85% transluscent glassfibre reinforced polyester roofing sheets, in single lengths, fixed to steel purlins ","m2",214,null,{"$f":"+D178*E178","v":0}]
[]
["46.5.2","Remove and take down IBR profile heavy industrial 85% transluscent glassfibre reinforced Polyester side wall sheets (side cladding), in single lengths, fixed to steel columns","m2",214,null,0]
[]
["46.6","REMOVING METAL ROOF SHEETING AND ACCESSORIES"]
[null,"Remove and take down 0,8mm thick\"Safintra Saflok\" or similar approved Aluminium IBR Roofing sheets And 0,8mm thick Accessories with Polyclosers where necessary, both with chromadek colour one side, in single sheet lengths and fixed to timber trusses "]
[]
["46.6.1","Roof covering with pitch not exceeding 25 degrees. ","m2",4017,null,{"$f":"+D185*E185","v":0}]
[]
["46.6.2","Corner trim. ","m",184,null,0]
[]
["46.6.3","Barge flashing","m",26,null,0]
[]
["46.6.4","Apex flashing. ","m",26,null,0]
[]
["46.6.5","Expanded polyethylene polycloser eaves filler. ","m",368,null,0]
[]
["46.6.6","Side cladding attached to steel purlins / columns","m2",3500,null,0]
[]
["46.7","Remove and take down Insulation "]
[]
["46.7.1","Strip and take down Sisalation 420 RSA reinforced aluminium foil insulation laid with 150mm wide laps at all joints on top of steel purlins on and including 2mm diameter galvanised wires tightly strained across tops of purlins at 500mm centres. ","m2",262,null,0]
[]
["46.8","Removing cement roof tiles"]
[]
["46.8.1","Carefully remove damaged cement roof tiles and replace with new roof tiles (elsewhere measured) to match existing as directed by the Project Manager / Principal Agent"]
[]
["46.8.2","Cement roof tiles including 38 x 38mm battens at 400mm centres","m2",950,null,0]
[]
["46.8.3","Cement ridge cappings","m",200,null,0]
[]
["46.9","Take down slate roof tiles and cart off site:"]
[]
["46.9.1","Carefully remove slate tiles and take off site damaged slate tiles as directed by the Project Manager or Principal Agent","m2",800,null,0]
[]
["46.9.2","Carefully remove slate tiles and replace with new (elsewhere measured) to match existing as directed by the Project Manager or Principal Agent","m2",800,null,0]
[]
["46.10","Take down fibre cement roof sheetings, slate tiles, etc and cart off site:"]
[]
["46.10.1","Fibre cement \"BigSix\" profile roof sheeting","m2",500,null,0]
[]
["46.10.2","Carefully remove slate tiles and take off site damaged or broken fibre cement roof sheeting as directed by the Project Manager or Principal Agent","m2",800,null,0]
[]
["46.10.3","Carefully remove existing fibre cement roof sheeting in patches (new sheeting elsewhere measured) as directed by the Project Manager or Principal Agent","m2",800,null,0]
[]
["46.11","Take down and remove sundry roof timbers, etc:"]
[]
["46.11.1","12 x 225mm wide fascia board fixed to timber rafters","m",25,null,0]
[]
["46.11.2","12 x 225mm wide barge board fixed to timber rafters","m",25,null,0]
[]
["46.11.3","38 x 52mm Purlins","m",350,null,0]
[]
["46.12","Take down and removing aluminium gutters and make good remaining surfaces and finishes:"]
[]
["46.12.1","Aluminium gutters fixed to fibre cement fascia","m",150,null,0]
[]
["46.13","Take down asbestors gutters and downpipes and cart off site (contractor to follow precautional guidelines as per OHSA):"]
[]
["46.13.1","Asbestos cement gutter fixed to fascia","m",30,null,0]
[]
["46.13.2","Asbestos cement down pipes with offsets, shoes and brackets","m",35,null,0]
[]
["46.14","Take down slate fibre cement roof gutters, including downpipes and cart off site:"]
[]
["46.14.1","Carefully remove and take off site damaged fibre cement gutters and downpipes as directed by the Project Manager or Principal Agent","m",30,null,0]
[]
["46.14.2","Carefully remove fibre cement water tanks located on the ground including disconnecting piping","No",5,null,0]
[]
["46.14.3","Carefully remove fibre cement water tanks located on steel structure 10m high above the ground including disconnecting piping","No",5,null,0]
[]
["46.15","Take down damaged timber eaves, eaves closure and barge boards and cart off site:"]
[]
["46.15.1","Carefully remove and take off damaged timber eaves, eaves closure and barge boards as directed by the Project Manager / Principal Agent","m",50,null,{"$f":"+D251*E251","v":0}]
[]
["46.16","Carefully taking out roof coverings to existing building at junction with new roof:"]
[]
["46.16.1","Corrugated galvanised mild steel sheeting","m2",45,null,0]
[]
["46.16.2","Allow for lifting as required and joining new to existing steel roof sheets and have junction seamlessly built and completely waterproofed with suitable laps, nailing and sealing as required","m",30,null,0]
[]
["46.17","Taking down and removing roofs, floors, panelling, ceilings, partitions, etc:"]
[]
["46.17.1","Carefully cut out damaged tongued and grooved timber roof boarding patches:","m2",55,null,0]
[]
["46.17.2","Valley linings","m2",65,null,0]
[]
["46.17.3","Counter flashings","m2",65,null,0]
[]
["46.17.4","Carefully remove existing waterproofing from concrete flat roof and prepare surfaces for new waterproofing","m2",65,null,0]
[]
["46.17.5","Malthoid underlay to roof coverings","m2",950,null,0]
[]
["46.17.6","Slatted timber eaves soffit lining","m2",330,null,0]
[]
["46.17.7","Wood framed louvre panels","m2",150,null,0]
[]
["46.17.8","Fullbore outlets","No",5,null,0]
[]
["46.17.9","Suspended ceilings including grid, etc","m2",1200,null,0]
[]
["46.17.10","Gypsum plasterboard ceilings, including cornices, timber brandering, etc and prepare to receive new (new elsewhere measured)","m2",1000,null,0]
[]
["46.17.11","Gypsum plasterboard ceilings (timber brandering left in position)","m2",950,null,0]
[]
["46.17.12","Acoustic tile suspended ceilings including suspension grid, hangers, etc","m2",1200,null,0]
[]
["46.17.13","Timber skirtings","m",{"v":502,"d":"502.00"},null,0]
[]
[47,"Taking out and removing sundry joinery work:"]
[]
["47.1","Built-in wardrobe 2085mm in length and aprroximately 2500mm high in bedroom.","No",{"v":12,"d":"12.00"},null,0]
[]
["47.2","Built-in wardrobe 1300mm in length and aprroximately 2500mm high in passage.","No",{"v":1,"d":"1.00"},null,0]
[]
["47.3","Built-in wardrobe 3600mm in length and aprroximately 2500mm high in bedroom.","No",{"v":1,"d":"1.00"},null,0]
[]
["47.4","Built-in cupboard with counter top 2600mm in length and aprroximately 2500mm high in kitchen.","No",{"v":6,"d":"6.00"},null,0]
[]
["47.5","L-shaped Built-in cupboard with counter top 2300mm in length and aprroximately 2500mm high in kitchen.","No",{"v":6,"d":"6.00"},null,0]
[]
["47.6","Built-in cupboard with counter top and single bowl sink 2000mm in length and aprroximately 950mm high in kitchen.","No",{"v":6,"d":"6.00"},null,0]
[]
["47.7","Cupboards 2400mm high","m",100,null,{"$f":"+D301*E301","v":0}]
[]
["47.8","Floor cupboards 700mm high","m",100,null,0]
[]
["47.9","Wall cupboards 400mm high","m",100,null,0]
[]
["47.10","Wall mounted shelf size 3000 x 300mm wide","No",5,null,0]
[]
["47.11","Worktops","m",50,null,0]
[]
["47.12","Timber cornices from brickwork","m",350,null,0]
[]
["47.13","Timber sills from brickwork","m",150,null,0]
[]
["47.14","Timber dado rail from brickwork","m",80,null,0]
[]
["47.15","Remove and replace duct board size 1000 x 400mm high","m",50,null,0]
[]
["47.16","Taking off and removing skirtings:"]
[]
["47.17","Vinyl skirtings from walls","m",600,null,{"$f":"+D321*E321","v":0}]
[]
["47.18","Timber skirtings from brickwork","m",600,null,0]
[]
[48,"Taking out/off and removing sundry metalwork","No",{"v":6,"d":"6.00"},null,0]
[]
["48.1","Double security gates 2460 x 2120mm from existing 230mm wall.","No",{"v":6,"d":"6.00"},null,0]
[]
["48.2","Single security gates 900 x 1500mm from existing 230mm wall.","No",{"v":24,"d":"24.00"},null,0]
[]
["48.3","Security screen size 1840 x 2120mm from existing 230mm wall.","No",{"v":12,"d":"12.00"},null,0]
[]
["49","Hacking up/off and removing granolithic, screeds, plaster, etc. from concrete or brickwork and preparing surfaces for new screed, plaster, tile finishes, etc."]
[]
["49.1","25mm floor screed and prepare concrete floors to receive new screed","m²",{"v":293,"d":"293.00"},null,0]
[]
["49.2","Internal plaster from walls, columns and prepare walls to receive new plaster.","m²",{"v":349,"d":"349.00"},null,0]
[]
["49.3","External plaster from walls and prepare walls to receive new plaster.","m²",{"v":227,"d":"227.00"},null,{"$f":"+D339*E339","v":0}]
[]
[null,"Hacking up/off and removing granolithic, screeds, plaster, etc from concrete or brickwork and preparing surfaces for new screed, plaster, etc:"]
[]
["49.4","Vinyl tile floor covering including preparing screed for new carpet, vinyl sheeting or tile etc (new floor finish elsewhere measured)","m2",70,null,{"$f":"+D343*E343","v":0}]
[]
["49.5","Carpet floor covering including preparing screed for new carpet, vinyl sheeting or tile etc (new floor finish elsewhere measured)","m2",2000,null,0]
[]
["49.6","Parquet floor covering including preparing new screed (elsewhere measured)","m2",500,null,0]
[]
["49.7","Linoleum floor covering including preparing new screed (elsewhere measured)","m2",500,null,0]
[]
["49.8","30mm Granolithic from floors","m2",200,null,0]
[]
["49.9","9mm thick Terrazzo flooring","m2",1200,null,0]
[]
["49.10","150 x 150mm Tiles on walls","m2",50,null,0]
[]
["49.11","200 x 200mm Tiles on splashbacks","m2",50,null,0]
[]
["49.12","200 x 200mm Tiles on walls","m2",50,null,0]
[]
["49.13","200 x 200mm Tiles on floors","m2",50,null,0]
[]
["49.14","400 x 400mm Tiles on floors","m2",50,null,0]
[]
["49.15","Quarry tiles on floors","m2",50,null,0]
[]
["49.16","Tile skirting 75mm high","m",300,null,0]
[]
[null,"Taking out/off and removing sundry metalwork:"]
[]
["49.17","Steel corner edge protection from concrete surface bed, including making good finish","m",45,null,0]
[]
["49.18","Steel balustrades 1100mm high from concrete surface bed, including making good finish","m",45,null,0]
[]
[50,"Taking out and removing ironmongery:"]
[]
["50.1","Towel rail","No",2,null,0]
[]
["50.2","Stainless steel toilet roll holder","No",2,null,0]
[]
["50.3","Soap dispenser","No",5,null,0]
[]
["50.4","Paper towel dispenser","No",5,null,{"$f":"+D383*E383","v":0}]
[]
["50.5","Coat hooks","No",5,null,0]
[]
[null,"Remove and replace ironmongery:"]
[]
["50.6","Brass window sliding stays","No",4,null,0]
[]
["50.7","Brass window handles","No",4,null,0]
[]
[null,"Taking out and removing various types of signage and billboards (making good wall finishes elsewhere measured)"]
[]
[51,"Signage and billboard, including support framing brackets","m2",10,null,0]
[]
[null,"Carefully remove sundry metalwork and later refixing in similar position"]
[]
[52,"Remove and refix aluminium stair nosing","m",13,null,0]
[]
[53,"Taking out and removing glass and mirrors:"]
[]
["53.1","Mirror 400 x 600mm high wall","No",2,null,0]
[]
["53.2","Mirror 400 x 1000mm high wall","No",2,null,0]
[]
[54,"Taking off and removing blinds, pelmets, etc:"]
[]
["54.1","Blinds to suit approximate window size 800 x 2100mm high","No",2,null,0]
[]
["54.2","Timber or steel pelmet from brickwork or concrete","m",120,null,0]
[]
["54.3","Steel curtain rail from brickwork or concrete","m",120,null,0]
[]
[]
[55,"Remove and take down Insulation Rain Water Goods"]
[]
[null,"Strip down Insulation 0,8mm Thick Watertite Seamless Pre-Painted Aluminium Ogee Gutter, Rainwater Pipe And Accessories In Long Lengths "]
[]
["55.1","200 x 250mm Eaves gutter fixed to steel purlines. ","m",142,null,0]
[]
["55.2","300 x 150mm Eaves gutter fixed to steel purlines. ","m",16,null,0]
[]
["55.2","100 x 125mm Eaves gutter fixed to fibre cement fascia. ","m",60,null,0]
[]
[56,"Taking  out and removing piping, sanitary fittings, etc., including cutting off as necessary, disconnecting  piping  from fittings  and  making good floor and wall finishes (making good tiling and paintwork elsewhere)"]
[]
["56.1","PVC piping not exceeding 50mm diameter","m",{"v":280,"d":"280.00"},null,0]
[]
["56.2","PVC piping not exceeding 110mm diameter","m",{"v":280,"d":"280.00"},null,0]
[]
["56.3"," PVC piping not exceeding 150mm diameter","m",{"v":280,"d":"280.00"},null,0]
[]
["56.4","Vitreous china wash hand basin, including two bib taps, short lengths of piping, etc.","No",{"v":8,"d":"8.00"},null,0]
[]
["56.5","Vitreous china WC pan with cistern, including short lengths of piping, etc.","No",{"v":8,"d":"8.00"},null,0]
[]
["56.6","Vitreous china WC pan hung urinal with flush valve","No",{"v":8,"d":"8.00"},null,0]
[]
["56.7","Stainless steel wall sink, including bib taps and drainer, including short lengths of piping, etc.","No",{"v":6,"d":"6.00"},null,0]
[]
["56.8","Stainless steel wall trough urinal cisterns","No",{"v":6,"d":"6.00"},null,0]
[]
["56.9","Taking out and removing glass and mirrors. Size 300 x 800mm","No",{"v":4,"d":"4.00"},null,{"$f":"+D444*E444","v":0}]
[]
["56.10","Taking out and removing glass and mirrors. Mirror 300 x 300mm high from wall","No",{"v":8,"d":"8.00"},null,{"$f":"+D446*E446","v":0}]
[]
["56.11","15mm Copper piping including fittings and brackets","m",{"v":200,"d":"200.00"},null,0]
[]
["56.12","22mm Copper piping including fittings and brackets","m",{"v":200,"d":"200.00"},null,0]
[]
["56.13","40mm uPVC pipes","m",{"v":200,"d":"200.00"},null,0]
[]
["56.14","50mm uPVC pipes","m",{"v":200,"d":"200.00"},null,0]
[]
["56.15","Stainless steel double bowl sink including sink mixer","No",{"v":15,"d":"15.00"},null,0]
[]
["56.16","Stainless steel wash hand basin including removing of taps, etc","No",{"v":15,"d":"15.00"},null,0]
[]
["56.17","Bath including removal of taps","No",{"v":15,"d":"15.00"},null,0]
[]
["56.18","Shower fitting comprising underwall stopcocks, rose and arm and floor trap","No",{"v":15,"d":"15.00"},null,0]
[]
["56.19","Wash hand basin including 2 No. bib taps","No",{"v":2,"d":"2.00"},null,0]
[]
["56.20","Plastic WC cisterns","No",{"v":2,"d":"2.00"},null,0]
[]
["56.21","Mixer with elbow action heads","No",{"v":2,"d":"2.00"},null,0]
[]
["56.22","Pillar taps","No",{"v":10,"d":"10.00"},null,0]
[]
["56.23","Hot water cylinders not exceeding 250 litres","No",{"v":2,"d":"2.00"},null,0]
[]
["56.24","Drip trap to Hot water cylinders (HWC)","No",{"v":2,"d":"2.00"},null,0]
[]
["57","CLEANING OF RAINWATER GOODS"]
[null,"Quarterly cleaning of gutters and downpipes on buildings including removal of debris and vegetation growth; and disposal at an appropriate site:"]
[]
["57.1","Buildings with heights exceeding 3 metre high, not exceeding 4,5 metre high","m",{"v":25,"d":"25.00"},null,0]
[]
["57.1","Buildings with heights exceeding 4,5 metre high, not exceeding 6 metre high","m",{"v":35,"d":"35.00"},null,0]
[]
["57.3","Buildings with heights exceeding 6 metre high","m",{"v":30,"d":"30.00"},null,0]
[]
[]
["58","CEILING REPLACEMENT"]
[]
[null,"7 mm PVC and gysum ceiling and fixing accessories fixed to 38x50 pine brandering at 450 mm centres one way, with and including 32x2.5mm galvanised serrated ceiling nails with 75mm polystyrene coved cornice, painted white:"]
[]
["58.1","Remove suspended ceiling ","m2",140,null,0]
[]
["58.2","75mm Coved cornice","m",110,null,0]
[]
["58.3","Remove gypsum ceiling","m2",15,null,0]
[]
[59,"MAKING GOOD OF FINISHES, ETC"]
[]
["59.1","Making good internal cement plaster"]
[]
["59.2","Walls in patches. (Provisional)","m²",{"v":200,"d":"200.00"},null,0]
[]
["59.3","Walls where 110mm brick walls removed","m²",{"v":10,"d":"10.00"},null,0]
[]
["59.4","Walls where 220mm brick walls removed","m²",{"v":10,"d":"10.00"},null,0]
[]
["59.5","Making good external cement plaster","m2",250,null,0]
[]
["59.6","Walls in patches. (Provisional)","m²",{"v":220,"d":"220.00"},null,0]
[]
["59.7","Walls where 230mm brick walls removed","m²",{"v":15,"d":"15.00"},null,{"$f":"+D510*E510","v":0}]
[]
["59.8","Walls where 110mm brick walls removed","m²",{"v":15,"d":"15.00"},null,0]
[]
[null,"Repairing cracks in walls:"]
[]
["59.9","Carefully opening crack in existing half brick wall, preparing, filling and sealing with an approved epoxy filling and finishing off flush to adjacent finishes, including stitching into mortar joints across crack.","m",{"v":85,"d":"85.00"},null,0]
[]
["59.10","Carefully opening crack in existing cavity brick wall, preparing, filling and sealing with an approved epoxy filling and finishing off flush to adjacent finishes, including stitching into mortar joints across crack.","m",{"v":80,"d":"80.00"},null,0]
[]
["60","BUILDING UP OPENINGS"]
[]
[null,"Brickwork in NFP bricks in class II mortar in building up openings"]
[]
["60.1","110mm brick walls","m²",{"v":110,"d":"110.00"},null,0]
[]
["60.2","220mm Brick walls","m²",{"v":400,"d":"400.00"},null,0]
[]
["60.3","280 hollow walls of two half skins","m²",{"v":112,"d":"112.00"},null,0]
[]
["60.4","Mass brickwork","m3",{"v":86,"d":"86.00"},null,0]
[]
[]
["61","OPENINGS THROUGH EXISTING WALLS ETC"]
[]
[null,"Altering openings"]
[]
["61.1","Altering opening in one brick wall where 900 x 850mm high steel window removed to form opening for new timber door and frame size 900 x 2040mm high by breaking out brickwork on both sides and bottom, including making good cement plaster on both sides and into reveals (new door and making good paintwork elsewhere)","No",{"v":1,"d":"1.00"},null,0]
[]
["61.2","Altering opening for aluminium window size 1100 x 1220mm high overall by cutting out and removing concrete lintol over, solid brickwork at  reveals for full height of door, remove floor finish in opening, brick up opening as required 812mm below window cill and above insert concrete lintol over window opening, close up cavity at reveals and damp proof course, make good plaster both sides returned into reveals of opening, make good skirting on one side (new cills, new window and making good paintwork elsewhere measured)","No",{"v":5,"d":"5.00"},null,0]
[]
["62","Taking down and removing:"]
[]
["62.1","Palisade Security fence up to 3m high complete ","m",{"v":85,"d":"85.00"},null,0]
[]
["62.2","Half brick boundary or yard wall 2.10m high with 220mm x 220mm brick piers not exceeding 3m intervals.","m",55,null,0]
[]
["62.3","High security chain link fence 3m high complete ","m",50,null,{"$f":"+D547*E547","v":0}]
[]
["62.4","Welded mesh fencing up to 3m high complete ","m",55,null,{"$f":"+D549*E549","v":0}]
[]
["62.5","Electric fence, taut wire fence and fence Detection Systems up to 3m high complete ","m",50,null,{"$f":"+D551*E551","v":0}]
[]
[]
[null,"Sub total (Bill No. 2)"]

{"sheet":"BILL NO.3","index":2,"n_rows":114,"n_cols":6,"rows_kept":114}
[null,"DESCRIPTION","UNIT","QUANTITY","RATE","AMOUNT"]
[]
[null,"BILL NO.3"]
[]
[null,"EARTHWORKS (PROVISIONAL)"]
[]
[63,"SITE CLEARANCE, ETC."]
[]
[null,"Site clearance etc:"]
[]
["63.1","Digging up and removing rubbish, debris, vegetation, hedges,  shrubs and trees not exceeding 200mm girth, bush, etc.","m²",{"v":25,"d":"25.00"},null,{"$f":"D11*E11","v":0}]
[]
["63.2","Stripping average 150mm thick layer of top soil and stockpiling  on site.","m²",{"v":150,"d":"150.00"},null,{"$f":"D13*E13","v":0}]
[]
[]
["63.3","Cut down and remove tree exceeding 200mm and not exceeding 500mm girth, grub up and remove roots, fill hole with earth selected from the excavated material and consolidate. ","No",15,null,0]
[]
["63.4","Ditto, but exceeding 500mm and not exceeding 1000mm girth. ","No",5,null,0]
[]
[]
[64,"EXCAVATION, FILLING, ETC OTHER THAN BULK"]
[]
[null,"Excavation in earth not exceeding 2m deep:"]
[]
["64.1","Trenches.","m3",{"v":15,"d":"15.00"},null,0]
[]
["64.2","Holes.","m3",{"v":1,"d":"1.00"},null,0]
[]
["64.3","Reduced levels under floors.","m3",{"v":6,"d":"6.00"},null,0]
[]
["64.4","Foundation beam ","m3",7,null,0]
[]
["64.5","Ditto, but for column bases. ","m3",81,null,0]
[]
["64.6","Extra over excavations in earth to bases and trenches for excavation in soft rock. ","m3",45,null,0]
[]
["64.7","Ditto, but in hard rock. ","m3",22,null,0]
[]
["64.8","Excavate in earth for working space (at Contractor's discretion) exceeding 500mm and not exceeding 1500mm deep","m2",64,null,0]
[]
["64.9","Extra over ditto for excavation in soft rock. ","m2",6,null,0]
[]
["64.10","Ditto, but for excavation in hard rock. ","m2",3,null,0]
[]
["64.11","Extra over all excavations for carting away from the site all surplus excavated material. ","m3",115,null,0]
[]
["64.12","Allow for risk of collapse to sides of trench and base excavations not exceeding 1500mm deep. ","m2",200,null,0]
[]
["64.13","Allow for keeping excavations free from water. ","Item",1,null,0]
[]
["64.14","Earth filling, selected by the Contractor from the excavated material, deposited in layers not exceeding 150mm thick, watered and consolidated as backfilling to trenches, bases, etc. ","m3",220,null,0]
[]
["64.15","Earth filling, selected and supplied by the Contractor, deposited in layers not exceeding 150mm thick, watered and consolidated to 95% modified AASHTO density under floors, etc. ","m3",155,null,0]
[]
["64.16","Clean, dry, sand filling, selected and supplied, deposited, watered and consolidated in 25mm thick blinding layer under floors, etc. ","m3",55,null,0]
[]
["64.17","Ant proofing treatment to surfaces of ground under floors, etc including forming, saturating with ant poisoning solution, filling and consolidating 75 x 75mm V-shaped grooves along face of walls, including provision of certificate by anti-termite soil poison Registered Pest Control Company and guaranteed against termite infestation for ten years:","m2",250,null,0]
[]
["64.18","Provide and have filling compaction tested by a Consulting Engineer's Laboratory and deliver the results to the Architect / Project Manager within 24 hours of the tests being completed. ","No",15,null,0]
[]
[null,"Extra over trench and hole excavations in earth for excavation:"]
[]
["64.19","Soft Rock.","m3",{"v":2,"d":"2.00"},null,0]
[]
["64.20","Hard Rock.","m3",{"v":1,"d":"1.00"},null,0]
[]
[null,"Extra over all excavations for carting away:"]
[]
["64.21","Allow for spreading and levelling of surplus material on site in layer not exceeding 15mm and not exceeding 25m distance","m2",{"v":85,"d":"85.00"},null,{"$f":"D69*E69","v":0}]
[]
["64.22","Surplus material from excavations and/or stock piles on site to  a dumping site to be located by the contractor.","m3",{"v":15,"d":"15.00"},null,0]
[]
[null,"Risk of collapse of excavations:"]
[]
["64.23","Sides of trench and hole excavations not exceeding 1,5m deep.","m2",{"v":25,"d":"25.00"},null,0]
[]
[null,"Keeping excavations free of water:"]
[]
["64.24","Keeping excavations free of water.","Item",{"v":1,"d":"1.00"},null,0]
[]
[65,"FILLING ETC"]
[]
[null,"Earth filling obtained from the excavations and/or prescribed stock piles on site, compacted to 93% Mod AASHTO density:"]
[]
["65.1","Under floors, steps, pavings, etc.","m3",{"v":2,"d":"2.00"},null,0]
[]
["65.2","Backfilling to trenches, holes, etc.","m3",{"v":4,"d":"4.00"},null,0]
[]
[null,"Earth filling supplied by the contractor, compacted to 95% Mod AASHTO density."]
[]
["65.3","Under floors, steps, pavings, etc.","m3",{"v":6,"d":"6.00"},null,{"$f":"D91*E91","v":0}]
[]
[null,"Earth filling of G5 material supplied by the contractor compacted in 150mm layers compacted to 98% Mod AASHTO to density"]
[]
["65.3","Under floors, steps, pavings, etc.","m3",{"v":2,"d":"2.00"},null,{"$f":"D95*E95","v":0}]
[]
["65.5","Backfilling to trenches, holes, etc.","m3",{"v":4,"d":"4.00"},null,{"$f":"D97*E97","v":0}]
[]
[null,"Earth filling of G7 material supplied by the contractor compacted in 150mm layers compacted to 95% Mod AASHTO to density"]
[]
["65.6","Under floors, steps, pavings, etc.","m3",{"v":2,"d":"2.00"},null,{"$f":"D101*E101","v":0}]
[]
[null,"Coarse river sand filling supplied by the contractor:"]
[]
["65.7","Under floors etc.","m3",{"v":1,"d":"1.00"},null,0]
[]
[null,"Compaction of surfaces"]
[]
["65.8","Compaction of ground surface under floors, etc, including scarifying for a depth of 150mm, breaking down oversize material, adding suitable material where necessary and compacting to 93% Mod AASHTO density ","m2",{"v":85,"d":"85.00"},null,{"$f":"D109*E109","v":0}]
[]
[66,"\"Field Density\" test, including \"Optimum Moisture Content\" (four readings per test).","No",{"v":2,"d":"2.00"},null,0]
[]
[]
[null,"Sub total (Bill No 3)"]

{"sheet":"BILL NO. 4","index":3,"n_rows":203,"n_cols":6,"rows_kept":203}
[null,"DESCRIPTION","UNIT","QUANTITY","RATE","AMOUNT"]
[]
[null,"BILL NO.4"]
[]
[67,"CONCRETE, FORMWORK AND REINFORCEMENT (PROVISIONAL)"]
[]
[null,"NOTE:All reinforced concrete is to be compacted with a mechanical vibrator. All formwork shall include for propping to not exceeding 3500mm high unless otherwise described. Formwork to sides of walls and columns shall be to walls and columns not exceeding 3500mm high unless otherwise described.Formwork to soffits of solid slabs shall be to slabs not exceeding 250mm thick unless otherwise described.-------------------- "]
[]
[null,"CONCRETE(CPAP Work Group No. 110 Unless Otherwise Stated) "]
[]
[null,"TESTS NOTE: Should the strength required for the concrete in any portion of the structure not be attained in the test cubes, or should any concrete whatsoever be defective the portion in question is to be demolished and replaced at the expense of the Contractor.-------------------- "]
[null,"REINFORCED CONCRETE CAST AGAINST EXCAVATED SURFACES (PROVISIONAL)"]
[]
[null,"25MPa/20mm concrete:"]
[]
["67.1","Footings and Ground Beams.","m3",{"v":3,"d":"3.00"},null,{"$f":"D16*E16","v":0}]
[]
["67.2","Surface beds on waterproofing.","m3",{"v":1,"d":"1.00"},null,{"$f":"D18*E18","v":0}]
[]
["67.3","Concrete to V channel in aprons.","m3",{"v":2,"d":"2.00"}]
[]
["67.4","Column bases.","m3",{"v":1,"d":"1.00"},null,{"$f":"D22*E22","v":0}]
[]
["67.5","Cavity fill.","m3",{"v":1,"d":"1.00"},null,{"$f":"D24*E24","v":0}]
[]
["67.6","Concrete in Beams","m3",{"v":3,"d":"3.00"},null,{"$f":"D26*E26","v":0}]
[]
["67.7","Stairs including steps, landings, beams and inverted beams. ","m3",2,null,{"$f":"D28*E28","v":0}]
[]
["67.8","Isolated beams. ","m3",4,null,{"$f":"D30*E30","v":0}]
[]
["67.9","Columns. ","m3",1,null,{"$f":"D32*E32","v":0}]
[]
[null,"Reinforced cement concrete (30MPa, 19/38mm stone mix with a washed concrete crusher sand and maximum water ratio of 0,55):               "]
[]
["67.10","Surface beds on waterproof sheeting. ","m3",6,null,{"$f":"D36*E36","v":0}]
[]
[null,"Narrow surfaces"]
[]
["67.11","Columns in foundation","m3",2,null,{"$f":"D40*E40","v":0}]
[]
["67.12","Columns","m3",4,null,{"$f":"D42*E42","v":0}]
[]
["67.13","Beams","m3",2,null,{"$f":"D44*E44","v":0}]
[]
["67.14","Lift shaft","m3",3,null,{"$f":"D46*E46","v":0}]
[]
["67.15","Ramps","m3",2,null,{"$f":"D48*E48","v":0}]
[]
["67.16","Staircase including landings","m3",1,null,{"$f":"D50*E50","v":0}]
[]
["67.17","Slabs","m3",3,null,{"$f":"D52*E52","v":0}]
[]
["67.18","Cantilever slabs","m3",2,null,{"$f":"D54*E54","v":0}]
[]
["67.19","Plinth","m3",1,null,{"$f":"D56*E56","v":0}]
[]
[null,"Unreinforced Cement Concrete (15MPa) In:"]
[]
["67.20","Blinding under bases. ","m3",4]
[]
["67.21","Blinding under foundation beams.","m3",0.4]
[]
[null,"Cement Concrete (10 MPa)"]
[]
["67.22","10MPa Blinding","m3",{"v":18,"d":"18.00"},null,{"$f":"E66*D66","v":0}]
[]
[null,"CONCRETE SUNDRIES "]
[]
["67.23","Float top of concrete with a wood float and finish with a brushed non-skid surface whilst concrete is still green with the addition of 2.1 sand and cement as necessary. ","m2",28,null,{"$f":"E70*D70","v":0}]
[]
["67.24","Float top of concrete with a wood float to falls and finish with a brushed non-skid surface whilst concrete is still green with the addition of 2.1 sand and cement as necessary. ","m2",100,null,{"$f":"E72*D72","v":0}]
[]
["67.25","Power float top of concrete to a dead level, hardwearing, smooth surface in accordance with SABS 0100 Code of Practice. ","m2",3626,null,{"$f":"E74*D74","v":0}]
[]
["67.26","40mm Thick non-shrink grout under base plates size 500 x 600mm including chamfered edge all around. ","No",46,null,{"$f":"E76*D76","v":0}]
[]
["67.27","Take delivery of set of four holding down bolts and cast into exact position in top of column or base including template, etc. ","No",46,null,{"$f":"E78*D78","v":0}]
[]
[68,"ROUGH FORMWORK (DEGREE OF ACCURACY III)"]
[]
[null,"Rough formwork to sides:"]
[]
["68.1","Concrete aprons.","m",{"v":21,"d":"21.00"},null,{"$f":"E84*D84","v":0}]
[]
["68.2","Sides & soffits of isolated beams","m2",{"v":10,"d":"10.00"},null,{"$f":"E86*D86","v":0}]
[]
["68.3","Cantilever slabs","m2",{"v":12,"d":"12.00"},null,{"$f":"E88*D88","v":0}]
[]
["68.4","Slabs","m2",{"v":150,"d":"150.00"},null,{"$f":"E90*D90","v":0}]
[]
["68.5","Staircase including landings","m2",{"v":4,"d":"4.00"},null,{"$f":"E92*D92","v":0}]
[]
[null,"Class F1 Formwork To "]
[]
["68.6","Steppings to footings. ","m2",90,null,{"$f":"E96*D96","v":0}]
[]
["68.7","Sides of foundation beams. ","m2",38,null,{"$f":"E98*D98","v":0}]
[]
["68.8","Sides of square or rectangular columns. ","m2",85,null,{"$f":"E100*D100","v":0}]
[]
["68.9","Edges, risers, ends and reveals not exceeding 300mm high or wide. ","m",409,null,{"$f":"E102*D102","v":0}]
[]
[69,"SMOOTH FORMWORK (DEGREE OF ACCURACY II)"]
[]
[null,"Smooth formwork to sides:"]
[]
["69.1","Plinths","m2",{"v":24,"d":"24.00"},null,{"$f":"E108*D108","v":0}]
[]
["69.2","Landings","m2",2.52,null,{"$f":"E110*D110","v":0}]
[]
["69.3","Walls","m2",118,null,{"$f":"E112*D112","v":0}]
[]
["69.4","Roof slabs","m2",110,null,{"$f":"E114*D114","v":0}]
[]
["69.5","Upstand beams","m2",32,null,{"$f":"E116*D116","v":0}]
[]
["69.6","Smooth formwork to soffits","m",110,null,{"$f":"E118*D118","v":0}]
[]
["69.7","Roof slabs","m2",55,null,{"$f":"E120*D120","v":0}]
[]
[70,"ROUGH FORMWORK (DEGREE OF ACCURACY II)"]
[]
[null,"Rough Formwork to Sides:"]
[]
["70.1","Edges, risers, ends and reveals not exceeding 300mm high or wide","m",{"v":110,"d":"110.00"},null,{"$f":"D126*E126","v":0}]
[]
[71,"Bitumen impregnated softboard expansion joints "]
[]
["71.1","Joint not exceeding 300mm high or wide formed of one layer 10mm thick softboard set between vertical concrete or brick surfaces. ","m",35,null,{"$f":"E130*D130","v":0}]
[]
["71.2","Soffit of landings. ","m2",1,null,{"$f":"E132*D132","v":0}]
[]
["71.3","Sloping soffit of stairs. ","m2",6,null,{"$f":"E134*D134","v":0}]
[]
["71.4","Sides and soffits of isolated beams. ","m2",14,null,{"$f":"E136*D136","v":0}]
[]
["71.5","Sides of square or rectangular columns. ","m2",9,null,{"$f":"E138*D138","v":0}]
[]
["71.6","Edges, risers, ends and reveals not exceeding 300mm high or wide. ","m",15,null,{"$f":"E140*D140","v":0}]
[]
["71.7","Sloping and stepped edge of stairs ?mm high extreme. ","m",13,null,{"$f":"E142*D142","v":0}]
[]
[72,"REINFORCEMENT (PROVISIONAL)"]
[]
["A","Mild tensile steel reinforcement to structural concrete work:"]
[]
["72.1","Plinths","t",{"v":0.5,"d":"0.50"},null,{"$f":"E148*D148","v":0}]
[]
["72.2","Landings","t",{"v":0.2,"d":"0.20"},null,{"$f":"E150*D150","v":0}]
[]
["72.3","Walls","t",{"v":3,"d":"3.00"},null,{"$f":"E152*D152","v":0}]
[]
["72.4","Roof slabs","t",{"v":2,"d":"2.00"},null,{"$f":"E154*D154","v":0}]
[]
["72.5","Upstand beams","t",{"v":0.5,"d":"0.50"},null,{"$f":"E156*D156","v":0}]
[]
["B","High tensile steel reinforcement to structural concrete work:"]
[]
["72.6","8mm Diameter bars.","t",{"v":0.5,"d":"0.50"},null,{"$f":"E160*D160","v":0}]
[]
["72.7","10mm Diameter bars.","t",{"v":0.5,"d":"0.50"},null,{"$f":"E162*D162","v":0}]
[]
["72.8","12mm Diameter bars.","t",{"v":0.5,"d":"0.50"},null,{"$f":"E164*D164","v":0}]
[]
[null,"Fabric reinforcement:"]
[]
["72.9","Type 193 fabric reinforcement in concrete surface beds, slabs, etc.","m2",{"v":15,"d":"15.00"},null,{"$f":"E168*D168","v":0}]
[]
["72.10","High tensile steel mesh Ref. 100 to concrete surface beds, slabs, etc. ","m2",174,null,{"$f":"E170*D170","v":0}]
[]
["72.11","Type 395 fabric reinforcement in concrete plints,etc","m2",{"v":15,"d":"15.00"},null,{"$f":"E172*D172","v":0}]
[]
["72.12","Type 395 fabric reinforcement in concrete landings,etc","m2",{"v":15,"d":"15.00"},null,{"$f":"E174*D174","v":0}]
[]
[73,"High tensile steel dowel bars"]
[]
["73.1","12mm Diameter bar 900mm long with one end embedded 150mm deep in side of existing concrete using Hilti HIT-RE 500 or similar approved","No",{"v":65,"d":"65.00"},null,{"$f":"E178*D178","v":0}]
[]
[74,"MOVEMENT JOINTS ETC"]
[null,"REMOVING METAL ROOF SHEETING AND ACCESSORIES"]
[null,"Expansion joints with bitumen impregnated softboard between vertical concrete or brick surfaces:"]
[]
["74.1","10mm Joints not exceeding 300mm high (Provisional). ","m",{"v":9,"d":"9.00"},null,{"$f":"D184*E184","v":0}]
[]
[null,"Approved polysulphide sealing compound including backing cord, bond breaker, primer etc.:"]
[]
[]
["74.2","10 x 10mm In vertical expansion joints between concrete and  brick surfaces, including raking out expansion joint filler as  necessary (Provisional).","m",{"v":9,"d":"9.00"},null,{"$f":"D189*E189","v":0}]
[]
[null,"Vertical construction joints through concrete including thick cement slurry to one face:"]
[]
["74.3","Surface beds not exceeding 300mm thick.","m",{"v":9,"d":"9.00"},null,{"$f":"D193*E193","v":0}]
[]
[null,"Saw-cut joints:"]
[]
["74.4","3 x 40mm Saw-cut joints in top of concrete. ","m",{"v":9,"d":"9.00"},null,{"$f":"D197*E197","v":0}]
[]
[null,"Construction Joints "]
[]
["74.5","Vertical joggle joint 150mm high between vertical concrete surfaces with and including 2.1 cement slurry to one face. ","m",400,null,{"$f":"D201*E201","v":0}]
[]
[null,"Sub total (Bill No 4)"]

{"sheet":"BILL NO.5","index":4,"n_rows":22,"n_cols":6,"rows_kept":22}
[null,"DESCRIPTION","UNIT","QUANTITY","RATE","AMOUNT"]
[]
[75,"PRECAST CONCRETE (CPAP Work Group No. 112 Unless stated otherwise)"]
[]
[null,"Precast prestressed concrete (30 Mpa) including necessary moulds, reinforcement, formwork, etc and hoisting and fixing in position:"]
[]
["75.1","Lintol size 105 x 75mm high in varying lengths and building  ends 150mm deep into brickwork in 1:3 cement mortar.","m",{"v":8,"d":"8.00"}]
[]
[]
["75.1","110 x 75mm Lintels in lengths not exceeding 3m.","m",{"v":55,"d":"55.00"},null,{"$f":"D10*E10","v":0}]
[]
[null,"Shukuma Or similar approved precast concrete slab 150 span D (Wiring 7x5mmx9.53) with 75mm concrete topping reinforced with Mesh Ref. 100"]
[]
["75.2","200mm thick hollow core precast concrete suspended floor slab.","m2",78,null,{"$f":"D14*E14","v":0}]
[]
[null,"Precast concrete finished smooth on exposed surfaces including bedding, jointing and pointing"]
[]
["75.3","2600 x 1400 x 300mm thick hollow core precast concrete including bedding edges all round, including lifting eye (reinforcement elsewhere measured)","No",3,null,{"$f":"D18*E18","v":0}]
[]
["75.4","2400 x 1400 x 300mm thick hollow core precast concrete including bedding edges all round, including lifting eye (reinforcement elsewhere measured)","No",3,null,{"$f":"D20*E20","v":0}]
[]
[null,"Sub total (Bill No 5)"]

{"sheet":"BILL NO. 6","index":5,"n_rows":106,"n_cols":6,"rows_kept":106}
[null,"DESCRIPTION","UNIT","QUANTITY","RATE","AMOUNT"]
[]
[null,"BILL NO.6"]
[]
[76,"MASONRY (PROVISIONAL)"]
[]
[null,"BRICKWORK IN FOUNDATIONS"]
[]
[null,"Brickwork of NFX bricks (14 MPa nominal compressive strength) in Class I mortar:"]
[]
["76.1","440 x 660mm brick piers.","m³",{"v":9,"d":"9.00"},null,{"$f":"D11*E11","v":0}]
[]
["76.2","One brick walls.","m²",{"v":30,"d":"30.00"},null,{"$f":"D13*E13","v":0}]
[]
[null,"Brickwork of 17 MPa nominal compressive strength in class 1 mortar:"]
[]
["76.3","Half brick walls ","m2",{"v":2,"d":"2.00"},null,{"$f":"D17*E17","v":0}]
[]
["76.4","One brick walls.","m2",{"v":1,"d":"1.00"},null,{"$f":"D19*E19","v":0}]
[]
["76.5","270mm cavity walls.","m2",{"v":9,"d":"9.00"},null,{"$f":"D21*E21","v":0}]
[]
["76.6","440 x 660mm brick piers.","m3",{"v":1,"d":"1.00"},null,{"$f":"D23*E23","v":0}]
[]
["76.7","330mm Cavity wall in two half brick thicknesses including wire ties. ","m2",6,null,{"$f":"D25*E25","v":0}]
[]
[null,"SUPERSTRUCTURE (PROVISIONAL)"]
[]
[null,"Brickwork of 17 MPa nominal compressive strength in class 1 mortar:"]
[]
["76.8","Half brick walls ","m2",{"v":5,"d":"5.00"},null,{"$f":"D31*E31","v":0}]
[]
["76.9","One brick walls.","m2",{"v":1,"d":"1.00"},null,{"$f":"D33*E33","v":0}]
[]
["76.10","270mm cavity walls.","m2",{"v":25,"d":"25.00"},null,{"$f":"D35*E35","v":0}]
[]
["76.11","Mass brickwork in piers.","m3",{"v":1,"d":"1.00"},null,{"$f":"D37*E37","v":0}]
[]
[null,"Brickwork of 17 MPa nominal compressive strength in class II mortar:"]
[]
["76.12","Half brick walls in beamfilling.","m2",{"v":3,"d":"3.00"},null,{"$f":"D41*E41","v":0}]
[]
[null,"Face bricks pointed with recessed horizontal and vertical joints"]
[]
["76.13","Fair cutting and fitting around pipe exceeding 100mm and not exceeding 200mm diameter","No",{"v":16,"d":"16.00"},null,{"$f":"D45*E45","v":0}]
[]
[]
["76.14","230mm Wide sill set sloping and slightly projecting","m",{"v":70,"d":"70.00"},null,{"$f":"D48*E48","v":0}]
[]
["76.15","Extra over ordinary brickwork for facing and pointing in stretcher bond","m2",{"v":1209,"d":"1209.00"},null,{"$f":"D50*E50","v":0}]
[]
[null,"Bagging and sealing the outer face of the inner skin of walls with 1:3 cement and sand mixture and seal with two coats approved bitumen emulsion waterproofing coating:"]
[]
["76.16","To walls (provisional). ","m2",{"v":29,"d":"29.00"},null,{"$f":"D54*E54","v":0}]
[]
[77,"Brickwork reinforcement:"]
[]
["77.1","75mm Wide reinforcement built in horizontally (Provisional).","m",{"v":28,"d":"28.00"},null,{"$f":"D58*E58","v":0}]
[]
["77.2","Brick reinforcement 80mm wide. ","m",952,null,{"$f":"D60*E60","v":0}]
[]
["77.3","150mm Wide reinforcement built in horizontally (Provisional).","m",{"v":154,"d":"154.00"},null,{"$f":"D62*E62","v":0}]
[]
["77.4","Ditto, but 160mm wide. ","m",5076,null,{"$f":"D64*E64","v":0}]
[]
["77.5","230mm Wide reinforcement built in horizontally (Provisional).","m",{"v":100,"d":"100.00"},null,{"$f":"D66*E66","v":0}]
[]
[null,"Galvanised hoop iron cramps, ties, etc:"]
[]
["77.6","30 x 1,6mm Cramp 500mm long with one end fixed to wood  and other end built into brickwork.","No",{"v":16,"d":"16.00"},null,{"$f":"D70*E70","v":0}]
[]
["77.7","2 x 30mm Galvanised hoop iron tie 600mm long with one end shot blast into concrete column and other end built into brickwork and turned up into joint. ","No",246,null,{"$f":"D72*E72","v":0}]
[]
["77.8","Bag down face of brickwork with 4.1 cement slurry. ","m2",598,null,{"$f":"D74*E74","v":0}]
[]
["78","Prestressed fabricated lintels:"]
[]
["78.1","110 x 75mm Lintels in lengths not exceeding 3m.","m",{"v":18,"d":"18.00"},null,{"$f":"D78*E78","v":0}]
[]
["79","Air bricks etc:"]
[]
["79.1","229 x 152mm Clay vermin proof air brick.","No",{"v":2,"d":"2.00"},null,{"$f":"D82*E82","v":0}]
[]
[80,"JOINT SEALANTS "]
[]
["80.1","Rake out 10mm wide joint filler on vertical surfaces of brickwork or concrete for a depth of 15mm and clean, prime and caulk with an approved external quality polysulphide sealing compound. ","m",5,null,{"$f":"D86*E86","v":0}]
[]
[81,"FACE BRICKWORK IN FOUNDATIONS"]
[null,"(PROVISIONAL)"]
[]
[null,"Facebricks (FBS)  delivered to the site pointed with square ruled recessed horizontal and vertical joints: FBX face bricks pointed with well raked and smoothed horizontal and vertical joints:"]
[]
["81.1","Extra over brickwork for face brickwork.","m2",{"v":4,"d":"4.00"},null,{"$f":"D93*E93","v":0}]
[]
["81.2","Half brick walls pointed on both sides.","m2",{"v":2,"d":"2.00"},null,{"$f":"D95*E95","v":0}]
[]
["81.3","Extra over brickwork for brick-on-edge header course lintels  pointed on face and 110mm soffit.","m",{"v":2,"d":"2.00"},null,{"$f":"D97*E97","v":0}]
[]
[]
["81.4","Extra over brickwork for brick-on-edge header course to top of  walls pointed on top and both faces.","m",{"v":1,"d":"1.00"},null,{"$f":"D100*E100","v":0}]
[]
[]
["81.5","220mm Brick on edge sill bedded sloping and jointed in cement  mortar and pointed on top, edge and projecting soffit including  cutting and fitting between reveals and splay cutting brickwork  under. ","m",{"v":2,"d":"2.00"},null,{"$f":"D103*E103","v":0}]
[]
[]
[null,"Sub total (Bill No 6)"]

{"sheet":"BILL NO.7","index":6,"n_rows":182,"n_cols":6,"rows_kept":182}
[null,"DESCRIPTION","UNIT","QUANTITY","RATE","AMOUNT"]
[]
[null,"BILL NO.7"]
[]
[82,"WATERPROOFING (PROVISONAL) "]
[]
[null,"DAMPPROOFING OF WALLS AND FLOORS"]
[]
[null,"One layer of 375 micron DPC embossed damp proof course:"]
[]
[]
["82.1","In walls.","m2",{"v":7,"d":"7.00"},null,{"$f":"D12*E12","v":0}]
[]
[null,"One layer of 250 micron waterproof sheeting sealed at laps with pressure sensitive tape:"]
[]
[]
["82.2","Under surface beds.","m2",{"v":11,"d":"11.00"},null,0]
[]
[83,"LIQUID WATERPROOFING"]
[]
[null,"Prepare and brush to remove all loose contaminants, apply bituminous paint (one coat)."]
[]
["83.1","Walls in foundations","m²",{"v":86,"d":"86.00"},null,0]
[]
[84,"WATERPROOFING TO ROOFS, BASEMENTS, ETC"]
[]
[null,"4mm \"Derbigum SP\" waterproofing covered with type 40 bituminous fibreglass or similar approved product felt loose laid protection layer with coarse building sand blinding"]
[]
["83.1","On flat roofs not exceeding 25 degrees from the horizontal","m²",{"v":238,"d":"238.00"},null,{"$f":"D29*E29","v":0}]
[]
[]
["84","One layer 4mm special polyester fully bonded waterproof membrane comprising a matrix modified with polypropylene dual reinforced with non-woven polyester cloth and glass fibre tissue, laid with 75mm side and 100mm end laps"]
[]
["84.1","On flat roofs","m2",{"v":400,"d":"400.00"},null,{"$f":"D34*E34","v":0}]
[]
["84.2","On balcony floors","m2",{"v":25,"d":"25.00"},null,{"$f":"D36*E36","v":0}]
[]
["84.3","On shower floors","m2",{"v":4,"d":"4.00"},null,{"$f":"D38*E38","v":0}]
[]
["85","PROTECTIVE STONE DRESSING"]
[]
[null,"25mm Crushed stone dressing evenly spread with larger stones around outlets"]
[]
["85.1","50mm Thick on waterproofing to flat roofs","m²",{"v":238,"d":"238.00"},null,{"$f":"D44*E44","v":0}]
[]
[null,"PROTECTIVE ROOFING PAINT"]
[]
["85.2","Two coats bituminous aluminium paint","m²",{"v":238,"d":"238.00"},null,{"$f":"D48*E48","v":0}]
[]
[null,"JOINT SEALANTS ETC"]
[]
[null,"Clear Neutral silicone sealant:"]
[]
["85.3","In joint sealing and pointing all round external window and door frames","m",{"v":7,"d":"7.00"},null,0]
[]
[null,"Polysulphide joint seant (Gungrade) compound including backing cord, bond breaker, primer, etc."]
[]
["85.4","10 x 10mm In expansion joints including raking out expansion joint filler as necessary.","m",{"v":186,"d":"186.00"},null,{"$f":"D58*E58","v":0}]
[]
["85.5","10 x 10mm In saw cut joints in floors.","m",{"v":385,"d":"385.00"},null,0]
[]
[null,"Clear silicone sealant:"]
[]
["85.6","In waterproofing joints between concrete vanity tops, plaster and stainless steel sanitary fittings.","m",{"v":115,"d":"115.00"},null,{"$f":"D64*E64","v":0}]
[]
[null,"Sub total (Bill No 7)"]
{"$rows_empty":115}
[null,"REMOVING METAL ROOF SHEETING AND ACCESSORIES"]

{"sheet":"BILL NO. 8","index":7,"n_rows":227,"n_cols":6,"rows_kept":227}
[null,"DESCRIPTION","UNIT","QUANTITY","RATE","AMOUNT"]
[]
[86,"ROOF COVERINGS"]
[]
[null,"WORK GROUPS: Unless otherwise stated the work group for this Bill shall be WG124"]
[]
[null,"Trade Preambles:"]
[]
[null,"NOTE: Tenderers are advised to study the Model Preambles for Trades before pricing this bill."]
[]
[null,"METAL ROOF SHEETING AND ACCESSORIES"]
[]
[null,"Nominal thickness 0.80mm \"Klip-Lok\" or similar approved aluminium roofing sheets with silicone polyester top finish, to colour of Architects choice, on an epoxy-primed surface (10 microns) and standard grey backing coat to other side, etc., including fixing to timber purlins at approximately 700 mm centres including all screws, bolts, washers, etc, strictly in accordance with manufacturer's specification:"]
[]
["86.1","Roof covering with pitch not exceeding 25 degrees, in  transportable lengths. ","m2",{"v":23,"d":"23.00"},null,{"$f":"D15*E15","v":0}]
[]
[]
["86.2","Standard ridge capping.","m",{"v":14,"d":"14.00"},null,0]
[]
[null,"ROOF AND WALL INSULATION"]
[]
[null,"Heavy Industrial double sided reflective foil laminate incorporating layers of kraft paper and reinforcing scrim, laminated together with low density polyethylene (293gsm):"]
[]
["86.3","Insulation laid taut over purlins (at approximately 1m centres)  and fixed concurrent with roof covering, including taped laps  and nylon / galvanised straining wires.","m2",{"v":20,"d":"20.00"},null,{"$f":"D24*E24","v":0}]
[]
[null,"BROWNBUILT PROFILED METAL SHEETING AND ACCESSORIES"]
[]
[null,"0,58mm Thick pre-painted factory coated Z275 Brownbuilt profile roll-formed roof sheeting in continuous lengths, concealed fixed, on double sided reflective aluminium foil faced insulation barrier:"]
[]
["86.4","Roof covering with pitch not exceeding 25 degrees.","m²",{"v":550,"d":"550.00"},null,{"$f":"D30*E30","v":0}]
[]
[null,"0,58mm Thick AZ200 prepainted factory coated finished flashings and accessories including finish to match roof sheeting:"]
[]
["86.5","Ridge capping to suit roof profile.","m",{"v":35,"d":"35.00"},null,{"$f":"D34*E34","v":0}]
[]
["86.6","Headwall flashing 375mm girth and two times bent along girth.","m",{"v":30,"d":"30.00"},null,{"$f":"D36*E36","v":0}]
[]
[null,"PROFILED POLYESTER SHEETING "]
[]
[null,"IBR Profile heavy industrial 85% transluscent Glassfibre Reinforced polyester roofing sheets, in single lengths, fixed to steel purlins "]
[]
["86.7","Side cladding. ","m2",110,null,{"$f":"D42*E42","v":0}]
[]
[null,"PROFILED METAL SHEETING (CPAP Work Group No. 124 Unless Otherwise Stated )"]
[]
[null,"0,8mm thick\"Safintra Tufdek\" aluminium IBR Roofing sheets and 0,8mm thick accessories with polyclosers where necessary or similar approved, both with Chromadek colour one side, in single sheet lengths and fixed to steel purlins "]
[]
["86.8","Roof covering with pitch not exceeding 25 degrees. ","m2",150,null,{"$f":"D48*E48","v":0}]
[]
["86.9","Side cladding. ","m2",1550,null,{"$f":"D50*E50","v":0}]
[]
["86.10","Corner trim. ","m",692,null,{"$f":"D52*E52","v":0}]
[]
["86.11","Sidewall flashing. ","m",30,null,{"$f":"D54*E54","v":0}]
[]
["86.12","Counter flashing. ","m",30,null,{"$f":"D56*E56","v":0}]
[]
["86.13","Headwall flashing. ","m",50,null,{"$f":"D58*E58","v":0}]
[]
["86.14","Counter flashing. ","m",50,null,{"$f":"D60*E60","v":0}]
[]
["86.15","Jamb flashing. ","m",92,null,{"$f":"D62*E62","v":0}]
[]
["86.16","Expanded polyethylene polycloser eaves filler. ","m",650,null,{"$f":"D64*E64","v":0}]
[]
[null,"0,8mm thick\"Safintra Tufdek\" aluminium IBR Roofing sheets and 0,8mm thick accessories with polyclosers where necessary or similar approved, both with Chromadek colour one side, in single sheet lengths and fixed to timber trusses"]
[]
["86.17","Roof covering with pitch not exceeding 25 degrees. ","m2",1050,null,{"$f":"D68*E68","v":0}]
[]
["86.18","Corner trim. ","m",55,null,{"$f":"D70*E70","v":0}]
[]
["86.19","Barge flashing","m",26,null,{"$f":"D72*E72","v":0}]
[]
["86.20","Apex flashing. ","m",26,null,{"$f":"D74*E74","v":0}]
[]
["86.21","Expanded polyethylene polycloser eaves filler. ","m",120,null,{"$f":"D76*E76","v":0}]
[]
[null,"PREFABRICATED ROOF TRUSSES ETC"]
[]
[null,"Prefabricated timber roof construction complete including purlins, runners, bracing hips, valleys, cleats, purlins, etc., supplied and fixed complete:"]
[]
[null,"Preamble note:"]
[]
[null,"Trusses are at approximately maximum 1173mm centres."]
[]
[null,"Roof coverings are 0,58mm Thick Brownbuilt Z275 Prepainted factory coated finished galvanised profile roll-formed roof sheeting with double-sided aluminium foil insulation."]
[]
[null,"References given in descriptions will be referred to the respective roofs detailed on the architect's/engineer's drawings accompanying these Bills of Quantities for tender purposes."]
[]
[null,"The contractor will be required to provide a certificate of approval signed by a registered Professional Engineer that the trusses have been designed, manufactured and installed in accordance with the relevant SABS specifications."]
[]
[null,"Sawn Softwood Grade 4:"]
[]
["86.22","Roof construction to double pitched roof, size 8,94m x 15,09m on plan with 0,50m overhang on both side, installed complete","No",{"v":5,"d":"5.00"},null,{"$f":"D94*E94","v":0}]
[]
["86.23","Roof construction to double pitched roof, Unit 6, size 9,02m x 15,07m on plan with 0,50m overhang on both side, including mono pitched roof by master bedroom size 4.20m x 6.23m on plan","No",{"v":1,"d":"1.00"},null,{"$f":"D96*E96","v":0}]
[]
["86.24","Roof construction to mono pitched roof, Carport, size 3,34m x 7,30m on plan with 0,50m overhang, installed complete","No",{"v":6,"d":"6.00"},null,{"$f":"D98*E98","v":0}]
[]
["86.25","Roof construction to mono pitched roof, Toilet and Store, size 3,46m x 6,08m on plan","No",{"v":1,"d":"1.00"},null,{"$f":"D100*E100","v":0}]
[]
[null,"ROOF SUNDRIES"]
[]
[null,"Sundries:"]
[]
["86.27","Wrought faces on sawn timbers.","m²",{"v":57,"d":"57.00"},null,{"$f":"D106*E106","v":0}]
[]
["86.28","50 x 150mm timber beam.","m",{"v":82,"d":"82.00"},null,{"$f":"D108*E108","v":0}]
[]
[null,"EAVES, VERGES, ETC"]
[]
[null,"Medium density plain fibre cement boards:"]
[]
["86.29","12 x 300mm Fibre cement fascia boards.","m",{"v":60,"d":"60.00"},null,{"$f":"D114*E114","v":0}]
[]
["86.30","12 x 225mm Fibre cement barge boards.","m",{"v":89,"d":"89.00"},null,{"$f":"D116*E116","v":0}]
[]
[null,"PREFABRICATED ROOF TRUSSES, ETC."]
[]
[null,"Plate nailed timber roof truss construction to be Mitek or similar design approved:"]
[]
["86.31","Roof construction to rectangular shaped double pitched roof not  exceeding 25 degree pitch with two hipped ends overall size  4.44 x 4.74m and 3000mm high overall including 38 x 114mm  wall plates, trusses, king posts, queen posts, jack rafters,  including permanent bracing and all fixing and including 50 x  75mm purlins/battens at centres for roof covering (elsewhere  measured) all complete as per Architects Schedule ","No",{"v":1,"d":"1.00"},null,{"$f":"D122*E122","v":0}]
[]
[]
["86.32","Allow for bracing, cross bracing, connecting clips, fixing  brackets, hurricane clips, etc., as required for fixing in position  of roof trusses as described in accordance with the  manufacturer's instructions. Remove existing Roof Trusses exposed to elements & discard","Item",{"v":1,"d":"1.00"},null,{"$f":"D125*E125","v":0}]
[]
["86.33","Extra over for wrought purlins at eaves and veranda's.","m",{"v":18,"d":"18.00"},null,{"$f":"D127*E127","v":0}]
[]
[null,"Sawn softwood: "]
[]
["86.34","38 x 114mm Wall plates.","m",{"v":69,"d":"69.00"},null,{"$f":"D131*E131","v":0}]
[]
["86.35","50 x 75mm Purlins.","m",{"v":225,"d":"225.00"},null,{"$f":"D133*E133","v":0}]
[]
[null,"Wrought softwood: "]
[]
["86.36","50 x 76mm Bearer fascia support (Provisional).","m",{"v":100,"d":"100.00"},null,{"$f":"D137*E137","v":0}]
[]
[null,"Laminated S. A. pine: "]
[]
["86.37","90 x 228mm beam.","m",{"v":48,"d":"48.00"},null,{"$f":"D141*E141","v":0}]
[]
[null,"Sawn softwood / Pine:"]
[]
["86.38","38 x 114mm Wall plates.","m",{"v":12,"d":"12.00"},null,{"$f":"D145*E145","v":0}]
[]
["86.39","50 x 75mm Purlins.","m",{"v":31,"d":"31.00"},null,{"$f":"D147*E147","v":0}]
[]
["86.40","38 x 114mm Runner (Provisional). ","m",40,null,{"$f":"D149*E149","v":0}]
[]
["86.41","38 x 76mm Bracing (Provisional). ","m",40,null,{"$f":"D151*E151","v":0}]
[]
[null,"Wrought softwood:"]
[]
["86.42","50 x 76mm Bearer fascia support (Provisional).","m",{"v":18,"d":"18.00"},null,{"$f":"D155*E155","v":0}]
[]
[null,"EAVES, VERGES, CILLS ETC "]
[]
[null,"Pressed medium density plain fibre-cement: "]
[]
["86.43","12 x 225mm Fascia fixed to roof timbers at centres of not exceeding 900mm, including steel H-profile jointing plates,  screws, holes, etc.","m",{"v":18,"d":"18.00"},null,{"$f":"D161*E161","v":0}]
[null," "]
["86.44","15 x 150mm Nutec or similar approved fiber cement window  cill, fixed with galvanised lugs and cast in mortar bed in  compliance with manufactures specification etc.","m",{"v":2,"d":"2.00"},null,{"$f":"D163*E163","v":0}]
[]
[null,"NOTE:  Truss prices are to include for the design, supply and erection of the trusses complete including bolts, connectors, connections, etc.  The dimensions of the trusses given in the following descriptions are nominal and the actual measurements for the design and manufacture of the trusses must be taken from the working drawings. The truss spans given are measured horizontally between the outer faces of the wall plates.  -------------------- "]
[]
[null,"Monoplaner Prefabricated connector Plate Roof Trusses at 1200mm maximum centres with a pitch of 5 degrees and suitable for 0,6mm thick IBR Roof covering with purlins at 1500mm centres and no ceiling "]
[]
[null,"Sawn Pine "]
[]
["86.45","Monopitch truss size 5570mm span x 600mm high with 350mm overhang. ","No",13,null,{"$f":"D171*E171","v":0}]
[]
["86.46","Monopitch truss size 2810mm span x 400mm high with 500mm overhang. ","No",8,null,{"$f":"D173*E173","v":0}]
[]
["86.47","Bracing and runners. ","Item",1,null,{"$f":"D175*E175","v":0}]
[]
[null,"EAVES AND VERGES "]
[]
[null,"4mm Cladit Fibre Reinforced Cement Sheets or similar approved with 20mm half round wrot meranti cover strips over joints, fixed with cadmium plated nails or smilar approved "]
[]
["86.48","Horizontal eaves soffit lining in approximately fixed to and including sawn Pine brandering along both edges and across sheets. ","m2",20,null,{"$f":"D181*E181","v":0}]
[null,"REMOVING METAL ROOF SHEETING AND ACCESSORIES"]
[null,"Everite unpressed fibre reinforced cement fascia cut or similar approved prodcut to lengths and butt jointed with galvanised H-Profile steel jointing strips and fixed with countersunk brass screws "]
[]
["86.49","15 x 225mm Fascia or bargeboard. ","m",34,null,{"$f":"D185*E185","v":0}]
[]
[87,"Insulation "]
[]
["87.1","Sisalation 420 RSA reinforced aluminium foil insulation laid with 150mm wide laps at all joints on top of steel purlins on and including 2mm diameter galvanised wires tightly strained across tops of purlins at 500mm centres. ","m2",92,null,{"$f":"D189*E189","v":0}]
[]
[88,"Rain Water Goods"]
[]
[null,"0,8mm thick watertite seamless pre-painted aluminium Ogee Gutter, rainwater pipe and accessories In long lengths or similar approved "]
[]
["88.1","200 x 250mm Eaves gutter fixed to steel purlins. ","m",70,null,{"$f":"D195*E195","v":0}]
[]
["88.2","300 x 150mm Eaves gutter fixed to steel purlins. ","m",16,null,{"$f":"D197*E197","v":0}]
[]
["88.2","100 x 125mm Eaves gutter fixed to fibre cement fascia. ","m",25,null,{"$f":"D199*E199","v":0}]
[]
[null,"Extra for "]
[]
["88.3","Stopped end. ","No",10,null,{"$f":"D203*E203","v":0}]
[]
["88.4","Outlet with nozzle for 75 x 100mm rainwater pipe. ","No",12,null,{"$f":"D205*E205","v":0}]
[]
[null,"(End Of Extra For) "]
[]
["88.5","75 x 100mm Rectangular section rainwater pipe fixed 25mm clear of walls with galvanised sheet iron ears screwed to and including 200 x 70 x 22mm chamfered and oiled hardwood blocks plugged to wall. ","m",45,null,{"$f":"D209*E209","v":0}]
[]
[null,"Extra For "]
[]
["88.6","Shoe. ","No",10,null,{"$f":"D213*E213","v":0}]
[]
["88.7","Bend. ","No",15,null,{"$f":"D215*E215","v":0}]
[]
["88.8","Swanneck bend. ","No",10,null,{"$f":"D217*E217","v":0}]
[]
["88.9","Swanneck 500mm projection. ","No",23,null,{"$f":"D219*E219","v":0}]
[]
["88.10","80mm Spreader 800mm long and fixing to bottom of 80mm rainwater pipe. ","No",5,null,{"$f":"D221*E221","v":0}]
[]
[null,"Wrot Meranti "]
[]
["88.11","19mm Quadrant bead. ","m",60,null,{"$f":"D225*E225","v":0}]
[]
[null,"Sub total (Bill No 8)"]

{"sheet":"BILL NO. 9","index":8,"n_rows":145,"n_cols":6,"rows_kept":145}
[null,"DESCRIPTION","UNIT","QUANTITY","RATE","AMOUNT"]
[]
[null,"BILL NO.9"]
[]
[89,"DOORS, JOINERY, ETC"]
[]
[null,"Wrought meranti:"]
[]
[null,"Approved solid flush doors, with Commercial veneer both sides and with hardwood edge strips, tongued and sides and grooved on to edges:"]
[]
["89.1","44mm Thick, Solid core commercial ply double flush panel  door, including rebated meeting styles with 10mm hardwood  edges size 1100 x 2,032mm high including 450 x 450mm  natural anodised aluminium vent grille slotted in door complete ","No",{"v":1,"d":"1.00"},null,{"$f":"D11*E11","v":0}]
[]
[null,"Approved solid meranti FLB doors:"]
[]
["89.2","44mm Thick, framed, ledged braced and batten single door,  size 901 x 2032mm high with rebated meeting edges, formed of  44 x 114mm stiles and top rail, 22 x 114mm middle ledge and  braces and 22 x 222mm bottom ledge including the stiles and  top rail grooved for and filled in flush on one side with 6mm  plywood and otherside with 22 x 70mm tongued, grooved and  V-jointed vertical boarding with V-joint contimued around  framing on flush side, including each board twice countersunk,  screwed at intersections with ledges all","No",{"v":1,"d":"1.00"},null,{"$f":"D15*E15","v":0}]
[]
[null,"8 Leaf wooden folding doors: "]
[]
["89.3","Aluglass Bautech Varifold or similar approved wooden folding  door model (Classic / Elegance) with clear opening of 2400mm  high x 6790mm wide finished and including heavy duty hook  lock all","No",{"v":3,"d":"3.00"}]
[]
[null,"Wrought meranti doors:"]
[]
["89.4","42mm Sunshine manufacturing or equally approved wide horizontal grooved solid Meranti slatted door (Meranti kiln dried), size 813 x 2032mm high","No",{"v":6,"d":"6.00"},null,{"$f":"E23*D23","v":0}]
[]
["89.5","44mm FLB door, size 813 x 2032mm high","No",{"v":6,"d":"6.00"},null,{"$f":"E25*D25","v":0}]
[]
[null,"HARDWOOD DOORS"]
[]
[null,"Hardwood doors"]
[]
["89.6","44mm Thick semi-solid flush door, edged with 10mm hardwood faced with tempered smooth face hardwood for panting, size 813 x 2032mm ","No",{"v":25,"d":"25.00"},null,{"$f":"E31*D31","v":0}]
[]
[null,"Red Meranti "]
[]
[null,"Solid Core Flush Doors Finished On Both Faces With Decorative Veneer "]
[]
["89.7","40mm Door in two leaves with rebated meeting stiles, (Hung folding) size overall 1511 x 2032mm. ","No",12,null,{"$f":"E37*D37","v":0}]
[]
["89.8","40mm Door, (Hung) size 813 x 2032mm. ","No",5,null,{"$f":"E39*D39","v":0}]
[]
["89.9","Extra for forming opening for louvre unit size 400 x 300mm. ","No",5,null,{"$f":"E41*D41","v":0}]
[]
[null,"Sundries"]
[]
["89.10","Troxor or similar approved non-vision door grille (type ADS-T) with matching rear frame complete with horizontal fixed angled blades and border countersunk for screw fastening","No",5,null,{"$f":"E45*D45","v":0}]
[]
[null,"Bitcon Rubidor Class A fire doors or similar approved, including primed pressed steel frames for one Brick Wall, finished on both faces with commercial veneer "]
[]
["89.11","Door, (Hung) size 813 x 2032mm. ","No",7,null,{"$f":"E49*D49","v":0}]
[]
[null,"FRAMED FRAMES ETC"]
[]
[null,"Wrought meranti:"]
[]
["89.12","75 x 100mm Rebated frames plugged, with galvanised lugs every 5th brick course and 3 PVC buffers to closing.","m",{"v":110,"d":"110.00"},null,{"$f":"E55*D55","v":0}]
[]
["89.13","19mm hardwood quadrant trim of door frame","m",{"v":330,"d":"330.00"},null,{"$f":"E57*D57","v":0}]
[]
[null,"FRAMED FRAMES ETC"]
[]
[null,"Wrought meranti:"]
[]
["89.14","70 x 108mm Rebated and angle rounded door frames plugged","m",{"v":5,"d":"5.00"},null,{"$f":"E63*D63","v":0}]
[]
[null,"SKIRTINGS, ARCHITRAVES, ETC"]
[]
[null,"Wrought meranti:"]
[]
["89.15","19 x 76mm Skirting including 19 mm quadrant bead planted on.","m",{"v":15,"d":"15.00"},null,0]
[]
["89.16","19 x 70mm Angle rounded skirting, plugged and including 19mm quadrant bead planted on. ","m",225,null,0]
[]
[null,"Sundries:"]
[]
["89.17","38 x 76 mm Chamferred and grooved weatherboard fixed in  and including groove or rebate in underside of door.","m",{"v":1,"d":"1.00"},null,0]
[]
[]
[null,"HARDWOOD TIMBER SUNDRIES"]
[]
[null,"Wrought meranti:"]
[]
["89.18","32mm Diameter polished hardwood longarm window opener  1500m long fitted with polished brass pole hook, secured with  one chromium plated spring clips screwed to and including  small polished hardwood block plugged to wall.","No",{"v":1,"d":"1.00"},null,0]
[]
[null,"Custom mad door, frames and ironmongery"]
[]
[null,"All below mentioned items include all fittings (to be priced using the applicable drawings)"]
[]
["89.19","Custom design Roll up Serranda galvanised roll up door frame Epoxy finish ( TYPE E ) or similar approved","No",{"v":2,"d":"2.00"},null,{"$f":"D88*E88","v":0}]
[]
["89.20","Custom design Roll up Serranda galvanised roll up door frame Epoxy finish (3800x3760m or similar approved ","No",{"v":4,"d":"4.00"},null,{"$f":"D90*E90","v":0}]
[]
["89.21","Custom design Roll up Serranda galvanised roll up door frame Epoxy finish (2500x3760m) or similar approved","No",{"v":2,"d":"2.00"},null,{"$f":"D92*E92","v":0}]
[]
["89.22","2500 x 3500h SABS CAT 2 double reinforced strongroom door with 10mm plate ,75mm total door thicknes,galvernized finish","No",{"v":2,"d":"2.00"},null,{"$f":"D94*E94","v":0}]
[]
["89.23","1000 x 2400h SABS CAT 2 double reinforced strongroom door with 10mm plate ,75mm total door thicknes,galvernized finish","No",{"v":4,"d":"4.00"},null,{"$f":"D96*E96","v":0}]
[]
[90,"JOINERY FITTINGS (PROVISIONAL)"]
[]
[null,"General Joinery Fittings complete:"]
[]
[null,"Kitchen Cupboard:"]
["90.1","L shaped Kitchen Counter 02, 1486mm in length with 600mm wide Rustenburg granite counter top with double bowl sink (Elsewhere measured), colour Expresso 900mm above the ground, with cupboards underneath, inclusive of all ironmongery","No",{"v":6,"d":"6.00"},null,{"$f":"E103*D103","v":0}]
[]
["90.2","L shaped Kitchen Counter 03, 2499mm in length with 600mm wide Rustenburg granite counter top, colour Expresso 900mm above the ground, cupboards underneath, 1200mm high cupboards and open shelves 500mm above counter, and microwave position, inclusive of all ironmongery","No",{"v":6,"d":"6.00"},null,{"$f":"E105*D105","v":0}]
[]
["90.3","L shaped Kitchen Counter 04, 2980mm in legth with 800mm wide Rusteburg granite counter top, colour Expresso 900mm above the ground, with cupboards underneath, with 1200 high cupboards 500mm above counter,  642mm high cupboards and open shelves 1000mm above counter, inclusive of all ironmongery","No",{"v":6,"d":"6.00"},null,{"$f":"E107*D107","v":0}]
[]
["90.4","Rectangular shaped Kitchen Built In Cupboard, 898mm in length with drawers with 16mm melamine panel with Max on Top HPL finish with arctic white colour finish 2770mm high","No",{"v":6,"d":"6.00"},null,{"$f":"E109*D109","v":0}]
[]
["90.5","Rectangular shaped Passage Cupboard in Unit 6, 1300mm in length with 16mm melamine panel with Max on Top HPL finish with arctic white colour finish 2770mm high, inclusve of all ironmongery","No",{"v":1,"d":"1.00"},null,{"$f":"E111*D111","v":0}]
[]
["90.6","Rectangular shaped Bedroom 2 Wardrobe 2270mm in length with drawers and open shelves, with 16mm melamine panel with Max on Top HPL finish with arctic white colour finish 2770mm high, inclusive of all ironmongery","No",{"v":6,"d":"6.00"},null,{"$f":"E113*D113","v":0}]
[]
["90.7","Rectangular shaped Master Bedroom Wardrobe 3600mm in legth with drawers and open shelves, with 16mm melamine panel with Max on Top HPL finish with arctic white colour finish 2770mm high, inclusive of all ironmongery","No",{"v":1,"d":"1.00"},null,{"$f":"E115*D115","v":0}]
[]
["90.8","Rectangular shaped Bedroom 1 Wardrobe 2464mm in legth with drawers, with 16mm melamine panel with Max on Top HPL finish with arctic white colour finish 2770mm high, inclusive of all ironmongery","No",{"v":5,"d":"5.00"},null,{"$f":"E117*D117","v":0}]
[]
["90.9","Rectangular shaped Bedroom 3 Wardrobe 2085mm in legth with drawers, with 16mm melamine panel with Max on Top HPL finish with arctic white colour finish 2770mm high, inclusive of all ironmongery","No",{"v":1,"d":"1.00"},null,{"$f":"E119*D119","v":0}]
[]
[null,"Joinery (Cupboards)"]
[]
[91,"Laundry cupboards"]
["91.1","Robust open shelving including best humiditu and resistant carcass shelves, shelves and fascia type 2040x300x2720mm high with top, sides, bottom, division and shelf, including all necessary ironmongery","No",{"v":1,"d":"1.00"},null,{"$f":"E124*D124","v":0}]
[]
[92,"Kitchen cupboards"]
[]
["92.1","Robust open shelving including best humiditu and resistant carcass shelves, shelves doors, hinges, handles, locks and name/number plates. Melamine facings to concual cancass 3970x300x2720mm high with top, sides, bottom, division and shelf, including all necessary ironmongery","No",{"v":1,"d":"1.00"},null,{"$f":"E128*D128","v":0}]
[]
[null,"Restroom cupboards"]
["92.2","Combination cupboard, including best humidity and corrosion resistant Carcass,Shelves, Doors, Hinges, Handles, Locks and Name/Number plates. Melamine facings to conceal carcass size 3382x600x2720mm high with top, sides, bottom, division, shelf, back and double hinged doors, including all necessary ironmongery","No",{"v":1,"d":"1.00"},null,{"$f":"E131*D131","v":0}]
[]
[null,"Reception desk"]
["92.3","Floor L-section desk with one section 2400x920x950mm high and other section 1000x920x920 with sides, bottom, divisions, shelf, back and double hinged doors (sink elsewhere) including brush polished stainless steel kickplate (a/b), including all necessary ironmongery","No",{"v":1,"d":"1.00"},null,{"$f":"E134*D134","v":0}]
[]
[93,"Changeroom bench"]
["93.1","Floor plugged hardwood timber bench 1400x380x400mm high formed of custom galvanized and painted mild steel frame below fixed to floor","No",{"v":1,"d":"1.00"},null,{"$f":"E137*D137","v":0}]
[]
[94,"Solid core flush panel"]
[]
["94.1","40mm thick commercial veneered solid core flush panel door. Finish: Prepare Prime and paint 1 undercoat and 2 coats mid-sheen enamel","No",{"v":3,"d":"3.00"},null,{"$f":"E141*D141","v":0}]
[]
["94.2","40mm thick commercial veneered semi-solid core flush panel door. Undercut: 120mm and reinstate door bottom edge. Finish: Prepare prime and paint 1 undercoat and 2 coats mid-sheen enamel,","No",{"v":1,"d":"1.00"},null,{"$f":"E143*D143","v":0}]
[]
[null,"Sub total (Bill No 9)"]

{"sheet":"BILL NO.10","index":9,"n_rows":112,"n_cols":6,"rows_kept":112}
[null,"DESCRIPTION","UNIT","QUANTITY","RATE","AMOUNT"]
[]
[null,"BILL NO.10"]
[]
[95,"CEILINGS PARTITIONS AND ACCESS FLOORING"]
[]
[null,"NAILED UP CEILINGS"]
[]
[null,"6mm Fibre-cement boards with H profile PVC joining strips to joints:"]
[]
["95.1","Ceilings including 38 x 50mm sawn softwood brandering at  450mm centres, with cross brandering at joints, ends of sheets  and at light fittings, etc.","m2",{"v":8,"d":"8.00"},null,{"$f":"D11*E11","v":0}]
[]
["95.2","Extra over ceiling for 600 x 600mm trap door of 50 x 76mm  wrought softwood rebated framing with one 50 x 76mm sawn  softwood cross brander covered with ceiling board and fitted  flush in opening. ","No",{"v":1,"d":"1.00"},null,0]
[]
[null,"Polystyrene coved cornice:"]
[]
["95.3","75mm Coved cornices glued.","m",{"v":17,"d":"17.00"},null,0]
[]
[96,"SUSPENDED CEILINGS(CPAP Work Group No 129 Unless Otherwise Stated) "]
[]
[null,"The following must be erected by a firm who specialise in this type of work, which firm must be approved by the Architect before the work is put in hand. "]
[]
[null,"9mm Jumbo plasterboard suspended ceiling fixed to steel brandering complete"]
[]
["96.1","Horizontal ceilings suspended not exceeding 1000mm below concrete, shot nailed. ","m2",85,null,{"$f":"D25*E25","v":0}]
[]
["96.2","Horizontal ceilings suspended not exceeding 1000mm below purlins. (Purlins at ?mm centres with trusses at ?mm centres). ","m2",112,null,{"$f":"D27*E27","v":0}]
[]
[null,"600x600x15mm \"Gyproc Celotex White\" pre-painted acoustic panels or similar approved product on exposed suspension grid system including hangers, necessary hold-down clips and wedges,"]
[]
["96.3","Ceilings suspended not exceeding 1m below co","m2",145,null,{"$f":"D31*E31","v":0}]
[]
["96.4","Opening for sprinkler head","No",20,null,{"$f":"D33*E33","v":0}]
[]
["96.5","Extra over celing for opening for grille/ air conditioning diffuser","No",1,null,{"$f":"D35*E35","v":0}]
[]
[null,"Rondo pre-painted galvanised steel cornice "]
[]
["96.6","Shadowline wall angle trim, plugged. ","m",225,null,{"$f":"D39*E39","v":0}]
[]
[97,"PARTITIONS (CPAP Work Group No. 138 Unless Otherwise Stated) "]
[]
[null,"90mm thick Rhino-drywall system No 1 with steel studs at 600mm centres covered on both sides with 12,7mm Gypsum plasterboard tapered edge sheets with taped and skimmed joints, top hat section cornice over and 70mm high aluminium skirting on both sides"]
[]
["97.1","Partitioning 3000mm high, top and bottom tracks plugged. ","m",28,null,{"$f":"D45*E45","v":0}]
[]
[null,"Extra Over Partitions For"]
[]
["97.2","End next structure. ","No",2,null,{"$f":"D49*E49","v":0}]
[]
["97.3","Angle. ","No",2,null,{"$f":"D51*E51","v":0}]
[]
["97.4","T-intersection. ","No",2,null,{"$f":"D53*E53","v":0}]
[]
["97.5","40mm Semi-solid core flush door finished on both faces with commercial veneer and hung size 813 x 2032mm, anodised aluminium rebated door frame with two 100mm Alufab hinges and Union  mortice lockset, including additional studding, trimming, etc. ","No",4,null,{"$f":"D55*E55","v":0}]
[]
[null,"End of Extra Over partitions for:"]
[]
[98,"20mm thick Vitrex Vitraflex toilet partitioning or with similar approved product with Vitreous enamelled steel sheet faced particle board bonded panels with natural anodised aluminium edging, rails, etc and including fixing components and ironmongery comprising of indicator bolts, coat hooks and door stops, toilet roll holders and rubber buffers "]
[]
["98.1","Partition 1600mm wide x 1800mm high. ","No",6,null,{"$f":"D61*E61","v":0}]
[]
["98.2","Full stile 230mm wide x 1850m high. ","No",12,null,0]
[]
["98.3","Wall stile 115mm wide x 1850mm high. ","No",6,null,0]
[]
["98.4","End stile 150mm wide x 1850mm high. ","No",6,null,0]
[]
["98.5","Door 750mm wide x 1800mm high. ","No",6,null,0]
[]
[null,"Glass partition"]
[]
[99,"Glass partition","m2",15,null,{"$f":"D73*E73","v":0}]
[]
[null,"Items described as nailed shall be deemed to be fixed with hardened steel nails or pins or shot pinned to brickwork or concrete."]
[]
[null,"Items described as plugged shall be deemed to include screwing to fibre, plastic or metal plugs at not exceeding 600mm centres, and where described as bolted the bolts have been given."]
[]
["100","CEILING CONSTRUCTION, CORNICES, ETC."]
[]
[null,"NAILED-UP CEILINGS"]
[]
[null,"6.5mm Gypsum Rhinoboard ceiling with taped joints between panels:"]
[]
["100.1","Ceiling including 38 x 38mm S.A.P brandering at 450mm centres.","m²",{"v":335,"d":"335.00"},null,{"$f":"D85*E85","v":0}]
[]
["100.2","Pelican System 42 x 46mm Basixx high density extruded polystyrene cornice","m",{"v":320,"d":"320.00"},null,{"$f":"D87*E87","v":0}]
[]
[null,"6mm Thick fibre cement ceiling board with PVC joints:"]
[]
["100.3","Eaves soffit covering.","m²",{"v":115,"d":"115.00"},null,{"$f":"D91*E91","v":0}]
[]
[null,"6mm Fibre-cement boards with H profile PVC joining strips to joints:"]
[]
["100.4","Ceilings including 38 x 50mm sawn softwood brandering at  450mm centres, with cross brandering at joints, ends of sheets  and at light fittings, etc.","m2",{"v":235,"d":"235.00"},null,{"$f":"E95*D95","v":0}]
[]
["100.5","Ditto to eaves","m2",{"v":20,"d":"20.00"},null,0]
[]
["100.6","Extra over ceiling for 600 x 600mm trap door of 50 x 76mm  wrought softwood rebated framing with one 50 x 76mm sawn  softwood cross brander covered with ceiling board and fitted  flush in opening. ","No",{"v":6,"d":"6.00"},null,0]
[]
[null,"Polystyrene coved cornice: "]
[]
["100.7","75mm coved cornices glued.","m",{"v":110,"d":"110.00"},null,0]
[]
["100.8","Meranti quadrant to eaves","m",{"v":15,"d":"15.00"},null,0]
[]
[null,"INSULATION"]
[]
[null,"Non-combustible lightweight fibreglass insulation blanket:"]
[]
["100.9","100mm Insulation closely fitted between tie beams and laid  loose on top of brandering. ","m2",{"v":245,"d":"245.00"},null,{"$f":"E111*D111","v":0}]
[null,"Sub total (Bill No 10)"]

{"sheet":"BILL NO. 11","index":10,"n_rows":57,"n_cols":6,"rows_kept":57}
[null,"DESCRIPTION","UNIT","QUANTITY","RATE","AMOUNT"]
[]
[null,"BILL NO.11"]
[]
[101,"FLOOR COVERINGS"]
[]
[null,"FLOOR COVERINGS, WALL LININGS, ETC(CPAP Work Group No. 130 Unless Otherwise Stated) "]
[]
[null,"Note:  Floor coverings are laid on screeded surfaces and wall linings on plastered surfaces unless otherwise described.  -------------------- "]
[]
[null,"VINYL FLOOR COVERINGS, WALL LININGS, ETC."]
[]
[null,"300 x 300 x 2,5mm semi-flexible reinforced vinyl quartz floor tiles, or equal approved, laid to manufacturers specification in patterns to colour of Architects choice:"]
[]
["101.1","On smooth screeded floors.","m2",{"v":8,"d":"8.00"},null,{"$f":"D15*E15","v":0}]
[]
[null,"Allow the prime cost of R 100,00/m2 for supply only of non-slip ceramic glazed floor tiles size 300 x 300mm, fix with adhesive and joint and point with 4mm flush joints in coloured grout on screed (elsewhere measured)"]
[]
["101.2","On floors and landings with continuous joints in both directions.","m2",{"v":35,"d":"35.00"},null,{"$f":"E19*D19","v":0}]
[]
[null,"POLISH, SEALERS, ETC"]
[]
[null,"Clean by stripping and sealing and apply three coats water based copolymer emulsion or other approved sealer:"]
[]
["101.3","On vinyl flooring.","m2",{"v":8,"d":"8.00"},null,0]
[]
[null,"FLOOR: Belgotex TORRENTIAL RAIN 50cm x 50cm NexBac tiles manufactured from Stainproof SDX and Stainproof Eco SDX Blend (Solution Dyed Nylon) tessellated OR a similar approved product and install according to manufacturer's specification. Colour to be selected'"]
[]
["101.4","On floors and landings","m2",{"v":95,"d":"95.00"},null,{"$f":"D29*E29","v":0}]
[]
["101.5","60mm high matching skirting","m",{"v":10,"d":"10.00"},null,{"$f":"D31*E31","v":0}]
[]
[null,"FLOOR: Belgotex Sportec rubberized Surface OR a similar approved product ; 4mm Heavy Commercial; Colour to be specified later"]
[]
["101.6","On floors and landings","m2",{"v":25,"d":"25.00"},null,{"$f":"D35*E35","v":0}]
[]
["101.7","100mm matching skirting","m",{"v":75,"d":"75.00"},null,{"$f":"D37*E37","v":0}]
[]
[null,"FLOOR: Belgotex Davenport 3mm heavy commercial luxury vinyl tile OR a similar approved product; colour to be specified later"]
[]
["101.8","On floors and landings","m2",{"v":45,"d":"45.00"},null,{"$f":"D41*E41","v":0}]
[]
["101.9","100mm high pvc matching skirting","m",{"v":50,"d":"50.00"},null,{"$f":"D43*E43","v":0}]
[]
[null,"FLOOR: Polyflor SD Steel Grey (5030)"]
[]
["101.10","On floors and landings","m2",{"v":4,"d":"4.00"},null,{"$f":"D47*E47","v":0}]
[]
["101.11","100mm high pvc matching skirting","m",{"v":4,"d":"4.00"},null,{"$f":"D49*E49","v":0}]
[]
[null,"EPOXY COATING & DEMARCATION"]
[]
["101.12","FLOOR: Prime and Apply 3 coats abe.®cote 441, two component polyurethane enamel applied in accordance with a.b.e.® Construction Chemicals' recommendations, by an approved Applicator Colours Red, Yellow and Grey to be selected on floors OR a similar approved product","m2",{"v":55,"d":"55.00"},null,{"$f":"D53*E53","v":0}]
[]
["101.13","100mm high PVC matching skirting","m",{"v":15,"d":"15.00"},null,{"$f":"D55*E55","v":0}]
[]
[null,"Sub total (Bill No 11)"]

{"sheet":"BILL NO. 12","index":11,"n_rows":128,"n_cols":6,"rows_kept":128}
["ITEM","DESCRIPTION","UNIT","QUANTITY","RATE","AMOUNT"]
[]
[null,"BILL NO. 12"]
[]
["102","TILING"]
[]
[null,"WORK GROUPS: Unless otherwise stated the work group for this Bill shall be WG144"]
[]
[null,"Trade Preambles:"]
[]
[null,"NOTE: Tenderers are advised to study the Model Preambles for Trades before pricing this bill."]
[]
[null,"SUPPLEMENTARY PREAMBLES"]
[]
[null,"Descriptions:"]
[]
[null,"Unless described as fixed with adhesive to plaster (plaster elsewhere), descriptions of tiling on brick or concrete walls, columns, etc., shall be deemed to include 1:4 cement plaster backing and descriptions of tiling on concrete floors etc. shall be deemed to include 1:3 plaster bedding."]
[]
[null,"PORCELAIN FLOOR COVERINGS, WALL LININGS, ETC."]
[]
[null,"PORCELAIN FLOOR TILING"]
[]
[null,"400 x 400 x 12mm full bodied porcelain tiles laid on TAL Gold Star tile adhesive OR similar approved product, grout to architect's choice and soft joints of 3mm raked clean of the tile adhesive and filled with polyurethane sealant (colour grey). Allow the prime cost amount of R500-00 (Five Hundred Rand excluding VAT) net per square metre for tiles, supplied and delivered to site and add for taking delivery, storage and installation."]
[]
["102.1","On screeded floors.","m²",{"v":350,"d":"350.00"},null,{"$f":"D25*E25","v":0}]
[]
["102.2","100mm High skirting to match floor tile.","m",{"v":350,"d":"350.00"},null,{"$f":"D27*E27","v":0}]
[]
[null,"PORCELAIN WALL TILING"]
[]
[null,"400 x 200 x 12mm full bodied porcelain wall tiles laid in stretcher pattern on TAL Gold Star tile adhesive OR similar approved product, grout to architect's choice and soft joints of 3mm raked clean of the tile adhesive and filled with polyurethane sealant (colour grey). Allow the prime cost amount of R500-00 (Five Hundred Rand excluding VAT) net per square metre for tiles, supplied and delivered to site and add for taking delivery, storage and installation."]
[]
["102.3","On walls.","m²",{"v":220,"d":"220.00"},null,{"$f":"D33*E33","v":0}]
[]
["102.4","On narrow widths.","m²",{"v":6,"d":"6.00"},null,0]
[]
[null,"NOSINGS, JOINT COVERS, PROTECTORS, ETC."]
[]
[null,"Mtrim' or similar approved cover strips:"]
[]
["102.5","Mtrim' ASSJ16R or similar approved structural movement joint cover size 38mm wide x 30mm deep fixed to concrete and screeded over including ridged infill.","m",{"v":115,"d":"115.00"},null,{"$f":"D41*E41","v":0}]
[]
[null,"M Trim' PVC round edge trim:"]
[]
["102.6","Kirk Marketing or similar approved product 12mm stainless steel straight edge trim 12mm to suit tiling 6 to 8mm thick, fixed with adhesive to external wall corners.","m",{"v":34,"d":"34.00"},null,{"$f":"D45*E45","v":0}]
[]
[null,"Wall tiling glazed porcelain"]
[]
[null,"300 x 200mm glazed and rectified premium porcelain wall tiles, fixed to internal wall laster/rhinoboard backing with approved tile adhesive. 2-3mm"]
[]
["102.6","On walls.","m²",{"v":15,"d":"15.00"},null,{"$f":"D51*E51","v":0}]
[]
[null,"300 x 200mm glazed and rectified premium porcelain wall tiles, fixed to internal wall plaster rhinoboard backing with approved tile adhesive. 2-3mm grout to match. Tile and grout colour to be selected. Natural Anodised edge trims visible tile edges."]
[]
["102.7","On walls.","m²",{"v":95,"d":"95.00"},null,{"$f":"D55*E55","v":0}]
[]
[null,"300 x 200mm glazed and rectified premium porcelain wall tiles, fixed to internal wall plaster rhinoboard backing with approved tile adhesive. 2-3mm grout to match. Tile and grout colour to be selected. Natural Anodised edge trims visible tile edges."]
[]
["102.8","On walls.","m²",{"v":26,"d":"26.00"},null,{"$f":"D59*E59","v":0}]
[]
[null,"FLOOR TILING"]
[]
[null,"Tile 1 - large format full body porcelain lapato floor 600x600 or similar, to be selected from premium range full bodied rectified high traffic glazed lappato tiles, set in manufacturer approved adhesive, and with 2mm water resistant grout (colour to be selected)"]
[]
["102.9","On floors.","m²",{"v":75,"d":"75.00"},null,{"$f":"D65*E65","v":0}]
[]
["102.10","SKIRTING: 120mm high matching tile skirting with edge trims along all walls","m²",{"v":95,"d":"95.00"},null,{"$f":"D67*E67","v":0}]
[]
[]
[null,"Tile 2 - medium format full body porcelain lapato floor 300x300 or similar, to be selected from premium range full bodied rectified high traffic glazed lappato tiles, set in manufacturer approved adhesive, and with 2mm water resistant grout (colour to be selected)"]
[]
["102.11","On floors.","m²",{"v":83,"d":"83.00"},null,{"$f":"D72*E72","v":0}]
[]
["102.12","SKIRTING: 120mm high matching tile skirting with edge trims along all walls","m²",{"v":80,"d":"80.00"},null,{"$f":"D74*E74","v":0}]
[]
[null,"Tile 3 - Mosaic full body porcelain glazed matt floor: 50x50 or similar, to be selected from premium range full bodied glazed mosaic tiles, set in manufacturer approved adhesive for wet areas, and with water resistant grout (colour to be selected)."]
[]
["102.13","On floors.","m²",{"v":10,"d":"10.00"},null,{"$f":"D78*E78","v":0}]
[]
[null,"Van Dyck design jewel Or Similar approved carpet sheeting of specified colour laid with Low VoC Adhesive "]
[]
["102.14","On floors. ","m2",116,null,{"$f":"D82*E82","v":0}]
[]
[null,"Vinyl Accessories of specified colour fixed with adhesive with low volatile organic compound (VOC) "]
[]
["102.15","70mm High skirting. ","m",115,null,{"$f":"D86*E86","v":0}]
[]
[null,"FloorworXnorament 825 Or Similar approved rubber floor tiles laid with adhesive with low Volatile Organic Compound (VOC) including welded joints as per Manufacturer's Specification "]
[]
["102.16","On floors. ","m2",5,null,{"$f":"D90*E90","v":0}]
[]
[null,"Union Tiles Beige Polished Porcelain Tiles (Code: 1MAR3GBEI) Or Similar approved Size 600 x 600mm fixed with adhesive and jointed and pointed with 4mm flush joints in coloured Grout on screed (Elsewhere Measured) "]
[]
["102.17","On floors and landings with continuous joints in both directions. ","m2",89,null,{"$f":"D94*E94","v":0}]
[]
["102.18","On riser 180mm high formed of one row stretcher course tiles. ","m",19,null,{"$f":"D96*E96","v":0}]
[]
["102.19","On treads 280mm wide formed of one row header course tiles. ","m",19,null,0]
[]
["102.20","100mm High skirting formed of cut floor tiles. ","m",60,null,{"$f":"D100*E100","v":0}]
[]
[null,"Ceramic glazed floor tiles size 300 x 300mm fixed with adhesive and jointed and pointed with 4mm flush joints in coloured grout on screed (Elsewhere Measured) "]
[]
["102.21","On floors and landings with continuous joints in both directions. ","m2",24,null,{"$f":"D104*E104","v":0}]
[]
["102.22","100mm High skirting formed of cut floor tiles. ","m",34,null,{"$f":"D106*E106","v":0}]
[]
[null,"WALL TILING "]
[]
[null,"Johnson Matisse MA10 Or similar approved Ivory glazed ceramic wall tiles size 152 x 152 x 6,3mm thick fixed with adhesive and jointed and pointed with flush joints in grout on plaster (Elsewhere Measured) "]
[]
["102.23","On walls. ","m2",95,null,{"$f":"D112*E112","v":0}]
[]
["102.24","On isolated panels, splashbacks, etc to walls not exceeding 1m2. ","m2",5,null,{"$f":"D114*E114","v":0}]
[]
[null,"Sundries "]
[]
["102.25","PVC tile edge trim to wall tiles. ","m",18,null,{"$f":"D118*E118","v":0}]
[]
["102.26","Rake out 5 x 8mm deep floor tile joint, prime and caulk with an approved coloured polysulphide applied with a pressure caulking gun. ","m",83,null,{"$f":"D120*E120","v":0}]
[]
["102.27","30 x 13 x 3mm Aluminium angle stair nosing bedded under tiles ","m",19,null,{"$f":"D122*E122","v":0}]
[]
[null,"200 x 200 x 5mm white glazed ceramic tiles fixed with approved tile adhesive to plaster (plaster elsewhere measured):"]
[]
["102.28","On walls in isolated panels, splashbacks, etc.","m2",{"v":16,"d":"16.00"},null,{"$f":"D126*E126","v":0}]
[]
[null,"Sub total (Bill No 12)"]

{"sheet":"BILL NO.13","index":12,"n_rows":120,"n_cols":6,"rows_kept":120}
["ITEM","DESCRIPTION","UNIT","QUANTITY","RATE","AMOUNT"]
[]
[null,"BILL NO. 13"]
[]
[103,"IRONMONGERY"]
[]
[null,"Hinges, bolts,etc:"]
[]
["103.1","75 x 100mm Brass butt hinge fixed to frame with brass screws.","No",{"v":3,"d":"3.00"},null,{"$f":"D9*E9","v":0}]
[]
["103.2","100 x 75mm Stainless steel hinges (Union 8352-100SS) or  similar approved.","No",{"v":3,"d":"3.00"},null,0]
[]
[]
["103.3","150 x 20mm flush bolts (code AL805-150AS) or similar  approved.","No",{"v":1,"d":"1.00"},null,0]
[]
[null,"Locks:"]
[]
["103.4","CZ gower furinture (Union 682-24-SC) or similar approved.","No",{"v":2,"d":"2.00"},null,0]
[]
["103.5","Rebated conversion set (Union 2910)  or similar approved.","No",{"v":2,"d":"2.00"}]
[]
["103.6","Profile cylinder deadlock (Union L-21315-76SS) or similar  approved.","No",{"v":2,"d":"2.00"},null,0]
[]
[]
["103.7","Three lever approved mortice lock (Union 2277-78 SC) or  similar approved complete with approved chromium plated  handles.","No",{"v":1,"d":"1.00"},null,0]
[]
["103.8","Four lever mortice lockset for rebating meeting stiles (Union CZ  692-24-47)  or similar approved complete with approved  chromium plated handles.","No",{"v":1,"d":"1.00"},null,0]
[]
[null,"ESCUTCHEONS"]
[]
[null,"\"Solid\" or similar approved"]
[]
["103.9","Escutcheon","No",{"v":69,"d":"69.00"},null,{"$f":"D33*E33","v":0}]
[]
[null,"Pull Handles:"]
[]
["103.10","Union AL-5515-200BTAS or similar approved dove pull handle.","No",{"v":2,"d":"2.00"},null,0]
[]
[null,"\"Dorma\" or equal approved"]
[]
["103.11","Aluminium door handles","No",{"v":59,"d":"59.00"},null,{"$f":"D41*E41","v":0}]
[]
[]
[null,"Door closers:"]
[]
["103.12","Overhead door closer Dorma TS73N or similar approved.","No",{"v":1,"d":"1.00"},null,0]
[]
[null,"Door stops:"]
[]
["103.13","Union 8731SC or similar approved buffered door stop.","No",{"v":2,"d":"2.00"},null,0]
[]
[null,"Cabin Hooks:"]
[]
["103.14","Union AL8723AS or similar approved cabin hook.","No",{"v":2,"d":"2.00"},null,{"$f":"D54*E54","v":0}]
[]
[null,"Union or similar approved:"]
[]
["103.15","3122-51mm Padlock","No",{"v":6,"d":"6.00"},null,0]
[]
["103.16","Padlock with three keys (Union 3142) or similar approved.","No",{"v":5,"d":"5.00"},null,{"$f":"E60*D60","v":0}]
[]
[null,"CATCHES, CABIN HOOKS, ETC"]
[]
["103.17","Dormakaba dust proof strike or similar approved","No",{"v":2,"d":"2.00"},null,{"$f":"E64*D64","v":0}]
[]
["103.18","Dormakaba adjustable roller bolt or similar approved","No",{"v":2,"d":"2.00"},null,{"$f":"E66*D66","v":0}]
[]
["103.19","Steel dormakaba wall buffer or similar approved","No",{"v":5,"d":"5.00"},null,{"$f":"E68*D68","v":0}]
[]
["103.20","Dormakaba floor mounted door stop or similar approved","No",{"v":15,"d":"15.00"},null,{"$f":"E70*D70","v":0}]
[]
["103.21","Dormakaba hat and coat hook with rubber buffer or similar approved","No",{"v":5,"d":"5.00"},null,{"$f":"E72*D72","v":0}]
[]
["103.22","Dormakaba Cabin hook 150mm or similar approved","No",{"v":2,"d":"2.00"},null,{"$f":"E74*D74","v":0}]
[]
[null,"Push Plates:"]
[]
["103.23","Stainless steel pushplate 150 x 175 x 3mm cylinder cutout ","No",{"v":2,"d":"2.00"},null,0]
[]
[]
[null,"Bathroom fittings etc.:"]
[]
["103.24","Standard soap dispenser.","No",{"v":1,"d":"1.00"},null,0]
[]
["103.25","Standard towel dispense.","No",{"v":1,"d":"1.00"},null,0]
[]
["103.26","Standard lockable toilet paper dispenser.","No",{"v":1,"d":"1.00"},null,0]
[]
[null,"Towel Rails:"]
[]
["103.27","Franke 900 x 125mm polished stainless steel double towel rail (product code: 2120083) or any similar approved product","No",{"v":6,"d":"6.00"},null,0]
[]
["103.28","Franke 203dia polished stainless steel wall mounted towel ring (product code: 2120084) or any similar approved product","No",{"v":6,"d":"6.00"},null,0]
[]
[null,"Soap Holder:"]
[]
["103.29","Franke 163 x 100mm stainless steel double arm soap rack (product code: 2120089) or any similar approved product","No",{"v":12,"d":"12.00"},null,0]
[]
[null,"Toilet Roll Holders:"]
[]
["103.30","Franke 145 x 75mm polished stainless steel toilet roll holder (product code: 2120086) or any similar approved product","No",{"v":6,"d":"6.00"},null,0]
[]
[null,"SUNDRIES"]
[]
["103.31","Stainless steel hat and coat hook with rubber buffer","No",{"v":16,"d":"16.00"},null,{"$f":"D105*E105","v":0}]
[]
[104,"LETTERS, NAMEPLATES, ETC."]
[]
[null,"Indicator plates countersunk holed for and screwed to door or brickwork with chromium plated dome-headed screws:"]
[]
["104.1","190 x 190 x 3mm Thick white perspex international FB2 sign  plate with red fire extinguisher symbol plugged to brickwork. ","No",{"v":1,"d":"1.00"},null,0]
[]
[]
["104.2","75 x 150mm High aluminium toilet sign with MALE and/or  FEMALE  figure screwed to door.  FEMALE  figure screwed to door. ","No",{"v":1,"d":"1.00"},null,0]
[]
[null,"Clear perspex or similar approved name plate reverse engraved and enamelled in white lettering 25mm high to suit, twice countersunk holed for and tapscrewed to steel door frames or gate framing with chromium plated dome-headed selftapping screws:"]
[]
["104.3","3mm Thick x 32mm high plate with letters \"WAGHUIS\" or Words of Similar nature.","No",{"v":1,"d":"1.00"},null,0]
[]
[null,"Sub total (Bill No 13)"]

{"sheet":"BILL NO. 14","index":13,"n_rows":134,"n_cols":6,"rows_kept":134}
["ITEM","DESCRIPTION","UNIT","QUANTITY","RATE","AMOUNT"]
[]
[null,"BILL NO.14"]
[]
[105,"METALWORK"]
[]
[null,"SUNDRY BRASS WORK:"]
[]
[null,"Brass:"]
[]
["105.1","4 x 30mm Weatherbar set in concrete flush with floor finish one ","m",{"v":1,"d":"1.00"},null,{"$f":"D11*E11","v":0}]
[]
[]
[null,"PRESSED STEEL DOOR FRAMES:"]
[]
[null,"Hot Dipped Galvanized."]
[]
[null,"1,6mm Rebated frames suitable for half brick walls with two 100 x 75mm ball bearing stainless steel butt hinges per door leaf:"]
[]
["105.2","Frame for door 813 x 2032mm high.","No",{"v":1,"d":"1.00"}]
[]
[null,"GALVANIZED STEEL WINDOW FRAMES"]
[]
[null,"Hot Dipped Galvanized."]
[]
[null,"Durowin' or similar approved galvanised steel residential type window frames fitted with burglar bars to all opening sections at factory:"]
[]
["105.3","Window (W2), total size 987 x 988mm, with burglar bars all","No",{"v":1,"d":"1.00"},null,0]
[]
["105.4","Window (W3), total size 533 x 949mm, with burglar bars all","No",{"v":1,"d":"1.00"},null,0]
[]
["105.5","Aluminium Window: 987 x 1445","No",{"v":1,"d":"1.00"},null,{"$f":"D32*E32","v":0}]
[]
["105.6","Aluminium Window: 533 x 1445","No",{"v":1,"d":"1.00"},null,{"$f":"D34*E34","v":0}]
[]
[null,"ALUMINIUM WINDOWS, DOORS, ETC"]
[]
[null,"Note: All tenderers should allow for standard"]
[null,"ironmongery items. "]
[]
[null,"Note: All dimensions to be checked on site prior to construction. Clear silicone joints between window frames and brickwork. Aluminium frames shall be factory wrapped in protective plastic covering and shall be removed once building works are complete."]
[]
[null,"Charcoal powder coated aluminium windows with 6mm clear safety glass to AAMSA standards with structural silicone all round and secret fixed glazing beads on one side"]
[]
["105.7","Window 1500 x 1200mm high overall code W01","No",{"v":31,"d":"31.00"},null,{"$f":"D45*E45","v":0}]
[]
["105.8","Window 1800 x 1800mm high overall code W05","No",{"v":1,"d":"1.00"},null,{"$f":"D47*E47","v":0}]
[]
[null,"Charcoal powder coated aluminium windows with beads on one side 4mm frosted glass to AAMSA standards with structural silicone all round and secret fixed glazing beads on one side"]
[]
["105.9","Window 1511 x 654mm high overall code W02","No",{"v":3,"d":"3.00"},null,{"$f":"D51*E51","v":0}]
[]
[null,"Charcoal powder coated aluminium windows with 4mm safety glass to AAMSA standards with structural silicone all round and secret fixed glazing beads on one side"]
[]
["105.10","Window 533 x 654mm high overall code W03","No",{"v":17,"d":"17.00"},null,{"$f":"D55*E55","v":0}]
[]
[null,"Charcoal powder coated aluminium windows with 4mm clear safety glass to AAMSA standards with structural silicone all round and secret fixed glazing beads on one side"]
[]
[]
["105.11","Window 1022 x 949mm high overall code W04","No",{"v":8,"d":"8.00"},null,{"$f":"D60*E60","v":0}]
[]
[106,"DOORS, ETC."]
[]
[null,"Powder coated aluminium frame colue blue grey, with laminated safety glass in neoprene gasket. Note : Gaps on sides and soffits to have maximum tolerance of 3mm and to be filled with approved silicon sealant."]
[]
["106.1","Door 1800 x 2032mm high overall","No",{"v":1,"d":"1.00"},null,{"$f":"D66*E66","v":0}]
[]
[107,"CUPBOARDS"]
[]
[null,"Cupboard By Insight With Epoxy Powder Coated Finish:"]
[]
["107.1","Code CU10 Cupboard or similar approved with four shelves  and lockable double doors, size 900 x 450 x 1800mm high  bolted to wall with four 6mm diameter expansion bolts. ","No",{"v":1,"d":"1.00"},null,{"$f":"D72*E72","v":0}]
[]
[108,"SUNDRY METALWORK "]
[]
[null,"Galvanised Mild Steel "]
[]
[null,"PRIMED PRESSED STEEL DOOR FRAMES "]
[]
[null,"1,2mm thick double rebated frame for half brick wall complete with butts, etc and including setting up, building in, filling back of frame with cement mortar, etc "]
[]
["108.1","Frame for door size 813 x 2032mm. ","No",13,null,0]
[]
["108.2","Frame for double door size 1511 x 2032mm. ","No",3,null,0]
[]
[109,"STEEL STRONGROOM DOORS, VENTILATORS, ETC "]
[]
["109.1","Austin P100 record room door or similar approved product and frame size 1030 x 2010mm overall (mass 245kg) including setting up, building in and caulking all around in 1.1 cement mortar. ","No",1,null,0]
[]
[110,"NATURAL ANODISED ALUMINIUM WINDOWS, DOORS, ETC "]
[]
[null,"Pre-glazed projected-out aluminium windows complete with ironmongery and Including setting up, building in, filling back of frame with cement mortar, sealing around with silicone, etc "]
[]
["110.1","Window type W01 size 1500 x 1700mm glazed with 6.38mm Solarvue Neutral HL. Glazing. ","No",12,null,0]
[]
["110.2","Window type W02 size 630 x 1170mm glazed with Frosted 6.38mm Solarvue Neutral HL. Glazing. ","No",2,null,0]
[]
["110.3","Window type W03 size 1350 x 1455mm glazed with 6.38mm Solarvue Neutral HL. Glazing. ","No",10,null,0]
[]
["110.4","Window type W04 size 900 x 1700mm glazed with 6.38mm Solarvue Neutral HL. Glazing. ","No",1,null,0]
[]
["110.5","Window type W05 size 600 x 1140mm glazed with Frosted 6.38mm Solarvue Neutral HL. Glazing. ","No",2,null,0]
[]
["110.6","Window type W06 size 1500 x 1200mm glazed with Frosted 6.38mm Solarvue Neutral HL. Glazing. ","No",5,null,0]
[]
["110.7","Window type W07 size 1630 x 1540mm glazed with Frosted 6.38mm Solarvue Neutral HL. Glazing. ","No",9,null,0]
[]
["110.8","Window type W08 size 2280 x 1540mm glazed with Frosted 6.38mm Solarvue Neutral HL. Glazing. ","No",4,null,0]
[]
[null,"Pre-glazed aluminium doors, sidelights, etc., complete with ironmongery and including setting up, building in, filling back of frame with cement mortar, sealing around same with silicone, etc. "]
[]
["110.9","Door size 2265 x 2645mm","No",1,null,0]
[]
["110.10","Door size 2265 x 2250mm","No",1,null,0]
[]
["110.11","Door size 775 x 2475mm","No",2,null,0]
[]
[null,"Galvanised Steel Staircase"]
[]
["110.12","Galvanised steel fire escape staircase and hand railing complete","No",1,null,0]
[]
[null,"Galvanised Mesh Screen Gates"]
[]
["110.13","Single leaf framed mesh screen swing gate size 1100 x 2595mm high (complete)","No",1,null,0]
[]
["110.14","Single leaf framed mesh screen swing gate size 1510 x 2595mm high (complete)","No",1,null,0]
[]
["110.15","Double leaf framed mesh screen swing gate size 5902 (overall) x 2200mm high (complete) ","No",2,null,0]
[]
[null,"Galvanised Mesh Screens"]
[]
["110.16","Framed mesh screen size 4790 x 2200mm high (complete)","No",2,null,0]
[]
[null,"Sub total (Bill No 14)"]

{"sheet":"BILL NO. 15","index":14,"n_rows":143,"n_cols":6,"rows_kept":143}
["ITEM","DESCRIPTION","UNIT","QUANTITY","RATE","AMOUNT"]
[]
[null,"BILL NO.15"]
[]
[111,"STRUCTURAL STEELWORK(CPAP Work Group No 134 Unless Otherwise Stated) "]
[]
[null,"NOTES:"]
[]
[null,"General:"]
[]
[null,"1.All structural drawings are to be read in conjunction with the drawings of the architect. Any discrepencies to be reported to the Engineer or Project Manager immediately. "]
[null,"2 Structural steelwork to be carried out in accordance with SABS 1200 H. Any discrepancies in specification must be reported to the Engineer or Project Manager "]
[]
[null,"Materials"]
[]
[null,"1 All structural steel to be manufactured of grade 350W steel. "]
[]
[null,"2 Welds to be E70XX electrodes with minimum ultimate strength of 480 MPa."]
[]
[null,"3 All bolts to be Grade 4.8 unless specified otherwise."]
[]
[null,"4 All materials to comply with relevant SABS codes."]
[]
[null,"Welds:"]
[]
[null,"1 All welds to be full tensile strength of members."]
[]
[null,"2 All welds to be round unless specified otherwise."]
[]
[null,"3 Welds shall be done in a manner that will eliminate warping of members."]
[]
[null,"4 All welds to be of an even size and neatly finished."]
[]
[null,"Approval by the Engineer:"]
[]
[null,"1 It is a requirement that shop drawings be submitted to the Engineer for all tubular steel trusses, stanchions and support beams of main structural support support beams. "]
[]
[null,"2 The onus remains with the contractor to comply with all SABS structural steel design manufacturing codes."]
[]
[null,"3 Any details of connections not provided by the Engineers must be submitted to him/her for approval before manufacturing commences."]
[]
[null,"4 Any deviations from details provided by the Engineer must be approved by him/her in writting before manufacturing commences."]
[]
[null,"Cutting & drilling:"]
[]
[null,"1 No cutting of holes for bolts with gas flame will be permitted."]
[]
[null,"2 All visible edges of members cut with gas must be neatly ground down to eliminate all traces of gas cutting."]
[]
[null,"Erection:"]
[]
[null,"1 All cantilever structures to be temporarily propped until structures are substantially complete and stable."]
[]
[null,"Corrosion protection:"]
[]
[null,"A. Hidden structural members: "]
[]
[null,"1 All structural steelwork to be cleaned with mechanical wire brush to remove all mill shale and surface corrosion. No pitted members will be accepted."]
[]
[null,"2 Structural steelwork to be degreased and prepared in accordance with the requirements set by the of undercoats."]
[]
[null,"SUPPLEMENTARY PREAMBLES"]
[]
[null,"Descriptions"]
[]
[null,"Descriptions of bolts shall be deemed to include nuts and washers "]
[]
[null,"Descriptions of L-shaped and U-shaped anchor bolts shall be deemed to include bending, threading, nuts and washers and embedding in concrete"]
[]
[null,"Descriptions of expansion anchors and bolts and chemical anchors and bolts shall be deemed to include nuts, washers and mortices in brickwork or concrete"]
[]
[null,"Descriptions of L-shaped and U-shaped anchor bolts shall be deemed to include bending, threading, nuts and washers and embedding in concrete. Where anchor bolts are described as embedded in sides or soffits of concrete it shall be deemed to include holes through formwork."]
[]
[null,"Descriptions of expansion anchors and bolts and chemical anchors and bolts shall be deemed to include nuts, washers and mortices in brickwork or concrete."]
[]
[null,"STEEL COLUMNS AND BEAMS"]
[]
[null,"Galvanised, welded columns, rafters, haunches, beams, jibs, etc in single lengths with flat section base, top, bearer and connection plates bolted to steel"]
[]
["111.1","356 x 171mm x 45kg/m I-section columns","t",6,null,{"$f":"D80*E80","v":0}]
[]
["111.2","203 x 203mm x 46kg/m H-section columns","t",1.5,null,0]
[]
["111.3","203 x 133mm x 25kg/m I-section columns","t",2.7,null,0]
[]
["111.4","120 x 120 x 8 x 14.7kg/m angle section rafter (top chord)","t",5.5,null,0]
[]
["111.5","90 x 90 x 8 x 10.9kg/m angle section rafter (bottom chord)","t",2.1,null,0]
[]
["111.6","80 x 80 x 6 x 7.34kg/m angle section truss bracing","t",3.2,null,0]
[]
["111.7","300 x 100 x 45.4kg/m  PFC middle truss top chord","t",2.2,null,0]
[]
["111.8","200 x 24.3kg/m  PFC middle truss bottom chord","t",1.2,null,0]
[]
["111.9","120 x 120 x 10 x 18.2kg/m angle section middle truss verticals","t",1.37,null,0]
[]
["111.10","90 x 90 x 8 x 10.9kg/m angle section middle truss diagonals","t",1.35,null,0]
[]
["111.11","120 x 120 x 8 x 14.7kg/m angle section false rafter","t",1.17,null,0]
[]
["111.12","165 dia x 4mm thick circular hollow section eaves strutt","t",1.9,null,0]
[]
["111.13","203 x 133mm x 25kg/m I-section canopy rafters","t",0.99,null,0]
[]
["111.14","203 x 133mm x 25kg/m I-section rafters","t",1,null,0]
[]
["111.15","Endplates, backing plates, gussets, cleats, splices, stiffeners, etc","t",1.75,null,0]
[]
[null,"Galvanised flat section baseplates, gusset plated, etc"]
[]
["111.16","Baseplates, endplates, gussets, cleats, splices, stiffeners, etc","kg",250,null,0]
[]
[112,"PURLINES, GRITS, BRACING, ETC"]
[]
[null,"Galvanised mild steel purlins, grits, etc. bolted to steel and/or concrete"]
[]
["112.1","250 x 75 x 20 x 2.5mm x 8.31 kg/m thick lipped channel roof purlins and grits","t",9,null,0]
[]
["112.2","250 x 75 x 20 x 2.5mm x 8.31 kg/m thick lipped channel  canopy purlins","t",2.21,null,0]
[]
["112.3","250 x 75 x 20 x 2.5mm x 8.31 kg/m thick lipped channel purlins","t",0.7,null,0]
[]
["112.4","125 x 75 x 20 x 2.5mm x 5.33 kg/m thick lipped channel side rails","t",2.8,null,0]
[]
[null,"Bracing, struts, cleats, etc"]
[]
["112.5","165 dia x 4mm thick circular hollow section side bracing","t",2.6,null,0]
[]
[]
["112.6","165 dia x 4mm thick circular hollow section roof bracing","t",1.8,null,0]
[]
["112.7","50 x 50 x 5 x 3.77kg/m angle section sag bars","t",1.65,null,0]
[]
[113,"BOLTS"]
[]
[null,"Bolts to columns, beams, etc"]
[]
["113.1","High tensile bolts","t",0.9,null,0]
[]
["113.2","M20 grade 8.8 holding down bolts 480mm long cast into concrete","No",86,null,0]
[]
[null,"Sub total (Bill No 15)"]

{"sheet":"BILL NO. 16","index":15,"n_rows":33,"n_cols":6,"rows_kept":33}
["ITEM","DESCRIPTION","UNIT","QUANTITY","RATE","AMOUNT"]
[]
[null,"BILL NO.16"]
[]
[114,"PLASTERING"]
[]
[null,"SCREEDS"]
[]
[null,"1:3 Cement screed on concrete:"]
[]
["114.1","30mm Thick on floors and landings.","m2",{"v":8,"d":"8.00"},null,{"$f":"D11*E11","v":0}]
[]
["114.2","50mm Thick on floors and landings. ","m2",86,null,0]
[]
["114.3","75mm Thick on floors and landings. ","m2",100,null,0]
[]
["114.4","30mm Thick on treads and risers of stairs. ","m2",9,null,{"$f":"D17*E17","v":0}]
[]
[null,"CEMENT PLASTER"]
[]
[null,"1:4 Cement plaster on brickwork:"]
[]
["114.5","On walls.","m2",{"v":27,"d":"27.00"},null,0]
[]
["114.6","On narrow widths.","m2",{"v":3,"d":"3.00"},null,0]
[]
["114.7","Projecting and isolated beams. ","m2",11,null,{"$f":"D27*E27","v":0}]
[]
[null,"DIVIDING STRIPS, ETC "]
[]
["114.8","3 x 25mm Flat section brass dividing strip or waterbar set on edge in screed between different floor finishes. ","m",12,null,{"$f":"D31*E31","v":0}]
[]
[null,"Sub total (Bill No 16)"]

{"sheet":"BILL NO. 17","index":16,"n_rows":477,"n_cols":6,"rows_kept":477}
["ITEM","DESCRIPTION","UNIT","QUANTITY","RATE","AMOUNT"]
[]
[null,"BILL NO.17"]
[]
[115,"PLUMBING AND DRAINAGE (PROVISONAL)"]
[]
[null,"PREAMBLES (CPAP Work Group No. 148 Unless Otherwise Stated) "]
[]
[null,"SUPPLEMENTARY PREAMBLES"]
[]
[null,"Proprietary products in descriptions"]
[]
[null,"Proprietary products shall be used as specified. SABS approved substitute products of similar quality and specification may also be used."]
[]
[null,"RAINWATER DISPOSAL"]
[]
[null,"Seamless aluminium gutters fixed to fibre cement fascia with fixings, brackets, etc to suit snow conditions:"]
[]
[]
["115.1","Commercial and industrial square profile aluminium H3003h 14  seamless gutter, overall size 140 x 150 x 0.9mm thick eaves  gutter fixed to falls in continuous lengths at not exceeding  600mm centres with and including approved gutter brackets.","m",{"v":18,"d":"18.00"},null,{"$f":"D20*E20","v":0}]
[]
["115.2","Extra over eaves gutter for angle.","No",{"v":4,"d":"4.00"},null,0]
[]
["115.3","Extra over eaves gutter for outlet for 78 x 78mm pipe.","No",{"v":2,"d":"2.00"},null,0]
[]
["115.4","78 x 78 x 2mm thick rainwater pipes fixed to walls with and  including approved holderbats at 1500mm centres.","m",{"v":5,"d":"5.00"},null,0]
[]
[]
["115.5","Extra over rainwater pipe for plinth offset.","No",{"v":2,"d":"2.00"},null,0]
[]
["115.6","Extra over rainwater pipe for bend.","No",{"v":4,"d":"4.00"},null,0]
[]
["115.7","Extra over rainwater pipe for shoe. ","No",{"v":2,"d":"2.00"},null,0]
[]
[null,"110mm seamless aluminium prepainted gutters and rainwater pipes"]
[]
["115.8","110mm diameter rainwater pipes","m",{"v":15,"d":"15.00"},null,{"$f":"D37*E37","v":0}]
[]
["115.9","Extra over rainwater pipe for fulbore outlet","No",{"v":8,"d":"8.00"},null,{"$f":"D39*E39","v":0}]
[]
["115.10","Spreader for 110mm pipe","No",{"v":8,"d":"8.00"},null,{"$f":"D41*E41","v":0}]
[]
[116,"WASTE UNIONS ETC"]
[]
[null,"Waste unions etc:"]
[]
["116.1","32mm Code 301 chrome plated basin waste union. ","No",{"v":1,"d":"1.00"},null,{"$f":"D47*E47","v":0}]
[]
[117,"TRAPS ETC"]
[]
[null,"Traps etc:"]
[]
["117.1","32mm Cobra Watertech chrome plated deep seal bottle trap  with outlet for 50mm PVC (Code 345/50).","No",{"v":1,"d":"1.00"},null,0]
[]
[118,"Butyl rubber:"]
[]
["118.1","Franke Spazio 1 Code FKPL001' OR similar approved single sink bowl plumbing kit.","No",{"v":1,"d":"1.00"},null,0]
[]
["118.2","Chrome slotted waste code TVAC1033/CH or similar approved product.  ","No",{"v":1,"d":"1.00"},null,0]
[]
["118.3","Chrome bottle trap code TACV9020\\CH' or similar approved product.  ","No",{"v":1,"d":"1.00"},null,0]
[]
[null,"TAPS, VALVES, ETC"]
[]
[null,"Brushed finish brass steel:"]
[]
["118.4","15mm Bibcock with hose union.","No",{"v":2,"d":"2.00"},null,0]
[]
["118.5","15mm Stopcock.","No",{"v":2,"d":"2.00"},null,0]
[]
[null,"Pillar taps:"]
[]
["118.6","15mm Chrome plated code 211-15 pillar tap.","No",{"v":1,"d":"1.00"},null,0]
[]
["118.7","Lever operated tap code TVID02150.","No",{"v":1,"d":"1.00"},null,0]
[]
["118.8","'Idral-Projects code TVID02001/DC' tap.","No",{"v":1,"d":"1.00"},null,0]
[]
["118.9","Idral-Save code 08250' chrome self closing push button pillar tap  or Similar approved product","No",{"v":1,"d":"1.00"},null,0]
[]
["118.10","Idral-valve code 08066-1' concealed self closing flush valve  3/4 and 1  or Similar approved product","No",{"v":1,"d":"1.00"},null,0]
[]
[]
["118.11","Idral-valve code 08067L' concealed self closing flush valve  3/4and 1  or Similar approved product","No",{"v":1,"d":"1.00"},null,{"$f":"D84*E84","v":0}]
[]
["118.12","Idral-valve code 08065 TBK'  flushmaster downpipe  or Similar approved product","No",{"v":1,"d":"1.00"},null,0]
[]
["118.13","15 x 15mm chrome angle valve code TVAC1408/CH or Similar approved product","No",{"v":1,"d":"1.00"},null,0]
[]
[119,"SANITARY PLUMBING"]
[]
[null,"uPVC piping (SABS 967-1987):"]
[]
["119.1","40mm Waste piping fixed to walls.","m",{"v":10,"d":"10.00"},null,0]
[]
["119.2","50mm pipes fixed to walls.","m",{"v":237,"d":"237.00"},null,{"$f":"D96*E96","v":0}]
[]
["119.3","100mm pipes","m",{"v":92,"d":"92.00"},null,{"$f":"D98*E98","v":0}]
[]
[]
[null,"Extra over uPVC piping for:"]
[]
["119.4","40mm Bend.","No",{"v":5,"d":"5.00"},null,0]
[]
["119.5","50mm Bend.","No",{"v":173,"d":"173.00"},null,{"$f":"D105*E105","v":0}]
[]
["119.6","50mm Access Bend.","No",{"v":141,"d":"141.00"},null,{"$f":"D107*E107","v":0}]
[]
["119.7","50mm Junction","No",{"v":141,"d":"141.00"},null,{"$f":"D109*E109","v":0}]
[]
["119.8","50mm Access Junction","No",{"v":155,"d":"155.00"},null,{"$f":"D111*E111","v":0}]
[]
["119.9","110mm bend","No",{"v":48,"d":"48.00"},null,{"$f":"D113*E113","v":0}]
[]
["119.10","110mm Access bend","No",{"v":48,"d":"48.00"},null,{"$f":"D115*E115","v":0}]
[]
["119.11","110mm Socket","No",{"v":16,"d":"16.00"},null,{"$f":"D117*E117","v":0}]
[]
["119.12","110mm Junction","No",{"v":16,"d":"16.00"},null,{"$f":"D119*E119","v":0}]
[]
["119.13","110mm reducing junction","No",{"v":32,"d":"32.00"},null,{"$f":"D121*E121","v":0}]
[]
["119.14","110mm access junction","No",{"v":32,"d":"32.00"},null,{"$f":"D123*E123","v":0}]
[]
["119.15","110mm Two-way vent value","No",{"v":16,"d":"16.00"},null,{"$f":"D125*E125","v":0}]
[]
["119.16","110mm Pan connector","No",{"v":16,"d":"16.00"},null,{"$f":"D127*E127","v":0}]
[]
["119.17","40mm Access bend.","No",{"v":5,"d":"5.00"},null,0]
[]
["119.18","40mm Access bend with anti-syphon horn.","No",{"v":5,"d":"5.00"},null,0]
[]
["119.19","40mm junction.","No",{"v":5,"d":"5.00"},null,0]
[]
["119.20","40mm Access junction.","No",{"v":5,"d":"5.00"},null,0]
[]
[120,"Geysers and Fittings:"]
[]
["120.1","22mm Brass pressure control valve.","No",{"v":1,"d":"1.00"},null,0]
[]
["120.2","22mm Brass pressure relief valve.","No",{"v":1,"d":"1.00"},null,0]
[]
["120.3","22mm vacuum breaker.","No",{"v":1,"d":"1.00"},null,0]
[]
["120.4","150 litre (400 KPa) or other approved type electric hot water cylinder with connections for 22mm diameter pipes,placed in  postition fixed to wall including drip tray with 40mm pvc overflow  pipe, bends etc:","No",{"v":1,"d":"1.00"},null,0]
[null," "]
[null,"Testing:"]
[]
["120.5","Testing water system.","Item",{"v":1,"d":"1.00"},null,{"$f":"D149*E149","v":0}]
[]
[121,"SANITARY FITTINGS"]
[]
[null,"White Glazed Vitreous China Fittings Including Assembling And Fixing In Position, Expanding Bolts And Mortices In Brick Or Concrete Walls, Connecting Up, Etc. (Tap And Mixer Set Reference Numbers Are Those Of Cobra Brassware)"]
[]
["121.1","Vaal Sanitaryware or similar approved vitreous china  \"CONCORDE\" rectangular vanity basin size 580 x 510mm  (Code 702703) with one semi punched RHS taphole, including  integrated overflow complete installed complete to  manufacturers recommendation.","No",{"v":1,"d":"1.00"},null,0]
[]
["121.2","Vaal Sanitaryware or similar approved vitreous china  \"PARKTOWN\" closed rim back-to-wall pan with 90 degree  outlet including back inlet (Code 431600) and Vaal  Sanitaryware duct cistern (Code 7116DP) or concealed  flushvalve with effective 6/3 litre flush volume including  Flushmaster FJ2.000 pan connector C-FM8.20 and offset  flushpipe FJT5.7 or FM1.210 or equivalent for top entry pan  with C-FM8.80 extension lever, including Flush 120 Skate white  control panel (Code 431609) and floor bracket (Code 8082Z0),  Jazz thermoset seat (Code 8531Z0) or Buxton Sta-tite seat  (Parker Code 411-65533) including DPI Flushfit, Marley SG47  pan collar or equivalent with lid and fitments and fixed complete  to wall with fixing screws (Code 8513Z0) and floor to  manufacurers recommendation OR a similar approved product","No",{"v":1,"d":"1.00"},null,{"$f":"D157*E157","v":0}]
[]
[null,"\"Franke Steel\" or similar approved"]
[]
["121.3","Single bowl sink code 313852 inset type size 1250 x","No",{"v":9,"d":"9.00"},null,{"$f":"D161*E161","v":0}]
[null,"535mm complete fitted to top of counter (counter"]
[null,"elsewhere measured)"]
[]
[null,"\"Vaal\" Steel or similar approved"]
[]
["121.4","\"Hibiscus\" code 772610 vitreous china semi-close coupled 90º outlet open rim washdown pan with matching 9 litre cistern code 710531 complete with lid and fitments or similar approved","No",{"v":16,"d":"16.00"},null,{"$f":"D167*E167","v":0}]
[]
["121.5","510 x 405mm \"Hibiscus\" code 7023 wall hung type ceramic wash hand basin with two tapholes, integrated overflow and 32mm code 309-32 anti-theft plug fixed on and including two code 8448ZO cast iron brackets with 10mm diameter bolts or similar approved","No",{"v":16,"d":"16.00"},null,{"$f":"D169*E169","v":0}]
[]
[null,"WATER SUPPLIES"]
[]
["121.6","High density black polyethylene (HDPE) pipes with and including compression fittings:"]
[]
["121.7","25mm Pipe laid in trenches not exceeding 1m deep","m",{"v":15,"d":"15.00"},null,{"$f":"D175*E175","v":0}]
[]
[null,"Extra over HDPE pipes for polypropylene compression fittings:"]
[]
["121.8","25mm fittings","No",{"v":50,"d":"50.00"},null,{"$f":"D179*E179","v":0}]
[]
[null,"Class 2 Copper pipes:"]
[null,"REMOVING METAL ROOF SHEETING AND ACCESSORIES"]
["121.9","15mm Pipe building into walls.","m",{"v":10,"d":"10.00"},null,0]
[]
["121.10","22mm Ditto.","m",{"v":10,"d":"10.00"},null,0]
[]
["121.10","28mm Pipes \"LI\"","m",{"v":251,"d":"251.00"},null,{"$f":"D187*E187","v":0}]
[]
[null,"Class \"O\" Copper pipes:"]
[]
["121.11","15mm Pipe building into walls.","m",{"v":267,"d":"267.00"},null,{"$f":"D191*E191","v":0}]
[]
["121.12","22mm Ditto.","m",{"v":381,"d":"381.00"},null,{"$f":"D193*E193","v":0}]
[]
["121.13","28mm Pipes \"LI\"","m",{"v":251,"d":"251.00"},null,{"$f":"D195*E195","v":0}]
[]
[null,"Extra over Class \"O\" Copper pipes for capillary fittings"]
[]
["121.14","15mm Pipe fittings","No",{"v":285,"d":"285.00"},null,{"$f":"D199*E199","v":0}]
[]
["121.15","22mm Pipe fittings","No",{"v":285,"d":"285.00"},null,{"$f":"D201*E201","v":0}]
[]
["121.16","28mm Pipes fittings","No",{"v":221,"d":"221.00"},null,{"$f":"D203*E203","v":0}]
[]
[null,"Extra over class 2 copper pipes for brass compression fittings:"]
[]
["121.17","15mm Fittings. ","No",{"v":5,"d":"5.00"},null,0]
[]
["121.18","22mm Fittings. ","No",{"v":5,"d":"5.00"},null,0]
[]
[null,"Copper overflow and service pipes:"]
[]
["121.19","15mm Braided flexible connector 350mm girth.","No",{"v":50,"d":"50.00"},null,{"$f":"D213*E213","v":0}]
[]
["121.20","15mm Braided flexible connector 500mm girth.","No",{"v":10,"d":"10.00"},null,{"$f":"D215*E215","v":0}]
[]
[null,"Polypropylene pipes with thermoplastic couplings:"]
[]
["121.21","15mm Pipes fixed to walls.","m",{"v":10,"d":"10.00"},null,0]
[]
["121.22","22mm Ditto.","m",{"v":10,"d":"10.00"},null,0]
[]
[null,"Extra over polypropylene pipes for thermoplastic fittings:"]
[]
["121.23","15mm Fittings. ","No",{"v":5,"d":"5.00"},null,0]
[]
["121.24","22mm Fittings. ","No",{"v":5,"d":"5.00"},null,0]
[]
[null,"Polycop polypropylene pipes"]
[]
[null,"Polypropylene pipes 54mm diameter and under shall be seamless copper coloured class 16 pipes jointed with \"Fast-fuse\" heat welded thermoplastic or brass compression fittings as designed for use with copper pipes as stated.  Pipes shall be firmly fixed to walls etc with coloured nylon snap-in pipe clips with provision for accommodating thermal movement and jointed and fixed strictly in accordance with the manufacturer's instructions.  All pipe diameters are nominal external.  Polypropylene pipes 63mm diameter and over shall be class 12 pipes jointed with cast iron \"Supraclamp\" running joints.  Fusion welded bends, once or twice mitred as necessary, and tees shall be factory manufactured.  Fusion welded bends and tees shall include jointing to pipes with PVC rubber ring double Z joint couplers.  Branch tees shall include flanged and bolted joints to \"Polycop\" branch pipes in addition and for brass compression male iron to copper straight couplers."]
[]
[null,"Polylink polypropylene pipes"]
[]
[null,"Polypropylene pipes 63mm diameter and over shall be class 12 pipes jointed with cast iron \"Supraclamp\" running joints.  Fusion welded bends, once or twice mitred as necessary, and tees shall be factory manufactured.  Fusion welded bends and tees shall include jointing to pipes with PVC rubber ring double Z joint couplers.  Branch tees shall include flanged and bolted joints to \"Polycop\" branch pipes in addition and for brass compression male iron to copper straight couplers.  Reducers shall include jointing to pipes with PVC rubber ring double Z joint couplers and reducers shall be of sufficient overall length to accommodate same.  All pipes shall be jointed and fixed strictly in accordance with the manufacturer's instructions.  All pipe diameters are nominal external."]
[]
[null,"Sundries:"]
[]
["121.25","Cut into existing 28mm copper or polycarb pipe and join new 25mm HDPE pipe including all necesarry fittings etc","No",{"v":1,"d":"1.00"},null,{"$f":"D239*E239","v":0}]
[]
[null,"Concrete pipes"]
[]
[null,"Pipes shall be jointed with ogee joints with rubber collars or socket and spigot joints with rubber rings."]
[]
[null,"uPVC pipes and fittings:"]
[]
[null,"Soil, waste and vent pipes and fittings shall be solvent weld jointed"]
[]
[null,"uPVC pressure pipes and fittings"]
[]
[null,"Pipes for water supply shall be of the class stated.Pipes of 40mm diameter and smaller shall be plain ended with solvent welded uPVC loose sockets and fittings.Pipes of 50mm diameter and greater shall have sockets and spigots with push in type integral rubber ring joints. Bends shall be uPVC and all other fittings shall be cast iron, all with similar push-in type joints."]
[]
[null,"Copper pipes:"]
[]
[null,"Pipes shall be hard drawn and half-hard pipes of the class stated.  Class 0 (thin walled hard drawn) pipes shall not be bent.  Class 1 (thin walled half-hard), class 2 (half-hard) and class 3 (heavy walled half-hard) pipes shall only be bent with benders with inner and outer formers.  Fittings to copper waste, vent and anti-syphon pipes, capillary solder fittings and compression fittings shall be \"Cobra Watertech\" type.  Capillary solder fittings shall comply with ISO 2016.  Only compression fittings shall be used in walls or in ground"]
[]
[null,"Fixing of pipes"]
[]
[null,"Unless specifically otherwise stated, descriptions of pipes shall be deemed to include fixing to walls etc, casting in, building in or suspending not exceeding 1m below suspension level"]
[]
[null,"Lead pipes and traps"]
[]
[null,"All soldered joints shall be wiped and brass unions shall be used for jointing lead to steel."]
[]
[null,"Reducing fittings"]
[]
[null,"Where fittings have reducing ends or branches they are described as \"reducing\".  In the case of pipes with diameters not exceeding 60mm only the largest end or branch size is given. Should the contractor wish to use other fittings and bushes or reducers he may do so on the understanding that no claim in this regard will be entertained.  In the case of pipes with diameters exceeding 60mm all sizes are given and no claim for extra bushes, reducers, etc will be entertained"]
[]
[null,"Wire gratings"]
[]
[null,"Descriptions of gutter outlets, etc. shall be deemed to include wire balloon gratings."]
[]
[null,"Exposed concrete surfaces"]
[]
[null,"Exposed surfaces of concrete storm water channels, cover slabs, inspection eye marker slabs, gulley tops, cleaning eye tops, catchpits, inspection chambers, etc. shall be finished smooth with plaster."]
[]
[null,"Excavations"]
[]
[null,"No claim for rock excavation will be entertained unless the contractor has timeously notified the quantity surveyor thereof prior to backfilling"]
[]
[null,"Soft rock and \"hard rock\" shall be as defined in \"Earthworks\""]
[]
[null,"Laying, backfilling, bedding, etc. of pipes"]
[]
[null,"Pipes shall be laid and bedded and trenches shall be carefully backfilled in accordance with manufacturers' instructions"]
[]
[null,"Where no manufacturers' instructions exist pipes shall be laid in accordance with clauses 5.1 and 5.2 of each of the following: SABS 1200 L : Medium-pressure pipelines LD : Sewers "]
[]
[null,"Stainless steel basins, sinks, wash troughs, urinals, etc."]
[]
[null,"Units shall have standard aprons on all exposed edges and tiling keys against walls where applicable."]
[]
[null,"Flush pans"]
[]
[null,"Flush pans shall have straight or side outlets and \"P\" or \"S\" traps as necessary"]
[]
[null,"Stainless steelbasins, sinks, wash troughs, urinals, etc."]
[]
[null,"Units shall have standard aprons on all exposed edges and tiling keys against walls where applicable"]
[]
[null,"Waste unions"]
[]
[null,"Descriptions of waste unions shall be deemed to include rubber or vulcanite plugs and chains fixed to fittings"]
[]
[null,"Chasing"]
[]
[null,"Rates for items are to include for chasing pipes into walls where applicable"]
[]
[null,"SANITARY FITTINGS"]
[]
[null,"Accessories to all sanitary fittings to be best quality chrome plated, unless otherwise described, all to architect's approval. All sanitary fittings to include complete water supply and testing.   Trade names only inserted for purpose of reference of types of fitting or component, other brand names could be submitted for prior approval of the Representative/Agent   Silicone sealer around all fittings   -------------------------------------------------"]
[]
["121.26","Vaal Sanitaryware Pearl Paraplegic Or Similar Approved vitreous china floor mounted paraplegic washdown suite colour White (Code: 7300SC) comprising semi close couple 90 deg outlet rim washdown pan and matching 9 litre cistern, including lid, fitments and purpose-made chromium plated side flush lever.","No",2,null,{"$f":"D313*E313","v":0}]
[]
["121.27","Vaal Sanitaryware Lotus Or Similar Approved vitreous china wall mounted basin colour White (Code: 7026), size 635 x 485mm with two tapholes, including integrated overflow and chainstay hole bolted to wall with two 10mm bolts (Code: 8448Z0) and and including Universal half pedestal and hanger mechanism (Code: 715221) and sealed with silicone sealant where basin meets wall with No.2 Cobra Watertech 15mm chrome plated pillar tap (Code: 505-21B) with blue and red indice and elbow action lever, manufactured in accordance with SANS 226:2009 Type 2 (BS 5412).","No",2,null,{"$f":"D315*E315","v":0}]
[]
["121.28","Franke Cascade Model CDX 621-120 Or Similar Approved polished stainless steel double end bowl inset sink (code: 821023) overall size 1200x500mm with two 343x410x157mm deep bowl, fitted onto cupboard (elsewhere specified) including Spazi F/3 Trilpe Bowl plumbing kit (code:301351) with 90mm waste fitting and two tube of Inox cream. Sink to include Billy Joystick Swivel mixer (Code: 303219) with overarm swivel spout,15mm flexible connections and SD80 soap dispenser (Code: 359802).","No",3,null,{"$f":"D317*E317","v":0}]
[]
["121.29","Vaal Sanitaryware Xtacy Or Similar Approved vitreous china 90˚ outlet back inlet wall hung closed rim pan colour White 439200 439213WH with Thermoplastic Soft Close seat 90˚ outlet wall hung open rim pan 439200, fixed on and including bolt-through-the wall bracket (code: 8082Z0) with Hibiscus 9 litre duct cistern 7109DP Arena Horizontal Chrome 8969Z000 including fitments, braided connector, angle stop valve..","No",12,null,{"$f":"D319*E319","v":0}]
[]
["121.30","Vaal Sanitaryware vitreous china wall hang \"Sweetpea\" Or Similar Approved urinal with top inlet (code 705126) overall size 565 x 275x310mm.Top inlet fittings (code 7054Z0) include a 38mm c.p. domical grating, a spreader (with a  20mm diameter thread), and two hanger brackets.","No",1,null,{"$f":"D321*E321","v":0}]
[]
["121.31","Vaal Sanitaryware vitreous china 540 x 450 x 165mm \"Azalea 540\" semi-recessed basin with one taphole and integrated overflow. Available in white only. Geberit IR automatic HyTronic85 tap for washbasin with internal mixer (article no.116.215.21.1) with generator, IR, below- Desk mixer or Similar approved products","No",10,null,{"$f":"D323*E323","v":0}]
[]
[122,"SOIL DRAINAGE"]
[]
[null,"(CPAP Work Group No. 146 Unless Otherwise Stated) "]
[]
[null,"Class 34 Rigid uPVC socketed soil piping (SABS 791) with bedding and filling as laid out in SABS 1200 LB - bedding flexible pipes, backfilling with excavated material "]
[]
["122.1","110mm Pipe fixed vertically in ramp (no excavation). ","m",15,null,{"$f":"D331*E331","v":0}]
[]
["122.2","110mm Pipe and excavation not exceeding 1000mm deep. ","m",20,null,{"$f":"D333*E333","v":0}]
[]
["122.3","Ditto, but excavation exceeding 1000mm and not exceeding 2000mm deep. ","m",5,null,{"$f":"D335*E335","v":0}]
[]
["122.4","160mm Pipe and excavation not exceeding 1000mm deep. ","m",9,null,{"$f":"D337*E337","v":0}]
[]
["122.5","160mm Pipe and excavation exceeding 1000mm and not exceeding 2000mm deep. ","m",2,null,{"$f":"D339*E339","v":0}]
[]
[null,"Extra For "]
[]
["122.6","110mm 45 Degree bend. ","No",7,null,{"$f":"D343*E343","v":0}]
[]
["122.7","160mm 45 Degree bend. ","No",5,null,{"$f":"D345*E345","v":0}]
[]
["122.8","110mm 90 Degree bend. ","No",9,null,{"$f":"D347*E347","v":0}]
[]
["122.9","160mm 90 Degree bend. ","No",5,null,{"$f":"D349*E349","v":0}]
[]
["122.10","110mm Access bend. ","No",1,null,{"$f":"D351*E351","v":0}]
[]
["122.11","160mm Access bend. ","No",2,null,{"$f":"D353*E353","v":0}]
[]
["122.12","110mm Junction. ","No",4,null,{"$f":"D355*E355","v":0}]
[]
["122.13","160mm Junction. ","No",4,null,{"$f":"D357*E357","v":0}]
[]
["122.14","160mm Reducing junction. ","No",6,null,{"$f":"D359*E359","v":0}]
[]
["122.15","110mm Access junction. ","No",4,null,{"$f":"D361*E361","v":0}]
[]
["122.16","160mm Access junction. ","No",5,null,{"$f":"D363*E363","v":0}]
[]
["122.17","160mm Reducing access junction. ","No",1,null,{"$f":"D365*E365","v":0}]
[]
["122.18","110mm Gulley trap with hopper head. ","No",7,null,{"$f":"D367*E367","v":0}]
[]
["122.19","110mm End cap.","No",2,null,0]
[]
[null,"Sundries "]
[]
["122.20","Cement concrete (15MPa) in encasing to 110mm diameter horizontal pipe of a minimum thickness of 150mm around pipe, including all necessary casing. ","m",5,null,{"$f":"D373*E373","v":0}]
[]
["122.21","Ditto, but to 110mm diameter vertical pipe. ","m",16,null,{"$f":"D375*E375","v":0}]
[]
["122.22","Ditto, but to 110mm diameter vertical bend. ","No",2,null,{"$f":"D377*E377","v":0}]
[]
["122.23","P.V.C  cleaning eye and frame and joint to top of 110mm P.V.C pipe. ","No",4,null,{"$f":"D379*E379","v":0}]
[]
["122.24","Inspection chamber size 450 x 600 x average 1000mm deep, internally fitted with Type 8A cast iron two piece double seal manhole cover and frame. ","No",4,null,{"$f":"D381*E381","v":0}]
[]
["122.25","Extra over excavation in earth as described for drain trenches, chambers, etc., for excavation in soft rock. ","m3",3,null,{"$f":"D383*E383","v":0}]
[]
["122.26","Ditto, but in hard rock. ","m3",1,null,0]
[]
["122.27","Extra over all excavations for drain trenches for carting away from the site all surplus material from the excavations (measured net - no allowance for bulking). ","m3",4,null,0]
[]
["122.28","Extra over backfilling to drain trenches not exceeding 1000mm deep for compacting to 95% Mod AASHTO density under paving. ","m",2,null,0]
[]
["122.29","Imported Sabunga filling as backfill to pipe trenches under roads and compact in 150mm layers to 93% modified AASHTO density. ","m3",2,null,0]
[]
[null,"SANITARY PLUMBING "]
[]
[null,"Rigid uPVC socketed soil, waste or vent piping (SABS 967) "]
[]
["122.30","40mm Pipe and fixing to walls, falls, in concrete, etc. ","m",25,null,{"$f":"D397*E397","v":0}]
[]
["122.31","50mm Ditto. ","m",17,null,{"$f":"D399*E399","v":0}]
[]
["122.32","110mm Ditto. ","m",8,null,{"$f":"D401*E401","v":0}]
[]
[null,"Extra For "]
[]
["122.33","50mm Vent cowl. ","No",4,null,{"$f":"D405*E405","v":0}]
[]
["122.34","110mm Vent cowl. ","No",4,null,0]
[]
["122.35","50mm \"GI Two-Way\" vent valve. ","No",4,null,0]
[]
["122.36","110mm \"GI Two-Way\" vent valve. ","No",4,null,0]
[]
["122.37","50mm Reducer. ","No",2,null,0]
[]
["122.38","110mm Eccentric reducer. ","No",4,null,0]
[]
["122.39","40mm Bend. ","No",9,null,0]
[]
["122.40","50mm Bend. ","No",1,null,0]
[]
["122.41","110mm Bend. ","No",5,null,0]
[]
["122.42","40mm Access bend. ","No",2,null,0]
[]
["122.42","50mm Access bend. ","No",5,null,0]
[]
["122.43","110mm Access bend. ","No",5,null,0]
[]
["122.44","110mm Access bend with anti-syphon horn. ","No",4,null,0]
[]
["122.45","40mm Junction. ","No",4,null,0]
[]
["122.46","50mm Junction. ","No",1,null,0]
[]
["122.47","110mm Junction. ","No",2,null,0]
[]
["122.48","40mm Access junction. ","No",4,null,0]
[]
["122.49","50mm Access junction. ","No",5,null,0]
[]
["122.50","110mm Access junction. ","No",5,null,0]
[]
["122.51","110mm Reducing junction. ","No",4,null,0]
[]
["122.52","110mm Reducing access junction. ","No",5,null,0]
[]
["122.53","110mm Double junction. ","No",5,null,0]
[]
["122.54","110mm Access double junction. ","No",9,null,0]
[]
["122.55","110mm Double reducing junction. ","No",4,null,0]
[]
["122.56","110mm Access double reducing junction. ","No",2,null,0]
[]
["122.57","110 x 40mm Boss connector. ","No",5,null,0]
[]
["122.58","110 x 50mm Boss connector. ","No",6,null,0]
[]
["122.57","110mm Pan collar and joint to outgo of W.C. pan. ","No",9,null,0]
[]
["122.58","110mm Bent access pan collar and joint to outgo of W.C. pan. ","No",9,null,0]
[]
["122.59","40mm P-Trap with joints to outlet of sanitary fitting including adaptor and to end of PVC pipe. ","No",11,null,0]
[]
["122.60","40mm Double bowl sink combination and P-trap ditto. ","No",2,null,0]
[]
["122.61","40mm Shower trap with chromium plated grating and setting in concrete floor and joint to pipe. ","No",2,null,0]
[]
[null,"Chromium Plated Brass "]
[]
["122.62","40mm Sinkwaste as Cobra 316 complete with shank, backnut, plug and chain. ","No",13,null,{"$f":"D471*E471","v":0}]
[]
["122.63","32 x 40mm Bottle trap as Cobra 350, joints to outlet of sanitary fitting and to end of PVC pipe and including adaptor. ","No",13,null,{"$f":"D473*E473","v":0}]
[]
["122.64","40 x 40mm Ditto. ","No",4,null,{"$f":"D475*E475","v":0}]
[]
[null,"Sub total (Bill No 17)"]

{"sheet":"BILL NO. 18","index":17,"n_rows":28,"n_cols":6,"rows_kept":28}
["ITEM","DESCRIPTION","UNIT","QUANTITY","RATE","AMOUNT"]
[]
[null,"BILL NO.18"]
[]
[123,"GLAZING TO STEEL WITH PUTTY (CPAP Work Group No. 150 Unless Otherwise Stated) "]
[]
[null,"6.38mm Shatterprufe Fadeban Normal Strength Clear Float or similar approved"]
[]
["123.1","Panes exceeding 0,1m2 and not exceeding 0,5m2.","m2",{"v":1,"d":"1.00"},null,{"$f":"D9*E9","v":0}]
[]
[null,"6.38mm Shatterprufe Fadeban Normal Strength Opaque Float Laminated Glass or similar approved:"]
[]
["123.2","Panes exceeding 0,1m2 and not exceeding 0.5m2.","m2",{"v":1,"d":"1.00"},null,0]
[]
[124,"TOPS, SHELVES, DOORS, MIRRORS, ETC."]
[]
[null,"6mm Silvered float glass copper backed mirrors with polished edges holed for and fixed with chromium plated dome capped mirror screws with rubber buffers to plugs in brickwork or concrete:"]
[]
["124.1","Mirror 450 x 600mm high including four CP screw caps.","No",{"v":1,"d":"1.00"},null,0]
[]
[null,"SUNDRIES "]
[]
[null,"4mm Float Glass silver backed mirror with polished edges all around "]
[]
["124.2","Mirror size 450 x 600mm four times holed for and screwed with chromium plated two piece cover headed screws to and including hardwood plugs in wall. ","No",7,null,{"$f":"D25*E25","v":0}]
[]
[]
[null,"Sub total (Bill No 18)"]

{"sheet":"BILL NO. 19","index":18,"n_rows":102,"n_cols":6,"rows_kept":102}
["ITEM","DESCRIPTION","UNIT","QUANTITY","RATE","AMOUNT"]
[]
[null,"BILL NO.19"]
[]
[125,"PAINTWORK"]
[]
[null,"PAINT ON PLASTER, FIBRE REINFORCED CEMENT,"]
[null,"ETC"]
[]
[null,"Prepare, stop and apply One coat universal undercoat and two coats \"Plascon\" Super Acrylic PVA or similar approved On:"]
[]
["125.1","Gypsum board ceilings. ","m2",{"v":8,"d":"8.00"},null,{"$f":"D12*E12","v":0}]
[]
[null,"Prepare and apply one coat \"Plascon\" Merit Universal undercoat and two coats \"Plascon Double Velvet\" paint OR similar approved product:"]
[]
["125.2","Plastered walls.  ","m2",{"v":27,"d":"27.00"},null,0]
[]
[null,"Prepare and apply one filler coat and two coats \"Plascon Wall & All\" OR similar approved product:"]
[]
["125.3","Fibre reinforced cement fascia and bargeboard.","m2",{"v":7,"d":"7.00"},null,0]
[]
[null,"Prepare and apply one coat universal undercoat and two coats \"Plascon Velvaglo\" OR similar approved product:"]
[]
["125.4","Fibre reinforced cement cill not exceeding 300mm girth. ","m",{"v":2,"d":"2.00"},null,0]
[]
[null,"ON BRICK SURFACES"]
[]
[null,"Clean down with spirits of salts solution and apply two coats silicone-based brick dressing on:"]
[]
["125.5","Facings (Internally).","m2",{"v":12,"d":"12.00"},null,0]
[]
["125.6","Facings (Externally).","m2",{"v":27,"d":"27.00"},null,0]
[]
[null,"PAINTWORK ON FLOATED PLASTER"]
[]
[null,"Masonry primer, filler coat sanded to approved smooth finish, SABS approved undercoat and 2 coats equal or Wall and All paint on:"]
[]
["125.7","On external walls.","m²",{"v":1040,"d":"1040.00"},null,{"$f":"D38*E38","v":0}]
[]
[null,"PAINT ON METAL"]
[]
[null,"One coat universal undercoat and two coats \"Plascon Non-Drip Enamel\" or similar approved On:"]
[]
["125.8","Steel door frames. ","m2",{"v":2,"d":"2.00"},null,{"$f":"D44*E44","v":0}]
[]
[null,"Remove all traces of protective coating from galvanised surfaces with galvanised iron cleaner, prepare and apply one coat \"Plascon\" universal undercoat and two coats \"Plascon Non-Drip Enamel\" OR similar approved product:"]
[]
["125.9","Steel windows with burglar bars (both sides measured). ","m2",{"v":2,"d":"2.00"},null,0]
[]
[null,"Remove all traces of protective coating from galvanised surfaces with galvanised iron cleaner, prepare and apply one coat \"Plascon\" universal undercoat and two coats \"Plascon Non-Drip Enamel\" OR similar approved product:"]
[]
["125.10","Steel grilles, gates, burglarproof screens, balustrades, etc  (measured on flat over both sides).  ","m2",{"v":7,"d":"7.00"},null,{"$f":"D52*E52","v":0}]
[]
[]
[null,"PAINT ON WOOD"]
[]
[null,"Prepare and apply one coat wood primer, one undercoat and two coats superior quality smooth gloss enamel on:"]
[]
["125.11","General surfaces of timbers at eaves.","m2",{"v":10,"d":"10.00"},null,0]
[]
[null,"Prepare, stop and apply one coat primer, one coat universal undercoat and two coats \"Plascon X11 Magic Flow Satin\" gloss enamel paint:"]
[]
[]
["125.12","Skirtings, cornices or rails not exceeding 300mm girth.","m",{"v":15,"d":"15.00"},null,0]
[]
[null,"Prepare, stop and apply one coat pink wood primer, one coat universal undercoat and two coats \"Plascon\" non-Drip Enamel Or similar approved products:"]
[]
["125.13","Doors.  ","m2",{"v":8,"d":"8.00"},null,0]
[]
[null,"PAINT ON PLASTER, FIBRE REINFORCED CEMENT, ETC "]
[]
[null,"Prepare And One Coat Primer And Two Coats External Quality PVA Emulsion On "]
[]
["125.13","Plastered walls. ","m2",187,null,0]
[]
["125.14","Projecting and isolated columns. ","m2",90,null,0]
[]
[null,"Prepare and apply three coats polyurethane matt varnish"]
[]
["125.15","General surfaces.","m2",{"v":10,"d":"10.00"},null,0]
[]
["125.16","General surfaces of fittings.","m2",{"v":10,"d":"10.00"},null,0]
[]
[null,"ON PLASTERBOARD SURFACES"]
[]
[null,"Two coats plascon cashmere to interior newly prepared and primed rhinolite or similar approved products"]
[]
["125.17","On walls","m2",250,null,{"$f":"D88*E88","v":0}]
[]
[null,"One coat prime and two coats emulsion paint with brilliant white humidity and mold resistant"]
[]
[null,"Ceilings"]
["125.18","Prime and paint with brilliant white humidity and mold resistant","m2",150,null,{"$f":"D93*E93","v":0}]
[]
[126,"Other areas"]
[]
["126.1","Galvanized roof beams, purlins and bracing.","m2",120,null,{"$f":"D97*E97","v":0}]
[]
["126.1","Balustrade","m",120,null,{"$f":"D99*E99","v":0}]
[]
[]
[null,"Sub total (Bill No 19)"]

{"sheet":"BILL NO. 20","index":19,"n_rows":61,"n_cols":6,"rows_kept":61}
["ITEM","DESCRIPTION","UNIT","QUANTITY","RATE","AMOUNT"]
[]
[null,"BILL NO.21"]
[]
[127,"EXTERNAL WORKS (PROVISIONAL) "]
[]
[null,"NOTE:The Standard Preambles and the Notes in the various trade bills are to, and do, apply equally to this section. -------------------- "]
[]
[null,"SITE EXCAVATIONS "]
[]
[null,"EARTHWORKS(CPAP Work Group No. 104 Unless Otherwise Stated) "]
[]
[null,"Site Clearance "]
[]
["127.1","Allow for clearing the site of all shrubs and trees not exceeding 200mm girth, rubbish, debris, vegetation, drains, etc, that may be encountered and roughly level site. ","m2",26000,null,{"$f":"D15*E15","v":0}]
[]
["127.2","Cut down and remove tree exceeding 200mm and not exceeding 500mm girth, grub up and remove roots, fill hole with earth selected from the excavated material and consolidate. ","No",15,null,{"$f":"D17*E17","v":0}]
[]
["127.3","Ditto, but exceeding 500mm and not exceeding 1000mm girth. ","No",5,null,{"$f":"D19*E19","v":0}]
[]
["127.4","Excavate in earth average 100mm deep over site to remove topsoil and deposit in spoil heaps on site. ","m3",1600,null,{"$f":"D21*E21","v":0}]
[]
[null,"Excavations, Filling, Etc "]
[]
["127.5","Excavate in earth to open face over site to reduce levels. ","m3",17714,null,{"$f":"D25*E25","v":0}]
[]
["127.6","Extra over bulk excavations in earth for excavation in soft rock. ","m3",250,null,{"$f":"D27*E27","v":0}]
[]
["127.7","Ditto, but in hard rock. ","m3",2,null,{"$f":"D29*E29","v":0}]
[]
["127.8","Extra over all excavations for carting away from the site all surplus excavated material to a dumping site not exceeding 5km from site. ","m3",17569,null,{"$f":"D31*E31","v":0}]
[]
["127.9","Allow for keeping excavations free from water. ","Item",1,null,{"$f":"D33*E33","v":0}]
[]
["127.10","C2 earth filling, selected and supplied by the Contractor, deposited in layers not exceeding 150mm thick, watered and consolidated to 98% modified AASHTO density to platforms, etc. ","m3",570,null,{"$f":"D35*E35","v":0}]
[]
["127.11","Extra over C2 earth filling for stabilising with 3% cement by volume. ","m3",570,null,{"$f":"D37*E37","v":0}]
[]
["127.12","C4 stabilised sub-base deposited in layers not exceeding 150mm thick, watered and consolidated compacted to 97% modified AASHTO to platforms, etc. ","m3",137,null,{"$f":"D39*E39","v":0}]
[]
["127.13","G2 earth filling, selected and supplied by the Contractor, deposited in layers not exceeding 150mm thick, watered and consolidated to 98% modified AASHTO density to platforms, etc. ","m3",53,null,{"$f":"D41*E41","v":0}]
[]
["127.14","G5 earth filling, selected and supplied by the Contractor, deposited in layers not exceeding 150mm thick, watered and consolidated to 95% modified AASHTO density to platforms, etc. ","m3",440,null,{"$f":"D43*E43","v":0}]
[]
["127.15","G7 earth filling, selected and supplied by the Contractor, deposited in layers not exceeding 150mm thick, watered and consolidated to 95% modified AASHTO density to platforms, etc. ","m3",24,null,{"$f":"D45*E45","v":0}]
[]
["127.16","G9 earth filling, selected and supplied by the Contractor, deposited in layers not exceeding 150mm thick, watered and consolidated to 93% modified AASHTO density to platforms, etc. ","m3",24,null,{"$f":"D47*E47","v":0}]
[]
["127.17","Rockfill, selected and supplied by the Contractor, deposited in layers watered and consolidated to 90% modified AASHTO density to platforms, etc. ","m3",115,null,{"$f":"D49*E49","v":0}]
[]
["127.18","Topsoil filling, selected by the Contractor from spoil heaps on site, cleaned, dried, spread and levelled in 150mm thick layer on planting areas over site. ","m3",450,null,{"$f":"D51*E51","v":0}]
[]
["127.19","Scarify, mix and consolidate top 150mm of subgrade to 98% modified AASHTO density. ","m2",150,null,{"$f":"D53*E53","v":0}]
[]
["127.20","Prepare topsoil and plant local kikuyu grass in rows at 200mm centres, water, fertilise, weed and mow as required until full cover has been obtained. ","m2",330,null,{"$f":"D55*E55","v":0}]
[]
[null,"Testing "]
[]
["127.21","Provide and have filling compaction check tested by a Consulting Engineer's Laboratory and deliver the results to the Architect within 24 hours of the tests being completed. ","No",20,null,{"$f":"D59*E59","v":0}]
[]
[null,"Sub total (Bill No 20)"]

{"sheet":"BILL NO. 21","index":20,"n_rows":119,"n_cols":6,"rows_kept":119}
["ITEM","DESCRIPTION","UNIT","QUANTITY","RATE","AMOUNT"]
[]
[null,"BILL NO.21"]
[]
[128,"ROADWORKS (CPAP Work Group No. 154 Unless Otherwise Stated) "]
[]
[null,"NOTE: Any defects which may become evident due to bad workmanship or materials within six months of completion shall be made good by the Contractor at his own expense. -------------------- "]
[]
[null,"EARTHWORKS "]
[]
[null,"Tarmacadam Surfacing "]
[]
["128.1","Sweep off all loose material from base course, prime, lay 40mm finished thickness continuously graded asphalt surfacing and compact. ","m2",350,null,{"$f":"D13*E13","v":0}]
[]
[null,"CONCRETE (CPAP Work Group No. 110 Unless Otherwise Stated) "]
[]
[null,"Concrete cast against excavated surfaces "]
[]
["128.2","Cement concrete (30MPa) in roads cast in panels ","m3",500,null,{"$f":"D19*E19","v":0}]
[]
[null,"Concrete Sundries "]
[]
["128.3","Power float top of concrete to a dead level, hardwearing, smooth surface in accordance with SABS 0100 Code of Practice. ","m2",250,null,{"$f":"D23*E23","v":0}]
[]
[null,"FORMWORK (CPAP Work Group No. 111 Unless Otherwise Stated) "]
[]
[null,"Class F1 Formwork To "]
[]
["128.4","Edges, risers, ends and reveals not exceeding 300mm high or wide. ","m",200,null,{"$f":"D29*E29","v":0}]
[]
["128.5","Edges, risers, ends and reveals not exceeding 300mm high or wide circular on plan to exceeding 1000mm radius. ","m",49,null,{"$f":"D31*E31","v":0}]
[]
["128.6","Edges, risers, ends and reveals not exceeding 300mm high or wide circular on plan to not exceeding 1000mm radius. ","m",56,null,{"$f":"D33*E33","v":0}]
[]
[null,"Movement Joints, Etc "]
[]
["128.7","6mm Wide x 80mm deep sawcut joint in top of concrete. ","m",500,null,{"$f":"D37*E37","v":0}]
[]
["128.8","Horizontal joggle construction joint not exceeding 300mm high between vertical concrete surfaces with and including 2.1 cement slurry to one face. ","m",600,null,{"$f":"D39*E39","v":0}]
[]
[null,"REINFORCEMENT(CPAP Work Group No. 114 Unless Otherwise Stated) "]
[]
["128.9","High tensile steel mesh reinforcement Ref. 193 to concrete surface beds, slabs, etc. ","m2",850,null,{"$f":"D43*E43","v":0}]
[]
[null,"PRECAST CONCRETE(CPAP Work Group No. 112 Unless Otherwise Stated) "]
[]
[null,"Precast cement concrete (20MPa) kerbs and channels finished smooth from the mould on exposed surfaces and including excavation, backfilling, etc "]
[]
["128.10","Kerb size 125 x 250mm high with front face splayed 100mm high to a finished thickness of 100mm at top rounded to 20mm radius, laid in lengths not exceeding 1000mm on a well rammed earth bottom or base course, bedded on a 50mm thick x 300mm wide layer of 8.1 cement mortar with 100 x 100mm triangular haunching behind kerb and jointed in 3.1 cement mortar. ","m",330,null,{"$f":"D49*E49","v":0}]
[]
["128.11","Ditto, but circular on plan to not exceeding 4000mm radius. ","m",85,null,{"$f":"D51*E51","v":0}]
[]
[null,"BRICK AND BLOCK PAVING (CPAP Work Group No. 116 Unless Otherwise Stated) "]
[]
[null,"Inca Or similar approved) Interlock weathered tan coloured paving blocks, size 200 x 100 x 80mm thick, laid in herringbone pattern in accordance with SANS 1200 MJ and CMA Concrete Block Paving Manuals, with a minimum longitudinal fall of 1% on a transverse fall of at least 2% on 25mm compacted sand bed with fine jointing sand swept and vibrated into joints, all laid on sub-grade conforming to SANS 1200 D degree of Accuracy I. Paving to be inspected and re-sanded after three months."]
[]
["128.12","Paving to herringbone pattern including forming soldier course perimeter margin. ","m2",500,null,{"$f":"D57*E57","v":0}]
[]
[null,"Inca or Similar approved) interlock weathered charcoal coloured paving blocks, size 200 x 100 x 80mm thick, laid In Herringbone pattern in accordance with SANS 1200 MJ and CMA concrete block paving manuals, with a minimum longitudinal fall of 1% on a transverse fall of at least 2% on 25mm compacted sand bed with fine jointing sand swept and vibrated into joints, all laid on sub-grade conforming to SANS 1200 D Degree Of Accuracy I. Paving to be inspected and re-sanded after three months."]
[]
["128.13","Paving to herringbone pattern including forming soldier course perimeter margin. ","m2",450,null,{"$f":"D61*E61","v":0}]
[]
["128.14","Fair circular cutting. ","m",9,null,{"$f":"D63*E63","v":0}]
[]
[null,"Corobrik Lawley Nutmeg Clay Paving Bricks Size 108 x 220 x 50mm or similar approved product thick bedded and jointed in 5.1 cement mortar and pointed with flush joints "]
[]
["128.15","Paving to circular pattern. ","m2",22,null,{"$f":"D67*E67","v":0}]
[]
[null,"WATERPROOFING (CPAP Work Group No. 120 Unless Otherwise Stated) "]
[]
["128.16","Clean out 10mm deep saw cut on top surfaces of concrete, insert yarn backing to a depth of ?mm, prime with Thioflex Primer and caulk with Thioflex 600 polysulphide caulking compound. ","m",860,null,{"$f":"D71*E71","v":0}]
[]
[null,"PAINTWORK (CPAP Work Group No. 152 Unless Otherwise Stated) "]
[]
[null,"Prepare and apply one coat roadline road marking paint"]
[]
["128.17","Line 200mm wide on floated concrete. ","m",120,null,{"$f":"D77*E77","v":0}]
[]
["128.18","Line 200mm wide on tarmacadam paving.","m",305,null,{"$f":"D79*E79","v":0}]
[]
[null,"WATER SUPPLY"]
[]
[null,"uPVC Class 16 water pipes"]
[]
["128.19","75mm Pipes laid in and including trenches 900mm deep ","m",110,null,{"$f":"D85*E85","v":0}]
[]
[null,"Extra over uPVC pipes for \"Plasson\" or other approved fittings"]
[]
["128.20","75mm Nipple ","No",6,null,{"$f":"D89*E89","v":0}]
[]
["128.21","75mm Tee ","No",6,null,{"$f":"D91*E91","v":0}]
[]
["128.22","75mm Bend ","No",6,null,{"$f":"D93*E93","v":0}]
[]
[null,"uPVC Class 32 water pipes"]
[]
["128.23","160mm Pipes laid in and including trenches 900mm deep ","m",345,null,{"$f":"D97*E97","v":0}]
[]
[null,"Extra over uPVC pipes for \"Plasson\" or other approved fittings"]
[]
["128.24","160mm Nipple ","No",8,null,{"$f":"D101*E101","v":0}]
[]
["128.25","160mm Bend ","No",6,null,{"$f":"D103*E103","v":0}]
[]
["128.26","160mm Tee ","No",5,null,{"$f":"D105*E105","v":0}]
[]
[null,"Brass Fittings "]
[]
["128.27","32mm Stopcock with joint to steel as \"Cobra 121\" ","No",2,null,{"$f":"D109*E109","v":0}]
[]
["128.28","32mm Gate valve and joint to 32mm diameter uPVC pipe including adaptors","No",2,null,{"$f":"D111*E111","v":0}]
[]
["128.29","75mm Non-return valve with joints to steel ","No",2,null,{"$f":"D113*E113","v":0}]
[]
["128.30","80mm Brass 90° right angle pattern tamper proof fire hydrant valve with instantaneous coupling outlet and joint to galvanised mild steel socket","No",3,null,{"$f":"D115*E115","v":0}]
[]
["128.31","75mm Diameter water meter","No",1,null,{"$f":"D117*E117","v":0}]
[]
[null,"Sub total (Bill No 21)"]

{"sheet":"BILL NO. 22","index":21,"n_rows":50,"n_cols":6,"rows_kept":50}
["ITEM","DESCRIPTION","UNIT","QUANTITY","RATE","AMOUNT"]
[]
[null,"BILL NO.22"]
[]
[129,"STORMWATER RETICULATION"]
[]
[null,"EARTHWORKS"]
[]
[null,"Excavation in earth not exceeding 2m deep for"]
[]
[null,"Precast or in-situ concrete (Class 20) open stormwater channels having V-shaped waterway formed in top, finished smooth on all exposed surfaces in 3:1 cement plaster trowelled smooth and with angles rounded, cast in suitable lengths, and reinforced as necessary for handling if precast, including all formwork, moulds, shallow excavation, filling and ramming, laying to falls, bedding and pointing in 3:1 cement mortar"]
[]
["129.1","Channel size 900 x 130mm overall with 50mm deep V-shaped waterway.","m",120,null,{"$f":"D13*E13","v":0}]
[]
["129.2","Extra for angle.","No",2,null,{"$f":"D15*E15","v":0}]
[]
["129.3","Extra for T-intersection. ","No",1,null,{"$f":"D17*E17","v":0}]
[]
["129.4","Extra for spreader","No",1,null,{"$f":"D19*E19","v":0}]
[]
[null,"Reinforced cement concrete stormwater pipes laid in pipe trenches as SABS 1200 LB (Class C Bedding) of 1979 and excavation and backfilling as SABS 1200 DB Of 1982"]
[]
["129.5","450 mm Pipe and excavations not exceeding 1m deep ","m",60,null,{"$f":"D23*E23","v":0}]
[]
["129.6","450 mm Pipe and excavations exceeding 1m and not exceeding 2m deep ","m",285,null,{"$f":"D25*E25","v":0}]
[]
[null,"Catchpits"]
[]
["129.7","Excavate for and build catchpit size 450 x 450 x 1000mm deep internally, formed of 100mm thick cement concrete (25MPa) bottom, half brick sides 100mm high cement concrete (20MPa) kerb around top, rebated for and fitted with 450 x 450mm x 9kg cast iron dished grating and frame, finished on all exposed surfaces in 3.1 cement plaster and bottom graded to outlets in 3.1 cement mortar. ","No",3,null,{"$f":"D29*E29","v":0}]
[]
["129.8","Ditto but 1500mm deep.","No",3,null,{"$f":"D31*E31","v":0}]
[]
["129.9","Excavate for and build catchpit size 640 x 640 x 1000mm deep internally, formed of 100mm thick cement concrete (25MPa) bottom, half brick sides 100mm high cement concrete (20MPa) kerb around top, rebated for and fitted with 640 x 640mm x 9kg cast iron dished grating and frame, finished on all exposed surfaces in 3.1 cement plaster and bottom graded to outlets in 3.1 cement mortar. ","No",2,null,0]
[]
["129.10","Ditto but 1500mm deep.","No",1,null,0]
[]
["129.11","Excavate for and build catchpit size 1250 x 640 x 1000mm deep internally, formed of 100mm thick cement concrete (25MPa) bottom, half brick sides 100mm high cement concrete (20MPa) kerb around top, rebated for and fitted with 1250 x 640mm cast iron grating and frame complete, finished on all exposed surfaces in 3.1 cement plaster and bottom graded to outlets in 3.1 cement mortar. ","No",2,null,0]
[]
["129.12","Ditto but 1500mm deep.","No",1,null,0]
[]
[null,"Manholes "]
[]
["129.13","Manhole size 600 x 900 mm x not exceeding 1m deep internally to invert level formed of hard burnt one brick sides in 1:3 cement mortar on and including 150 mm thick mass concrete (20 MPa at 28 days in 19 mm stone) bottom projecting 75 mm beyond sides and mass concrete (15 MPa at 28 days in 12 mm stone) benching, rendered internally in 1:3 cement plaster with 100 mm thick mass concrete (20 MPa at 28 days in 19 mm stone) kerb on top, rebated for and fitted with and including heavy duty cover and frame type D in accordance with SABS 558, bedded in 1:3 cement mortar and sealed in tallow including all necessary vitrified clay channels and fittings, excavations, formwork, holes through sides for pipes, etc ","No",3,null,{"$f":"D43*E43","v":0}]
[]
["129.14","Extra over axcavation for excavation in soft rock","m3",8,null,{"$f":"D45*E45","v":0}]
[]
[]
["129.15","Ditto but in hard rock","m3",3,null,{"$f":"D48*E48","v":0}]
[]
[null,"Sub total (Bill No 22)"]

{"sheet":"BILL NO. 23","index":22,"n_rows":57,"n_cols":6,"rows_kept":57}
["ITEM","DESCRIPTION","UNIT","QUANTITY","RATE","AMOUNT"]
[]
[null,"BILL NO.23"]
[]
[130,"SEWER RETICULATION"]
[]
[null,"Polyvinyl chloride (unplasticised) (uPVC) piping "]
[]
["130.1","110 mm Pipes fixed vertically in ramp (no excavations) ","m",8,null,{"$f":"D9*E9","v":0}]
[]
["130.2","110 mm Pipe and excavations not exceeding 1m deep ","m",97,null,{"$f":"D11*E11","v":0}]
[]
["130.3","110 mm Pipe and excavations exceeding 1m and not exceeding 2m deep ","m",15,null,{"$f":"D13*E13","v":0}]
[]
["130.4","Extra over excavation for excavation in soft rock","m3",20,null,{"$f":"D15*E15","v":0}]
[]
["130.5","Ditto but in hard rock","m3",25,null,{"$f":"D17*E17","v":0}]
[]
["130.6","160 mm Pipe and excavations not exceeding 1m deep ","m",95,null,{"$f":"D19*E19","v":0}]
[]
["130.7","160 mm Pipe and excavations exceeding 1m and not exceeding 2m deep ","m",50,null,{"$f":"D21*E21","v":0}]
[]
["130.8","Extra over excavation for excavation in soft rock","m3",15,null,{"$f":"D23*E23","v":0}]
[]
["130.9","Ditto but in hard rock","m3",8,null,{"$f":"D25*E25","v":0}]
[]
[null,"Extra over uPVC pipes for fittings "]
[]
["130.10","110 mm Bend ","No",5,null,{"$f":"D29*E29","v":0}]
[]
["130.11","110 mm Bend with cleaning eye and lid ","No",6,null,{"$f":"D31*E31","v":0}]
[]
["130.12","110 mm Junction ","No",4,null,{"$f":"D33*E33","v":0}]
[]
["130.13","110 mm Junction with cleaning eye and lid ","No",4,null,{"$f":"D35*E35","v":0}]
[]
["130.14","110 mm Gulley trap with hopper head ","No",3,null,{"$f":"D37*E37","v":0}]
[]
["130.15","110 mm Rodding Eye (45 deg.) ","No",2,null,{"$f":"D39*E39","v":0}]
[]
[null,"Manholes "]
[]
["130.16","Inspection chamber size 1000mm diameter x 1000mm deep to invert having 150mmt hick plain concrete 20MPa/19mm stone bottom projecting 150mm beyond face of external walls all around, 1000mm diameter precast concrete chamber sections complying with SANS 1294 with 1:3 cement mortar caulked joints, 150mm thick precast concrete heavy duty roof slab with 560mm diameter opening with any variance in height made up of precast concrete spacer slabs bedded in Class II mortar, fitted with and including 550mm diameter x 75kg Type 4A cast iron circular manhole cover and frame complying with SANS 558 with the frame bedded in mortar and the cover in grease including fine cement concrete benching in bottom, vitrified clay main and branch inlet channels, excavation ,backfilling, formwork, holes through sides, adaptors, etc. ","No",3,null,{"$f":"D43*E43","v":0}]
[]
["130.17","Extra over axcavation for excavation in soft rock","m3",4,null,{"$f":"D45*E45","v":0}]
[]
["130.18","Ditto but in hard rock","m3",2,null,{"$f":"D47*E47","v":0}]
[]
[null,"Sundries "]
[]
["130.19","Mass concrete Class 15 MPa encasement around horizontal raking or vertical drainpipes including all necessary excavations, formwork, etc.","m3",6,null,{"$f":"D51*E51","v":0}]
[]
[null,"Testing"]
[]
["130.20","Allow for testing all drains to the satisfaction of the Engineer. All defective work is to be taken out and replaced at the Contractor's expense","Item",1,null,{"$f":"D55*E55","v":0}]
[]
[null,"Sub total (Bill No 23)"]

{"sheet":"BILL NO. 24","index":23,"n_rows":95,"n_cols":6,"rows_kept":95}
["ITEM","DESCRIPTION","UNIT","QUANTITY","RATE","AMOUNT"]
[]
[null,"BILL NO.24"]
[]
[131,"RETAINING WALL"]
[]
[null,"EARTHWORKS (Provisional)"]
[]
[null,"CONCRETE RETAINING WALL "]
[]
[null,"Note: The Contractor must refer to the \"Specification For Civil Work\" before pricing this section."]
[]
[null,"EARTHWORKS"]
[]
["131.1","Excavate in earth for surface trenches not exceeding 2000mm deep. ","m3",85,null,{"$f":"D15*E15","v":0}]
[]
["131.2","Extra over excavation in earth to bases and trenches for excavation in soft rock. ","m3",17,null,{"$f":"D17*E17","v":0}]
[]
["131.3","Ditto, but in hard rock. ","m3",13,null,{"$f":"D19*E19","v":0}]
[]
["131.4","Extra over all excavations for carting away from the site all surplus excavated material. ","m3",37,null,0]
[]
["131.5","Allow for risk of collapse to sides of trench and base excavations not exceeding 1500mm deep. ","m2",126,null,{"$f":"D23*E23","v":0}]
[]
["131.6","Ditto, but exceeding 1,5m deep.","m2",30,null,{"$f":"D25*E25","v":0}]
[]
["131.7","Allow for keeping excavations free from water. ","Item",1,null,{"$f":"D27*E27","v":0}]
[]
["131.8","Earth filling, selected by the Contractor from the excavated material, deposited in layers not exceeding 150mm thick, watered and consolidated as backfilling to trenches, bases, etc. ","m3",48,null,{"$f":"D29*E29","v":0}]
[]
["131.9","Earth filling, selected by the Contractor from spoil heaps on site, deposited in layers not exceeding 150mm thick, watered and consolidated as backfilling behind retaining wall.","m3",139,null,{"$f":"D31*E31","v":0}]
[]
[null,"CONCRETE"]
[]
[null,"TESTS NOTE: Should the strength required for the concrete in any portion of the structure not be attained in the test cubes, or should any concrete whatsoever be defective the portion in question is to be demolished and replaced at the expense of the Contractor.-------------------- "]
[]
["131.10","Concrete test cubes size 150 x 150 x 150mm overall including testing. ","No",5,null,{"$f":"D37*E37","v":0}]
[]
[null,"Concrete "]
[]
["131.11","Reinforced cement concrete (30MPa) in retaining walls.","m3",41,null,{"$f":"D41*E41","v":0}]
[]
[null,"Concrete Cast Against Excavated Surfaces "]
[]
["131.12","Reinforced cement concrete (30MPa) in retaining wall footing.","m3",26,null,{"$f":"D45*E45","v":0}]
[]
[null,"Sundries"]
[]
["131.13","50mm Diameter PVC weep pipe 500mm long with one end splay cut and cast through 400mm thick concrete wall including holing formwork both sides. ","No",15,null,{"$f":"D49*E49","v":0}]
[]
[null,"FORMWORK"]
[]
[null,"Formwork To "]
[]
["131.14","Sides of retaining walls.","m2",328,null,{"$f":"D55*E55","v":0}]
[]
["131.15","End of wall including vertical joggle joint to 400mm wide retaining wall with and including 2.1 cement slurry to one face. ","m",5,null,{"$f":"D57*E57","v":0}]
[]
[null,"Boxing In Formwork To Form "]
[]
["131.16","25 x 25mm Chamfer along horizontal top edge of wall.","m",126,null,{"$f":"D61*E61","v":0}]
[]
[null,"'Box Out Holes/Form Voids"]
[]
[null,"Note : Rate shall cover the cost of the provision and the removal of formwork boxing into form pockets and opening"]
[]
["131.17","Box out formwork to form 75mm diameter x 150mm deep h.d. bolt pockets","No",168,null,{"$f":"D67*E67","v":0}]
[]
[null,"REINFORCEMENT"]
[]
["131.18","Various diameter bars.","t",8,null,{"$f":"D71*E71","v":0}]
[]
[null,"WATERPROOFING"]
[]
[null,"One Layer 500 Micron Waterproof Sheeting "]
[]
["131.19","Vertically behind retaining wall.","m2",126,null,{"$f":"D77*E77","v":0}]
[]
[null,"PAINTWORK"]
[]
[null,"Prepare and apply one coat primer and two coats exterior Quality PVA Emulsion"]
[]
["131.20","Off-shutter concrete retaining wall.","m2",243,null,{"$f":"D83*E83","v":0}]
[]
[null,"GALVANISED STEEL HANDRAILS, BALUSTRADES, ETC"]
[]
[null,"Interlink handrail system"]
[]
["131.21","Balastrade system formed of 34mm outside diameter solid forged hand and knee railing complete with 42,5mm outside diameter standards stanchions calculated at 1500mm centres and including all bends, closures, mounting pieces and bolts. All galvanized & tested in accordance with SANS121: 2000 1.01 DIP","m",63,null,{"$f":"D89*E89","v":0}]
[]
[null,"Sundries"]
[]
["131.22","10mm Ø x 75mm Long Hilti HSA masonry anchor with nut and washer and including mortice or similar approved product in brickwork or concrete. ","No",168,null,{"$f":"D93*E93","v":0}]
[]
[null,"Sub total (Bill No 24)"]

{"sheet":"BILL NO. 25","index":24,"n_rows":17,"n_cols":6,"rows_kept":17}
["ITEM","DESCRIPTION","UNIT","QUANTITY","RATE","AMOUNT"]
[]
[null,"BILL NO.25"]
[]
[132,"FENCING"]
[]
[null,"Security Fencing"]
[]
["132.1","2100mm High galvanised steel palisade fence formed of 76 x 76 x 1,6mm section posts spaced at 3m centres with ends cast into and including 400 x 400 x 600mm thick 15MPa / 19mm stone concrete base, excavation, etc with two 40 x 40 x 3mm angle section rails with flat section fixing plates bolted to posts and 65 x 2,5mm D-profile palisade pales twice holed for and fixed to angle rails at 190mm centres with anti vandal shear nuts complete including anti sag pales, support posts, etc","m",15,null,{"$f":"D9*E9","v":0}]
[]
[null,"Galvanised Mesh Screen Gates"]
[]
["132.2","Single leaf framed mesh screen swing gate size 4595 x 2160mm high (complete) as per G5-01 in the gate schedule attached to this tender document","No",2,null,{"$f":"D13*E13","v":0}]
[]
["132.3","Single leaf framed mesh screen swing gate size 1100 x 2100mm high (complete) as per G4-01 in the gate schedule attached to this tender document","No",1,null,{"$f":"D15*E15","v":0}]
[]
[null,"Sub total (Bill No 25)"]

{"sheet":"BILL NO. 26","index":25,"n_rows":11,"n_cols":6,"rows_kept":11}
["ITEM","DESCRIPTION","UNIT","QUANTITY","RATE","AMOUNT"]
[]
[null,"BILL NO.26"]
[]
[133,"FIRE APPLIANCES ETC."]
[]
[null,"Portable fire extinguishers:"]
[]
["133.1","4.5 Kg carbon dioxide portable chemical fire extinguisher  complete with full load, wall hook and bracket, bracket fixed to  and including 25 mm Wrot Meranti backboard, size 250 x  500mm high with chamfered edges, varnish and fixed to wall.","No",1,null,{"$f":"D9*E9","v":0}]
[]
[null,"Sub total (Bill No 26)"]

{"sheet":"BILL NO. 27","index":26,"n_rows":73,"n_cols":6,"rows_kept":73}
["ITEM","DESCRIPTION","UNIT","QUANTITY","RATE","AMOUNT"]
[]
[null,"BILL NO.27"]
[]
["134"," LABOUR TRAINING AND SKILLS DEVELOPMENT (PROVISIONAL)"]
[]
[null,"EMPLOYMENT AND TRAINING OF LABOUR ON THE EPWP-NYS INFRASTRUCTURE PROJECTS"]
[]
[null,"PREAMBLES"]
[]
[null,"Tenderers are advised to study the Additional Specification SL: Employment and Training of Labour on the Expanded Public Works Programme (EPWP) Infrastructure Projects: National Youth Service, as bound elsewhere in the Bills of Quantities, and then price this Bill accordingly"]
[]
[null,"Note: The contractor shall test the market by submitting the 3 quotes before appointment of the training provider"]
[]
[null,"TRAINING OF YOUTH WORKERS"]
[]
[null,"(TARGET: YOUTH WORKERS)"]
[]
[null,"Orientation, Life skills development and Technical training:"]
[]
["134.1","Life Skills development training for youth workers for an average of 5 days  Provisional","Prov Sum",{"v":1,"d":"1.00"},"Work Package Stage"]
[]
["134.2","Technical Skills and  training for youth workers for an average of 45 days  Provisional","Prov Sum",{"v":1,"d":"1.00"},"Work Package Stage"]
[]
["134.3","Provide Medical Surveillance.","Prov Sum",{"v":1,"d":"1.00"},"Work Package Stage"]
[]
[null,"The above items are only applicable if NYDA do not fund the specific training."]
[]
["134.4","Payment reduction due to not meeting the target ","Trainees",null,"Work Package Stage"]
[]
["134.5","Profit and Attendance on condition that services and costs have been incurred. ","Item",{"v":1,"d":"1.00"},"Work Package Stage"]
[]
[null,"TRAVELLING DURING ON-SITE TRAINING:"]
[]
[null,"Practical Work based Experiential training for 10 days each "]
[]
["134.6","Traveling (based on R60 per day return trip/youth worker)","Prov Sum",{"v":1,"d":"1.00"},"Work Package Stage"]
[]
["134.7","Profit and Attendance on condition that services and costs have been incurred. (on item above)","Item",{"v":1,"d":"1.00"},"Work Package Stage"]
[]
[null,"Technical training for 45 days :"]
[]
[null,"EMPLOYMENT OF YOUTH WORKERS"]
[]
["134.8","Employment of youth workers","Prov Sum",{"v":1,"d":"1.00"},"Work Package Stage"]
[]
[null,"The unit of measurement shall be the number of youth workers at the labour rate of R XXX per day on Training as per EPWP Ministerial Determination multiplied by the period employed in months and the rate tendered shall include full compensation for all costs associated with the employment of youth workers and for complying with the conditions of contract.  The cost for the training shall be excluded from this item.  This item is based on 9 months appointment for youth workers",null,null,"Work Package Stage"]
[]
["134.9","Profit and attendance on condition that services and cost has been incurred ","Item",{"v":1,"d":"1.00"},"Work Package Stage"]
[]
[null,"PROVISION OF EPWP DESIGNED OVERALLS AND HARD HATS TO YOUTH WORKERS"]
[]
["134.10","Supply EPWP branded 2 x overalls, safety boots and 1 x EPWP branded hard hat to youth workers","Prov Sum",null,"Work Package Stage"]
[]
["134.11","Profit and attendance on condition that services and cost has been incurred ","Item",{"v":1,"d":"1.00"},"Work Package Stage"]
[]
[null,"PROVISION OF BASIC TOOLS FOR YOUTH WORKERS"]
[]
["134.12","Provide all youth workers with prescribed tools for their respective trades. Specification for the mentioned tools to be provided by the Service Provider. These tools will become the property of the youth workers after the completion of the programme","Prov Sum",{"v":1,"d":"1.00"},"Work Package Stage"]
[]
["134.13","Profit and attendance on condition that services and cost has been incurred ","Item",{"v":1,"d":"1.00"},"Work Package Stage"]
[]
[null,"APPOINTMENT OF YOUTH TRAINING COORDINATOR (TEAM LEADER/S)"]
[]
["134.14","Appointment of Youth Team Leader/s for the duration of the contract ","Prov Sum",{"v":1,"d":"1.00"},"Work Package Stage"]
[]
["134.15","LIAISON WITH SERVICE PROVIDER","Prov Sum",{"v":1,"d":"1.00"},"Work Package Stage"]
[]
[null,"LOGISTICS FOR EXIT WORKSHOPS"]
[]
["134.16","Provide logistic items for exit workshop (Catering, Orange Golf T-Shirts, Venue Hire and Sound System).","Prov Sum",{"v":1,"d":"1.00"},"Work Package Stage"]
[]
[null,"Sub total (Bill No 27)"]

{"sheet":"BILL NO. 28","index":27,"n_rows":22,"n_cols":6,"rows_kept":22}
["ITEM","DESCRIPTION","UNIT","QUANTITY","RATE","AMOUNT"]
[]
[null,"BILL NO. 28"]
[]
[135,"METALWORK"]
[]
[null,"GALVANIZED GATES"]
[]
[null,"Hot Dipped Galvanised Steel Gates:"]
[]
[null,"Note: The contractor is to check on site measurements before placing of order."]
[]
[]
["135.1","Double gate formed of 8 x 44mm steel flat frame welded at  angles in corners, devided into three sections with two cross  rails, including 12mm diameter vertical bars at 70mm centres,  hung on and including pair of socketed and pinned hinges with  pin 18mm in diameter and bolted to brick wall including 200mm  locking bolt welded on, to suit clear opening size of 1600 x  2100mm measured on site all","No",{"v":1,"d":"1.00"},null,{"$f":"D14*E14","v":0}]
[]
[null,"Steel roller shutters etc"]
[]
[null,"Tile heavy duty galvanised steel powder coated roller shutters with 76mm slats (18kg/m2) fixed to brickwork or concrete"]
[]
["135.2","Electrically operated slatted roller shutter for 3050 x 3060mm high opening, including electrical connection and communissioning (electrical isolator elsewhere)","No",{"v":2,"d":"2.00"},null,{"$f":"D20*E20","v":0}]
[]
[null,"Sub total (Bill No 28)"]

{"sheet":"BILL NO. 29","index":28,"n_rows":69,"n_cols":6,"rows_kept":69,"merged":[[9,1,9,4],[21,1,21,4],[23,1,23,4],[55,1,55,4]]}
[]
[null,"SUMMARY"]
[]
["BILL NO. 1","PRELIMINARIES",{"$nulls":3},{"$f":"+'BILL NO. 1'!G90","v":0}]
[]
["BILL NO. 2","ALTERATIONS (PROVISIONAL) ",{"$nulls":3},{"$f":"+'BILL NO.2'!G554","v":0}]
[]
["BILL NO. 3","EARTHWORKS (PROVISIONAL)",{"$nulls":3},"R"]
[]
["BILL NO. 4","CONCRETE, FORMWORK, REINFORCEMENT (PROVISIONAL)",{"$nulls":3},{"$f":"+'BILL NO. 4'!G203","v":0}]
[]
["BILL NO. 5","PRECAST CONCRETE ",{"$nulls":3},{"$f":"+'BILL NO.5'!G22","v":0}]
[]
["BILL NO. 6","(MASONRY (PROVISIONAL) ",{"$nulls":3},{"$f":"+'BILL NO. 6'!G106","v":0}]
[]
["BILL NO. 7","WATERPROOFING ",{"$nulls":3},{"$f":"+'BILL NO.7'!G66","v":0}]
[]
["BILL NO. 8","ROOFCOVERING ",{"$nulls":3},{"$f":"+'BILL NO. 8'!G227","v":0}]
[]
["BILL NO. 9","DOORS, JOINERY, ETC",{"$nulls":3},"R"]
[]
["BILL NO. 10","CEILINGS PARTITIONS AND ACCESS FLOORING",{"$nulls":3},"R"]
[]
["BILL NO. 11","FLOOR COVERINGS, WALL LININGS, ETC",{"$nulls":3},{"$f":"+'BILL NO. 11'!G57","v":0}]
[]
["BILL NO. 12","TILING",{"$nulls":3},{"$f":"+'BILL NO. 12'!G128","v":0}]
[]
["BILL NO. 13","IRONMONGERY",{"$nulls":3},{"$f":"+'BILL NO.13'!G120","v":0}]
[]
["BILL NO. 14","METALWORK",{"$nulls":3},{"$f":"+'BILL NO. 14'!G134","v":0}]
[]
["BILL NO. 15","STRUCTURAL STEELWORK",{"$nulls":3},{"$f":"+'BILL NO. 15'!G143","v":0}]
[]
["BILL NO. 16","PLASTERING ",{"$nulls":3},"R"]
[]
["BILL NO. 17","PLUMBING AND DRAINAGE (PROVISONAL)",{"$nulls":3},{"$f":"+'BILL NO. 17'!G477","v":0}]
[]
["BILL NO. 18","GLAZING TO STEEL WITH PUTTY",{"$nulls":3},{"$f":"+'BILL NO. 18'!G28","v":0}]
[]
["BILL NO. 19","PAINTWORK",{"$nulls":3},{"$f":"+'BILL NO. 19'!G102","v":0}]
[]
["BILL NO. 20","EXTERNAL WORKS (PROVISIONAL) ",{"$nulls":3},{"$f":"+'BILL NO. 20'!G61","v":0}]
[]
["BILL NO. 21","ROAD WORKS (PROVISIONAL) ",{"$nulls":3},{"$f":"+'BILL NO. 21'!G119","v":0}]
[]
["BILL NO. 22","STORMWATER RETICULATION",{"$nulls":3},{"$f":"+'BILL NO. 22'!G50","v":0}]
[]
["BILL NO. 23","SEWER RETICULATION",{"$nulls":3},{"$f":"+'BILL NO. 23'!G57","v":0}]
[]
["BILL NO. 24","RETAINING WALL",{"$nulls":3},{"$f":"+'BILL NO. 24'!G95","v":0}]
[]
["BILL NO. 25","FENCING",{"$nulls":3},"R"]
[]
["BILL NO. 26","FIRE APPLIANCES ETC.",{"$nulls":3},"R"]
[]
["BILL NO. 27"," LABOUR TRAINING AND SKILLS DEVELOPMENT (PROVISIONAL)",{"$nulls":3},{"$f":"+'BILL NO. 27'!G73","v":0}]
[]
["BILL NO. 28","METALWORK: GALVANIZED GATES",{"$nulls":3},{"$f":"+'BILL NO. 27'!G73","v":0}]
[]
[]
[{"$nulls":5},"R"]
[]
[]
[null,"SUB TOTAL ",{"$nulls":3},{"$f":"SUM(F61:F63)","v":0}]
[]
[null,"VAT",{"$nulls":3},{"$f":"F64*0.15","v":0}]
[]
[null,"TOTAL",{"$nulls":3},{"$f":"F63*1.14","v":0}]
[null,"Transfer the Total to the Form of Offer and Acceptance"]